{"text_format":"1","workbook":"xlsx","n_sheets":7,"sheets":["I - Identificación","II Información general","III Instalación transferencia","IV Vehículos de transporte","V Listado de ResiduosyClientes"," VI Prevención","VII seg y control VIII adecuaci"],"not_rendered":{"charts":0,"images":6,"macros":1,"external_links":0,"defined_names":7,"comments":0,"pivot_tables":0},"unopened":[],"bounds":{"document_bytes":16777216,"sheet_cells":100000,"rows_first":2000,"rows_last":500,"rows_between":2000,"halvings":0,"cell_chars":16384,"cell_head_chars":4096},"cells_cut":0,"cells_raw":0,"read":"whole","date_system":"1900"}

{"sheet":"I - Identificación","index":0,"n_rows":68,"n_cols":22,"rows_kept":68,"cut":false,"hidden":false,"merged":[[8,2,8,21],[12,2,12,21],[14,1,14,3],[14,4,14,21],[23,2,23,7],[23,9,23,14],[17,18,17,21],[93,2,93,7],[56,2,56,5],[11,2,11,21],[9,2,9,21],[84,18,84,19],[52,2,52,5],[52,6,52,12],[45,2,45,5],[45,6,45,12],[45,13,45,16],[10,2,10,21],[56,6,56,12],[54,2,54,5],[55,2,55,5],[53,2,53,5],[53,6,53,12],[54,6,54,12],[55,6,55,12],[53,17,53,20],[49,13,49,16],[49,2,49,5],[47,6,47,12],[49,6,49,12],[54,13,54,16],[55,13,55,16],[52,17,52,20],[47,13,47,16],[50,2,50,5],[52,13,52,16],[53,13,53,16],[38,16,38,22],[56,13,56,16],[56,17,56,20],[60,17,60,21],[46,13,46,16],[46,17,46,20],[50,13,50,16],[51,13,51,16],[51,17,51,20],[47,17,47,20],[48,13,48,16],[54,17,54,20],[55,17,55,20],[44,17,44,20],[44,13,44,16],[45,17,45,20],[35,2,35,5],[35,7,35,14],[35,16,35,21],[33,16,33,21],[29,2,29,14],[25,2,25,7],[23,16,23,21],[33,2,33,14],[29,16,29,21],[25,9,25,14],[25,18,25,21],[27,2,27,7],[27,16,27,19],[27,9,27,14],[48,17,48,20],[49,17,49,20],[50,17,50,20],[47,2,47,5],[40,2,40,22],[46,2,46,5],[44,2,44,5],[44,6,44,12],[42,2,42,22],[46,6,46,12],[48,2,48,5],[48,6,48,12],[50,6,50,12],[51,6,51,12],[38,4,38,7],[51,2,51,5]]}
[]
[]
[]
[]
[]
[]
[]
[null,null,null,null,null,null,null,null,null,null,"Instrucciones "]
[null,"1.","Presentar formulario impreso, en DINAMA (Galicia 1133 esquina Rondeau, Mesa de Entrada planta baja de 9.15 a 16.00)."]
[null,"2.","Acompañado de certificado notarial de personería jurídica y representación legal (original para dejar o exhibir y copia para entregar)"]
[null,"3.","Acompañado de una copia certificada u original del título del profesional compentente si no está registrado en DINAMA (original para dejar o exhibir y copia para entregar)"]
[null,"4.","Acompañado de los documentos que se solicita adjuntar"]
[null,"5.","El formulario completo también deberá ser enviado en formato Excel por correo electrónico a residuos.industriales@ambiente.gub.uy"]
[]
[null,"Advertencia: ",null,null,"En caso de discrepancia en la información proporcionada en los formularios solo se considerará válida la incluida en el formulario impreso"]
[]
[null,null,null,null,null,null,null,null,null,null,null,null,null,null,null,null,null,null,"Fecha (dd/mm/aaaa)"]
[]
[]
[]
[]
[]
[null,null,"Nombre o Razón Social",null,null,null,null,null,null,"Tipo de Institución o Sociedad",null,null,null,null,null,null,"RUT"]
[]
[null,null,"Correo electrónico",null,null,null,null,null,null,"Teléfono",null,null,null,null,null,null,"Fax",null,"Página Web"]
[]
[null,null,"Domicilio de la Empresa",null,null,null,null,null,null,"Ciudad",null,null,null,null,null,null,"Departamento",null,null,null,null,"Código Postal"]
[]
[null,null,"Nombre: Titular, Representante legal o Apoderado responsable de esta Declaración",null,null,null,null,null,null,null,null,null,null,null,null,null,"C.I."]
[]
[]
[]
[null,null,"Nombre del Profesional Competente (Art. 39)",null,null,null,null,null,null,null,null,null,null,null,null,null,"Profesión"]
[]
[null,null,"C.I.",null,null,null,null,"Teléfono de contacto",null,null,null,null,null,null,null,null,"Correo electrónico"]
[]
[]
[]
[null,null,"El titular",null,{"$f":"+'I - Identificación'!C24","v":0},null,null,null,null,"habilita a DINAMA a notificarla al:"]
[]
[null,null,"A todos los efectos, las comunicaciones serán realizadas al correo electrónico  o fax que se declara y su actualización será responsabilidad del transportista"]
[]
[null,null,"Indique la dirección de todas las instalaciones asociadas al servicio de transporte dependientes del titular"]
[]
[null,null,"Planta/Taller/Depósito",null,null,null,"Dirección",null,null,null,null,null,null,"Localidad",null,null,null,"Departamento"]
[]
[]
[]
[]
[]
[]
[]
[]
[]
[]
[]
[]
[]
[]
[]
[null,null,"Fecha de Inicio de las actividades comerciales comprendidas bajo el decreto (dd/mm/aaaa)"]
[]
[]
[null,null,"Marcar los departamentos en donde realiza el servicio de transporte"]
[]
[null,null,"Artigas",null,null,"Colonia","Florida",null,null,"Montevideo",null,null,null,null,"Rivera",null,"San José ",null,"Treinta y Tres"]
[null,null,"Canelones",null,null,"Durazno","Lavalleja",null,null,"Paysandú",null,null,null,null,"Rocha",null,"Soriano"]
[null,null,"Cerro Largo",null,null,"Flores","Maldonado",null,null,"Río Negro",null,null,null,null,"Salto",null,"Tacuarembó"]

{"sheet":"II Información general","index":1,"n_rows":58,"n_cols":28,"rows_kept":58,"cut":false,"hidden":false,"merged":[[15,13,15,15],[21,14,21,15],[57,8,57,18],[6,18,6,21],[76,2,76,7],[8,18,8,21],[17,18,17,21],[13,2,13,5],[33,15,33,20]]}
[]
[]
[]
[]
[]
[null,null,null,null,null,null,null,null,null,null,null,null,null,null,null,null,null,null,"Registrante"]
[null,null,null,null,null,null,null,null,null,null,null,null,null,null,null,null,null,null,{"$f":"+'I - Identificación'!C24","v":0}]
[null,null,null,null,null,null,null,null,null,null,null,null,null,null,null,null,null,null,"Fecha (dd/mm/aaaa)"]
[null,null,null,null,null,null,null,null,null,null,null,null,null,null,null,null,null,null,{"$f":"+'I - Identificación'!S18:V18","v":"00:00:00"}]
[]
[]
[]
[null,null,"Cantidad promedio de choferes"]
[]
[]
[null,null,"Solicito habilitación para transportar residuos de categoría",null,null,null,null,null,null,null,null,null,null,"(Seleccione)"]
[]
[]
[null,null,null,null,null,null,null,null,null,null,null,null,null,null,null,null,null,null,null,null,null,null,null,null,null,null,null,"(Seleccione)"]
[null,null,null,null,null,null,null,null,null,null,null,null,null,null,null,null,null,null,null,null,null,null,null,null,null,null,null,"CAT I"]
[null,null,null,null,null,null,null,null,null,null,null,null,null,null,null,null,null,null,null,null,null,null,null,null,null,null,null,"CAT II"]
[null,null,null,null,null,null,null,null,null,null,null,null,null,null,null,null,null,null,null,null,null,null,null,null,null,null,null,"CAT I y II"]
[null,null,null,"Indique la actividad donde se originan los residuos transportados:"]
[null,null,null,"Para marcar la actividad se deberá agragar una X en el/los casillero/s correspondientes"]
[]
[]
[null,null,null,"Producción agropecuaria",null,null,null,null,null,null,"Cría intensiva de vacunos y tambos"]
[null,null,null,"Frigorífico",null,null,null,null,null,null,"Cría intensiva de porcinos"]
[null,null,null,"Industria alimenticia",null,null,null,null,null,null,"Cría intensiva de aves y avícolas"]
[null,null,null,"Industria textil",null,null,null,null,null,null,"Puertos y/o aeropuertos"]
[null,null,null,"Curtiembre",null,null,null,null,null,null,"Tratamiento de residuos sólidos"]
[null,null,null,"Industria del papel y madera",null,null,null,null,null,null,"Zonas francas o parques industriales"]
[null,null,null,"Comercialización de combustible"]
[null,null,null,"Industria química",null,null,null,null,null,null,"Otro - especifique"]
[null,null,null,"Industria farmaceútica"]
[null,null,null,"Explotación minera"]
[null,null,null,"Tratamiento de efluentes líquidos"]
[]
[]
[]
[]
[null,null,"Indique el tipo de acondicionamiento de los residuos"]
[null,null,"Para marcar la actividad se deberá agragar una X en el/los casillero/s correspondientes"]
[]
[null,null,"Granel"]
[]
[null,null,"Cisterna"]
[]
[null,null,"Barométrico"]
[]
[]
[]
[null,null,"Contenedor:",null,"Volqueta"]
[null,null,null,null,"Tambor"]
[null,null,null,null,"Barril"]
[null,null,null,null,"Bidón"]
[null,null,null,null,"Bolsas"]
[null,null,null,null,"Otro. Especifique"]

{"sheet":"III Instalación transferencia","index":2,"n_rows":44,"n_cols":17,"rows_kept":44,"cut":false,"hidden":false,"merged":[[73,2,73,7],[64,13,64,14],[23,2,29,18],[17,2,17,7],[33,2,41,18],[17,9,17,11],[19,2,19,16],[45,2,61,18],[2,13,2,16],[17,13,17,14],[15,2,15,11],[15,13,15,16],[4,13,4,16],[14,2,14,11]]}
[]
[null,null,null,null,null,null,null,null,null,null,null,null,null,"Registrante"]
[null,null,null,null,null,null,null,null,null,null,null,null,null,{"$f":"+'I - Identificación'!C24","v":0}]
[null,null,null,null,null,null,null,null,null,null,null,null,null,"Fecha (dd/mm/aaaa)"]
[null,null,null,null,null,null,null,null,null,null,null,null,null,{"$f":"+'I - Identificación'!S18","v":"00:00:00"}]
[]
[]
[]
[]
[]
[]
[null,null,"Completar en caso de que el transportista utilice una instalación de transferencia durante el transporte "]
[null,null,"de residuos"]
[]
[null,null,"Nombre o Razón Social del titular de la instalación si es distinto al del transportista",null,null,null,null,null,null,null,null,null,null,"RUT"]
[]
[null,null,"Dirección de la instalación",null,null,null,null,null,null,"Ciudad",null,null,null,"Localidad",null,null,"Teléfono"]
[]
[]
[null,null,"Adjuntar los planos de la Instalación"]
[]
[null,null,"Justificación de la necesidad de contar con la instalación"]
[]
[]
[]
[]
[]
[]
[]
[]
[]
[null,null,"Describa las características constructivas de la instalación de transferencia que garantizan el manejo "]
[null,null,"y almacenamiento seguro de los residuos"]
[]
[]
[]
[]
[]
[]
[]
[]
[]
[]
[null,null,"Detalle la gestión operativa de la instalación"]

{"sheet":"IV Vehículos de transporte","index":3,"n_rows":370,"n_cols":18,"rows_kept":370,"cut":false,"hidden":false,"merged":[[18,13,19,13],[18,10,19,10],[18,11,19,11],[18,7,18,8],[3,7,3,9],[5,7,5,9],[18,12,19,12],[18,1,19,1],[18,2,19,2],[18,3,19,3],[18,6,19,6],[18,9,19,9],[18,4,19,4],[18,5,19,5]]}
[]
[]
[]
[null,null,null,null,null,null,"Registrante",{"$f":"+'I - Identificación'!C24","v":0}]
[]
[null,null,null,null,null,null,"Fecha: ",{"$f":"'I - Identificación'!$S$18","v":"00:00:00"}]
[]
[]
[]
[null,"Ingrese en la siguiente casilla la cantidad de equipos de transporte que declarará",null,null,null,null,0,"  y haga click en el botón siguiente para generar la planilla"]
[]
[]
[null,"*Completar en caso que corresponda: Permiso Nacional de Circulación (PNC) o Cédula de Identificación (CI) corresponde a los vehículos con capacidad de más de 2 (dos) toneladas. "]
[null,"Certificado de Aptitud Técnica (CAT) correponde a los vehículos con capacidad menor o igual a 2 (dos) toneladas y que tranporten residuos peligrosos. "]
[null,"Adjuntar las copias de dichos documentos."]
[null,"Adjuntar las copias de la libreta de propiedad de los vehíchulos con capacidad de carga menor o igual a 2 (dos) toneladas."]
[null,"Adjuntar información y registro fotográfico de la cartelería para la identificación de los vehículos según se establece en el Art. 23 del Decreto 182/013."]
[]
[null,"Marca","Modelo","Año","Matrícula ","Tipo","Tipo de caja","Capacidad de carga",null,"Categoría Residuos","Número de registro de PNC o CI*","Número del CAT*","Autonomía de carga","Otro, especifique",null,null,null,"(Seleccione)"]
[null,null,null,null,null,null,null,"m3","ton",null,null,null,null,null,null,"(Seleccione)",null,"NO"]
[1,null,null,null,null,"(Seleccione)","(Seleccione)",null,null,"(Seleccione)",null,null,"(Seleccione)",null,null,"Vehículo",null,"Volcadora"]
[2,null,null,null,null,"(Seleccione)","(Seleccione)",null,null,"(Seleccione)",null,"                                                                ","(Seleccione)",null,null,"Acoplado",null,"Pluma instalada"]
[3,null,null,null,null,"(Seleccione)","(Seleccione)",null,null,"(Seleccione)",null,"                                                                ","(Seleccione)",null,null,null,null,"Otro"]
[4,null,null,null,null,"(Seleccione)","(Seleccione)",null,null,"(Seleccione)",null,"                                                                ","(Seleccione)",null,null,null,"(Seleccione)"]
[5,null,null,null,null,"(Seleccione)","(Seleccione)",null,null,"(Seleccione)",null,"                                                                ","(Seleccione)",null,null,null,"Cat. I"]
[6,null,null,null,null,"(Seleccione)","(Seleccione)",null,null,"(Seleccione)",null,"                                                                ","(Seleccione)",null,null,null,"Cat. II"]
[7,null,null,null,null,"(Seleccione)","(Seleccione)",null,null,"(Seleccione)",null,"                                                                ","(Seleccione)",null,null,null,"Cat I y II"]
[8,null,null,null,null,"(Seleccione)","(Seleccione)",null,null,"(Seleccione)",null,"                                                                ","(Seleccione)",null,null,null,"(Seleccione)"]
[9,null,null,null,null,"(Seleccione)","(Seleccione)",null,null,"(Seleccione)",null,"                                                                ","(Seleccione)",null,null,null,"Caja abierta"]
[10,null,null,null,null,"(Seleccione)","(Seleccione)",null,null,"(Seleccione)",null,"                                                                ","(Seleccione)",null,null,null,"Caja Cerrada"]
[11,null,null,null,null,"(Seleccione)","(Seleccione)",null,null,"(Seleccione)",null,"                                                                ","(Seleccione)",null,null,null,"Portacontenedor"]
[12,null,null,null,null,"(Seleccione)","(Seleccione)",null,null,"(Seleccione)",null,"                                                                ","(Seleccione)",null,null,null,"Cisterna"]
[13,null,null,null,null,"(Seleccione)","(Seleccione)",null,null,"(Seleccione)",null,"                                                                ","(Seleccione)"]
[14,null,null,null,null,"(Seleccione)","(Seleccione)",null,null,"(Seleccione)",null,"                                                                ","(Seleccione)"]
[15,null,null,null,null,"(Seleccione)","(Seleccione)",null,null,"(Seleccione)",null,"                                                                ","(Seleccione)"]
[16,null,null,null,null,"(Seleccione)","(Seleccione)",null,null,"(Seleccione)",null,"                                                                ","(Seleccione)"]
[17,null,null,null,null,"(Seleccione)","(Seleccione)",null,null,"(Seleccione)",null,"                                                                ","(Seleccione)"]
[18,null,null,null,null,"(Seleccione)","(Seleccione)",null,null,"(Seleccione)",null,"                                                                ","(Seleccione)"]
[19,null,null,null,null,"(Seleccione)","(Seleccione)",null,null,"(Seleccione)",null,"                                                                ","(Seleccione)"]
[20,null,null,null,null,"(Seleccione)","(Seleccione)",null,null,"(Seleccione)",null,"                                                                ","(Seleccione)"]
[{"$f":"+A40+1","v":21},null,null,null,null,"(Seleccione)","(Seleccione)",null,null,"(Seleccione)",null,"                                                                ","(Seleccione)"]
[{"$f":"+A41+1","v":22},null,null,null,null,"(Seleccione)","(Seleccione)",null,null,"(Seleccione)",null,"                                                                ","(Seleccione)"]
[23,null,null,null,null,"(Seleccione)","(Seleccione)",null,null,"(Seleccione)",null,"                                                                ","(Seleccione)"]
[24,null,null,null,null,"(Seleccione)","(Seleccione)",null,null,"(Seleccione)",null,"                                                                ","(Seleccione)"]
[25,null,null,null,null,"(Seleccione)","(Seleccione)",null,null,"(Seleccione)",null,"                                                                ","(Seleccione)"]
[26,null,null,null,null,"(Seleccione)","(Seleccione)",null,null,"(Seleccione)",null,"                                                                ","(Seleccione)"]
[27,null,null,null,null,"(Seleccione)","(Seleccione)",null,null,"(Seleccione)",null,"                                                                ","(Seleccione)"]
[28,null,null,null,null,"(Seleccione)","(Seleccione)",null,null,"(Seleccione)",null,"                                                                ","(Seleccione)"]
[29,null,null,null,null,"(Seleccione)","(Seleccione)",null,null,"(Seleccione)",null,"                                                                ","(Seleccione)"]
[30,null,null,null,null,"(Seleccione)","(Seleccione)",null,null,"(Seleccione)",null,"                                                                ","(Seleccione)"]
[31,null,null,null,null,"(Seleccione)","(Seleccione)",null,null,"(Seleccione)",null,"                                                                ","(Seleccione)"]
[32,null,null,null,null,"(Seleccione)","(Seleccione)",null,null,"(Seleccione)",null,"                                                                ","(Seleccione)"]
[33,null,null,null,null,"(Seleccione)","(Seleccione)",null,null,"(Seleccione)",null,"                                                                ","(Seleccione)"]
[34,null,null,null,null,"(Seleccione)","(Seleccione)",null,null,"(Seleccione)",null,"                                                                ","(Seleccione)"]
[35,null,null,null,null,"(Seleccione)","(Seleccione)",null,null,"(Seleccione)",null,"                                                                ","(Seleccione)"]
[36,null,null,null,null,"(Seleccione)","(Seleccione)",null,null,"(Seleccione)",null,"                                                                ","(Seleccione)"]
[37,null,null,null,null,"(Seleccione)","(Seleccione)",null,null,"(Seleccione)",null,"                                                                ","(Seleccione)"]
[38,null,null,null,null,"(Seleccione)","(Seleccione)",null,null,"(Seleccione)",null,"                                                                ","(Seleccione)"]
[39,null,null,null,null,"(Seleccione)","(Seleccione)",null,null,"(Seleccione)",null,"                                                                ","(Seleccione)"]
[40,null,null,null,null,"(Seleccione)","(Seleccione)",null,null,"(Seleccione)",null,"                                                                ","(Seleccione)"]
[41,null,null,null,null,"(Seleccione)","(Seleccione)",null,null,"(Seleccione)",null,"                                                                ","(Seleccione)"]
[42,null,null,null,null,"(Seleccione)","(Seleccione)",null,null,"(Seleccione)",null,"                                                                ","(Seleccione)"]
[43,null,null,null,null,"(Seleccione)","(Seleccione)",null,null,"(Seleccione)",null,"                                                                ","(Seleccione)"]
[44,null,null,null,null,"(Seleccione)","(Seleccione)",null,null,"(Seleccione)",null,"                                                                ","(Seleccione)"]
[45,null,null,null,null,"(Seleccione)","(Seleccione)",null,null,"(Seleccione)",null,"                                                                ","(Seleccione)"]
[46,null,null,null,null,"(Seleccione)","(Seleccione)",null,null,"(Seleccione)",null,"                                                                ","(Seleccione)"]
[47,null,null,null,null,"(Seleccione)","(Seleccione)",null,null,"(Seleccione)",null,"                                                                ","(Seleccione)"]
[48,null,null,null,null,"(Seleccione)","(Seleccione)",null,null,"(Seleccione)",null,"                                                                ","(Seleccione)"]
[49,null,null,null,null,"(Seleccione)","(Seleccione)",null,null,"(Seleccione)",null,"                                                                ","(Seleccione)"]
[50,null,null,null,null,"(Seleccione)","(Seleccione)",null,null,"(Seleccione)",null,"                                                                ","(Seleccione)"]
[51,null,null,null,null,"(Seleccione)","(Seleccione)",null,null,"(Seleccione)",null,"                                                                ","(Seleccione)"]
[52,null,null,null,null,"(Seleccione)","(Seleccione)",null,null,"(Seleccione)",null,"                                                                ","(Seleccione)"]
[53,null,null,null,null,"(Seleccione)","(Seleccione)",null,null,"(Seleccione)",null,"                                                                ","(Seleccione)"]
[54,null,null,null,null,"(Seleccione)","(Seleccione)",null,null,"(Seleccione)",null,"                                                                ","(Seleccione)"]
[55,null,null,null,null,"(Seleccione)","(Seleccione)",null,null,"(Seleccione)",null,"                                                                ","(Seleccione)"]
[56,null,null,null,null,"(Seleccione)","(Seleccione)",null,null,"(Seleccione)",null,"                                                                ","(Seleccione)"]
[57,null,null,null,null,"(Seleccione)","(Seleccione)",null,null,"(Seleccione)",null,"                                                                ","(Seleccione)"]
[58,null,null,null,null,"(Seleccione)","(Seleccione)",null,null,"(Seleccione)",null,"                                                                ","(Seleccione)"]
[59,null,null,null,null,"(Seleccione)","(Seleccione)",null,null,"(Seleccione)",null,"                                                                ","(Seleccione)"]
[60,null,null,null,null,"(Seleccione)","(Seleccione)",null,null,"(Seleccione)",null,"                                                                ","(Seleccione)"]
[61,null,null,null,null,"(Seleccione)","(Seleccione)",null,null,"(Seleccione)",null,"                                                                ","(Seleccione)"]
[62,null,null,null,null,"(Seleccione)","(Seleccione)",null,null,"(Seleccione)",null,"                                                                ","(Seleccione)"]
[63,null,null,null,null,"(Seleccione)","(Seleccione)",null,null,"(Seleccione)",null,"                                                                ","(Seleccione)"]
[64,null,null,null,null,"(Seleccione)","(Seleccione)",null,null,"(Seleccione)",null,"                                                                ","(Seleccione)"]
[65,null,null,null,null,"(Seleccione)","(Seleccione)",null,null,"(Seleccione)",null,"                                                                ","(Seleccione)"]
[66,null,null,null,null,"(Seleccione)","(Seleccione)",null,null,"(Seleccione)",null,"                                                                ","(Seleccione)"]
[67,null,null,null,null,"(Seleccione)","(Seleccione)",null,null,"(Seleccione)",null,"                                                                ","(Seleccione)"]
[68,null,null,null,null,"(Seleccione)","(Seleccione)",null,null,"(Seleccione)",null,"                                                                ","(Seleccione)"]
[69,null,null,null,null,"(Seleccione)","(Seleccione)",null,null,"(Seleccione)",null,"                                                                ","(Seleccione)"]
[70,null,null,null,null,"(Seleccione)","(Seleccione)",null,null,"(Seleccione)",null,"                                                                ","(Seleccione)"]
[71,null,null,null,null,"(Seleccione)","(Seleccione)",null,null,"(Seleccione)",null,"                                                                ","(Seleccione)"]
[72,null,null,null,null,"(Seleccione)","(Seleccione)",null,null,"(Seleccione)",null,"                                                                ","(Seleccione)"]
[73,null,null,null,null,"(Seleccione)","(Seleccione)",null,null,"(Seleccione)",null,"                                                                ","(Seleccione)"]
[74,null,null,null,null,"(Seleccione)","(Seleccione)",null,null,"(Seleccione)",null,"                                                                ","(Seleccione)"]
[75,null,null,null,null,"(Seleccione)","(Seleccione)",null,null,"(Seleccione)",null,"                                                                ","(Seleccione)"]
[76,null,null,null,null,"(Seleccione)","(Seleccione)",null,null,"(Seleccione)",null,"                                                                ","(Seleccione)"]
[77,null,null,null,null,"(Seleccione)","(Seleccione)",null,null,"(Seleccione)",null,"                                                                ","(Seleccione)"]
[78,null,null,null,null,"(Seleccione)","(Seleccione)",null,null,"(Seleccione)",null,"                                                                ","(Seleccione)"]
[79,null,null,null,null,"(Seleccione)","(Seleccione)",null,null,"(Seleccione)",null,"                                                                ","(Seleccione)"]
[80,null,null,null,null,"(Seleccione)","(Seleccione)",null,null,"(Seleccione)",null,"                                                                ","(Seleccione)"]
[81,null,null,null,null,"(Seleccione)","(Seleccione)",null,null,"(Seleccione)",null,"                                                                ","(Seleccione)"]
[82,null,null,null,null,"(Seleccione)","(Seleccione)",null,null,"(Seleccione)",null,"                                                                ","(Seleccione)"]
[83,null,null,null,null,"(Seleccione)","(Seleccione)",null,null,"(Seleccione)",null,"                                                                ","(Seleccione)"]
[84,null,null,null,null,"(Seleccione)","(Seleccione)",null,null,"(Seleccione)",null,"                                                                ","(Seleccione)"]
[85,null,null,null,null,"(Seleccione)","(Seleccione)",null,null,"(Seleccione)",null,"                                                                ","(Seleccione)"]
[{"$f":"+A105+1","v":86},null,null,null,null,"(Seleccione)","(Seleccione)",null,null,"(Seleccione)",null,"                                                                ","(Seleccione)"]
[87,null,null,null,null,"(Seleccione)","(Seleccione)",null,null,"(Seleccione)",null,"                                                                ","(Seleccione)"]
[88,null,null,null,null,"(Seleccione)","(Seleccione)",null,null,"(Seleccione)",null,"                                                                ","(Seleccione)"]
[89,null,null,null,null,"(Seleccione)","(Seleccione)",null,null,"(Seleccione)",null,"                                                                ","(Seleccione)"]
[90,null,null,null,null,"(Seleccione)","(Seleccione)",null,null,"(Seleccione)",null,"                                                                ","(Seleccione)"]
[91,null,null,null,null,"(Seleccione)","(Seleccione)",null,null,"(Seleccione)",null,"                                                                ","(Seleccione)"]
[92,null,null,null,null,"(Seleccione)","(Seleccione)",null,null,"(Seleccione)",null,"                                                                ","(Seleccione)"]
[93,null,null,null,null,"(Seleccione)","(Seleccione)",null,null,"(Seleccione)",null,"                                                                ","(Seleccione)"]
[94,null,null,null,null,"(Seleccione)","(Seleccione)",null,null,"(Seleccione)",null,"                                                                ","(Seleccione)"]
[95,null,null,null,null,"(Seleccione)","(Seleccione)",null,null,"(Seleccione)",null,"                                                                ","(Seleccione)"]
[96,null,null,null,null,"(Seleccione)","(Seleccione)",null,null,"(Seleccione)",null,"                                                                ","(Seleccione)"]
[97,null,null,null,null,"(Seleccione)","(Seleccione)",null,null,"(Seleccione)",null,"                                                                ","(Seleccione)"]
[98,null,null,null,null,"(Seleccione)","(Seleccione)",null,null,"(Seleccione)",null,"                                                                ","(Seleccione)"]
[99,null,null,null,null,"(Seleccione)","(Seleccione)",null,null,"(Seleccione)",null,"                                                                ","(Seleccione)"]
[100,null,null,null,null,"(Seleccione)","(Seleccione)",null,null,"(Seleccione)",null,"                                                                ","(Seleccione)"]
[101,null,null,null,null,"(Seleccione)","(Seleccione)",null,null,"(Seleccione)",null,"                                                                ","(Seleccione)"]
[102,null,null,null,null,"(Seleccione)","(Seleccione)",null,null,"(Seleccione)",null,"                                                                ","(Seleccione)"]
[103,null,null,null,null,"(Seleccione)","(Seleccione)",null,null,"(Seleccione)",null,"                                                                ","(Seleccione)"]
[104,null,null,null,null,"(Seleccione)","(Seleccione)",null,null,"(Seleccione)",null,"                                                                ","(Seleccione)"]
[105,null,null,null,null,"(Seleccione)","(Seleccione)",null,null,"(Seleccione)",null,"                                                                ","(Seleccione)"]
[106,null,null,null,null,"(Seleccione)","(Seleccione)",null,null,"(Seleccione)",null,"                                                                ","(Seleccione)"]
[107,null,null,null,null,"(Seleccione)","(Seleccione)",null,null,"(Seleccione)",null,"                                                                ","(Seleccione)"]
[108,null,null,null,null,"(Seleccione)","(Seleccione)",null,null,"(Seleccione)",null,"                                                                ","(Seleccione)"]
[109,null,null,null,null,"(Seleccione)","(Seleccione)",null,null,"(Seleccione)",null,"                                                                ","(Seleccione)"]
[110,null,null,null,null,"(Seleccione)","(Seleccione)",null,null,"(Seleccione)",null,"                                                                ","(Seleccione)"]
[111,null,null,null,null,"(Seleccione)","(Seleccione)",null,null,"(Seleccione)",null,"                                                                ","(Seleccione)"]
[112,null,null,null,null,"(Seleccione)","(Seleccione)",null,null,"(Seleccione)",null,"                                                                ","(Seleccione)"]
[113,null,null,null,null,"(Seleccione)","(Seleccione)",null,null,"(Seleccione)",null,"                                                                ","(Seleccione)"]
[114,null,null,null,null,"(Seleccione)","(Seleccione)",null,null,"(Seleccione)",null,"                                                                ","(Seleccione)"]
[115,null,null,null,null,"(Seleccione)","(Seleccione)",null,null,"(Seleccione)",null,"                                                                ","(Seleccione)"]
[116,null,null,null,null,"(Seleccione)","(Seleccione)",null,null,"(Seleccione)",null,"                                                                ","(Seleccione)"]
[117,null,null,null,null,"(Seleccione)","(Seleccione)",null,null,"(Seleccione)",null,"                                                                ","(Seleccione)"]
[118,null,null,null,null,"(Seleccione)","(Seleccione)",null,null,"(Seleccione)",null,"                                                                ","(Seleccione)"]
[119,null,null,null,null,"(Seleccione)","(Seleccione)",null,null,"(Seleccione)",null,"                                                                ","(Seleccione)"]
[120,null,null,null,null,"(Seleccione)","(Seleccione)",null,null,"(Seleccione)",null,"                                                                ","(Seleccione)"]
[121,null,null,null,null,"(Seleccione)","(Seleccione)",null,null,"(Seleccione)",null,"                                                                ","(Seleccione)"]
[122,null,null,null,null,"(Seleccione)","(Seleccione)",null,null,"(Seleccione)",null,"                                                                ","(Seleccione)"]
[123,null,null,null,null,"(Seleccione)","(Seleccione)",null,null,"(Seleccione)",null,"                                                                ","(Seleccione)"]
[124,null,null,null,null,"(Seleccione)","(Seleccione)",null,null,"(Seleccione)",null,"                                                                ","(Seleccione)"]
[125,null,null,null,null,"(Seleccione)","(Seleccione)",null,null,"(Seleccione)",null,"                                                                ","(Seleccione)"]
[126,null,null,null,null,"(Seleccione)","(Seleccione)",null,null,"(Seleccione)",null,"                                                                ","(Seleccione)"]
[127,null,null,null,null,"(Seleccione)","(Seleccione)",null,null,"(Seleccione)",null,"                                                                ","(Seleccione)"]
[128,null,null,null,null,"(Seleccione)","(Seleccione)",null,null,"(Seleccione)",null,"                                                                ","(Seleccione)"]
[129,null,null,null,null,"(Seleccione)","(Seleccione)",null,null,"(Seleccione)",null,"                                                                ","(Seleccione)"]
[130,null,null,null,null,"(Seleccione)","(Seleccione)",null,null,"(Seleccione)",null,"                                                                ","(Seleccione)"]
[131,null,null,null,null,"(Seleccione)","(Seleccione)",null,null,"(Seleccione)",null,"                                                                ","(Seleccione)"]
[132,null,null,null,null,"(Seleccione)","(Seleccione)",null,null,"(Seleccione)",null,"                                                                ","(Seleccione)"]
[133,null,null,null,null,"(Seleccione)","(Seleccione)",null,null,"(Seleccione)",null,"                                                                ","(Seleccione)"]
[134,null,null,null,null,"(Seleccione)","(Seleccione)",null,null,"(Seleccione)",null,"                                                                ","(Seleccione)"]
[135,null,null,null,null,"(Seleccione)","(Seleccione)",null,null,"(Seleccione)",null,"                                                                ","(Seleccione)"]
[136,null,null,null,null,"(Seleccione)","(Seleccione)",null,null,"(Seleccione)",null,"                                                                ","(Seleccione)"]
[137,null,null,null,null,"(Seleccione)","(Seleccione)",null,null,"(Seleccione)",null,"                                                                ","(Seleccione)"]
[138,null,null,null,null,"(Seleccione)","(Seleccione)",null,null,"(Seleccione)",null,"                                                                ","(Seleccione)"]
[139,null,null,null,null,"(Seleccione)","(Seleccione)",null,null,"(Seleccione)",null,"                                                                ","(Seleccione)"]
[140,null,null,null,null,"(Seleccione)","(Seleccione)",null,null,"(Seleccione)",null,"                                                                ","(Seleccione)"]
[141,null,null,null,null,"(Seleccione)","(Seleccione)",null,null,"(Seleccione)",null,"                                                                ","(Seleccione)"]
[142,null,null,null,null,"(Seleccione)","(Seleccione)",null,null,"(Seleccione)",null,"                                                                ","(Seleccione)"]
[143,null,null,null,null,"(Seleccione)","(Seleccione)",null,null,"(Seleccione)",null,"                                                                ","(Seleccione)"]
[144,null,null,null,null,"(Seleccione)","(Seleccione)",null,null,"(Seleccione)",null,"                                                                ","(Seleccione)"]
[145,null,null,null,null,"(Seleccione)","(Seleccione)",null,null,"(Seleccione)",null,"                                                                ","(Seleccione)"]
[146,null,null,null,null,"(Seleccione)","(Seleccione)",null,null,"(Seleccione)",null,"                                                                ","(Seleccione)"]
[147,null,null,null,null,"(Seleccione)","(Seleccione)",null,null,"(Seleccione)",null,"                                                                ","(Seleccione)"]
[148,null,null,null,null,"(Seleccione)","(Seleccione)",null,null,"(Seleccione)",null,"                                                                ","(Seleccione)"]
[149,null,null,null,null,"(Seleccione)","(Seleccione)",null,null,"(Seleccione)",null,"                                                                ","(Seleccione)"]
[{"$f":"+A169+1","v":150},null,null,null,null,"(Seleccione)","(Seleccione)",null,null,"(Seleccione)",null,"                                                                ","(Seleccione)"]
[151,null,null,null,null,"(Seleccione)","(Seleccione)",null,null,"(Seleccione)",null,"                                                                ","(Seleccione)"]
[152,null,null,null,null,"(Seleccione)","(Seleccione)",null,null,"(Seleccione)",null,"                                                                ","(Seleccione)"]
[153,null,null,null,null,"(Seleccione)","(Seleccione)",null,null,"(Seleccione)",null,"                                                                ","(Seleccione)"]
[154,null,null,null,null,"(Seleccione)","(Seleccione)",null,null,"(Seleccione)",null,"                                                                ","(Seleccione)"]
[155,null,null,null,null,"(Seleccione)","(Seleccione)",null,null,"(Seleccione)",null,"                                                                ","(Seleccione)"]
[156,null,null,null,null,"(Seleccione)","(Seleccione)",null,null,"(Seleccione)",null,"                                                                ","(Seleccione)"]
[157,null,null,null,null,"(Seleccione)","(Seleccione)",null,null,"(Seleccione)",null,"                                                                ","(Seleccione)"]
[158,null,null,null,null,"(Seleccione)","(Seleccione)",null,null,"(Seleccione)",null,"                                                                ","(Seleccione)"]
[159,null,null,null,null,"(Seleccione)","(Seleccione)",null,null,"(Seleccione)",null,"                                                                ","(Seleccione)"]
[160,null,null,null,null,"(Seleccione)","(Seleccione)",null,null,"(Seleccione)",null,"                                                                ","(Seleccione)"]
[161,null,null,null,null,"(Seleccione)","(Seleccione)",null,null,"(Seleccione)",null,"                                                                ","(Seleccione)"]
[162,null,null,null,null,"(Seleccione)","(Seleccione)",null,null,"(Seleccione)",null,"                                                                ","(Seleccione)"]
[163,null,null,null,null,"(Seleccione)","(Seleccione)",null,null,"(Seleccione)",null,"                                                                ","(Seleccione)"]
[164,null,null,null,null,"(Seleccione)","(Seleccione)",null,null,"(Seleccione)",null,"                                                                ","(Seleccione)"]
[165,null,null,null,null,"(Seleccione)","(Seleccione)",null,null,"(Seleccione)",null,"                                                                ","(Seleccione)"]
[166,null,null,null,null,"(Seleccione)","(Seleccione)",null,null,"(Seleccione)",null,"                                                                ","(Seleccione)"]
[167,null,null,null,null,"(Seleccione)","(Seleccione)",null,null,"(Seleccione)",null,"                                                                ","(Seleccione)"]
[168,null,null,null,null,"(Seleccione)","(Seleccione)",null,null,"(Seleccione)",null,"                                                                ","(Seleccione)"]
[169,null,null,null,null,"(Seleccione)","(Seleccione)",null,null,"(Seleccione)",null,"                                                                ","(Seleccione)"]
[170,null,null,null,null,"(Seleccione)","(Seleccione)",null,null,"(Seleccione)",null,"                                                                ","(Seleccione)"]
[171,null,null,null,null,"(Seleccione)","(Seleccione)",null,null,"(Seleccione)",null,"                                                                ","(Seleccione)"]
[172,null,null,null,null,"(Seleccione)","(Seleccione)",null,null,"(Seleccione)",null,"                                                                ","(Seleccione)"]
[173,null,null,null,null,"(Seleccione)","(Seleccione)",null,null,"(Seleccione)",null,"                                                                ","(Seleccione)"]
[174,null,null,null,null,"(Seleccione)","(Seleccione)",null,null,"(Seleccione)",null,"                                                                ","(Seleccione)"]
[175,null,null,null,null,"(Seleccione)","(Seleccione)",null,null,"(Seleccione)",null,"                                                                ","(Seleccione)"]
[176,null,null,null,null,"(Seleccione)","(Seleccione)",null,null,"(Seleccione)",null,"                                                                ","(Seleccione)"]
[177,null,null,null,null,"(Seleccione)","(Seleccione)",null,null,"(Seleccione)",null,"                                                                ","(Seleccione)"]
[178,null,null,null,null,"(Seleccione)","(Seleccione)",null,null,"(Seleccione)",null,"                                                                ","(Seleccione)"]
[179,null,null,null,null,"(Seleccione)","(Seleccione)",null,null,"(Seleccione)",null,"                                                                ","(Seleccione)"]
[180,null,null,null,null,"(Seleccione)","(Seleccione)",null,null,"(Seleccione)",null,"                                                                ","(Seleccione)"]
[181,null,null,null,null,"(Seleccione)","(Seleccione)",null,null,"(Seleccione)",null,"                                                                ","(Seleccione)"]
[182,null,null,null,null,"(Seleccione)","(Seleccione)",null,null,"(Seleccione)",null,"                                                                ","(Seleccione)"]
[183,null,null,null,null,"(Seleccione)","(Seleccione)",null,null,"(Seleccione)",null,"                                                                ","(Seleccione)"]
[184,null,null,null,null,"(Seleccione)","(Seleccione)",null,null,"(Seleccione)",null,"                                                                ","(Seleccione)"]
[185,null,null,null,null,"(Seleccione)","(Seleccione)",null,null,"(Seleccione)",null,"                                                                ","(Seleccione)"]
[186,null,null,null,null,"(Seleccione)","(Seleccione)",null,null,"(Seleccione)",null,"                                                                ","(Seleccione)"]
[187,null,null,null,null,"(Seleccione)","(Seleccione)",null,null,"(Seleccione)",null,"                                                                ","(Seleccione)"]
[188,null,null,null,null,"(Seleccione)","(Seleccione)",null,null,"(Seleccione)",null,"                                                                ","(Seleccione)"]
[189,null,null,null,null,"(Seleccione)","(Seleccione)",null,null,"(Seleccione)",null,"                                                                ","(Seleccione)"]
[190,null,null,null,null,"(Seleccione)","(Seleccione)",null,null,"(Seleccione)",null,"                                                                ","(Seleccione)"]
[191,null,null,null,null,"(Seleccione)","(Seleccione)",null,null,"(Seleccione)",null,"                                                                ","(Seleccione)"]
[192,null,null,null,null,"(Seleccione)","(Seleccione)",null,null,"(Seleccione)",null,"                                                                ","(Seleccione)"]
[193,null,null,null,null,"(Seleccione)","(Seleccione)",null,null,"(Seleccione)",null,"                                                                ","(Seleccione)"]
[194,null,null,null,null,"(Seleccione)","(Seleccione)",null,null,"(Seleccione)",null,"                                                                ","(Seleccione)"]
[195,null,null,null,null,"(Seleccione)","(Seleccione)",null,null,"(Seleccione)",null,"                                                                ","(Seleccione)"]
[196,null,null,null,null,"(Seleccione)","(Seleccione)",null,null,"(Seleccione)",null,"                                                                ","(Seleccione)"]
[197,null,null,null,null,"(Seleccione)","(Seleccione)",null,null,"(Seleccione)",null,"                                                                ","(Seleccione)"]
[198,null,null,null,null,"(Seleccione)","(Seleccione)",null,null,"(Seleccione)",null,"                                                                ","(Seleccione)"]
[199,null,null,null,null,"(Seleccione)","(Seleccione)",null,null,"(Seleccione)",null,"                                                                ","(Seleccione)"]
[200,null,null,null,null,"(Seleccione)","(Seleccione)",null,null,"(Seleccione)",null,"                                                                ","(Seleccione)"]
[201,null,null,null,null,"(Seleccione)","(Seleccione)",null,null,"(Seleccione)",null,"                                                                ","(Seleccione)"]
[202,null,null,null,null,"(Seleccione)","(Seleccione)",null,null,"(Seleccione)",null,"                                                                ","(Seleccione)"]
[203,null,null,null,null,"(Seleccione)","(Seleccione)",null,null,"(Seleccione)",null,"                                                                ","(Seleccione)"]
[204,null,null,null,null,"(Seleccione)","(Seleccione)",null,null,"(Seleccione)",null,"                                                                ","(Seleccione)"]
[205,null,null,null,null,"(Seleccione)","(Seleccione)",null,null,"(Seleccione)",null,"                                                                ","(Seleccione)"]
[206,null,null,null,null,"(Seleccione)","(Seleccione)",null,null,"(Seleccione)",null,"                                                                ","(Seleccione)"]
[207,null,null,null,null,"(Seleccione)","(Seleccione)",null,null,"(Seleccione)",null,"                                                                ","(Seleccione)"]
[208,null,null,null,null,"(Seleccione)","(Seleccione)",null,null,"(Seleccione)",null,"                                                                ","(Seleccione)"]
[209,null,null,null,null,"(Seleccione)","(Seleccione)",null,null,"(Seleccione)",null,"                                                                ","(Seleccione)"]
[210,null,null,null,null,"(Seleccione)","(Seleccione)",null,null,"(Seleccione)",null,"                                                                ","(Seleccione)"]
[211,null,null,null,null,"(Seleccione)","(Seleccione)",null,null,"(Seleccione)",null,"                                                                ","(Seleccione)"]
[212,null,null,null,null,"(Seleccione)","(Seleccione)",null,null,"(Seleccione)",null,"                                                                ","(Seleccione)"]
[213,null,null,null,null,"(Seleccione)","(Seleccione)",null,null,"(Seleccione)",null,"                                                                ","(Seleccione)"]
[{"$f":"+A233+1","v":214},null,null,null,null,"(Seleccione)","(Seleccione)",null,null,"(Seleccione)",null,"                                                                ","(Seleccione)"]
[215,null,null,null,null,"(Seleccione)","(Seleccione)",null,null,"(Seleccione)",null,"                                                                ","(Seleccione)"]
[216,null,null,null,null,"(Seleccione)","(Seleccione)",null,null,"(Seleccione)",null,"                                                                ","(Seleccione)"]
[217,null,null,null,null,"(Seleccione)","(Seleccione)",null,null,"(Seleccione)",null,"                                                                ","(Seleccione)"]
[218,null,null,null,null,"(Seleccione)","(Seleccione)",null,null,"(Seleccione)",null,"                                                                ","(Seleccione)"]
[219,null,null,null,null,"(Seleccione)","(Seleccione)",null,null,"(Seleccione)",null,"                                                                ","(Seleccione)"]
[220,null,null,null,null,"(Seleccione)","(Seleccione)",null,null,"(Seleccione)",null,"                                                                ","(Seleccione)"]
[221,null,null,null,null,"(Seleccione)","(Seleccione)",null,null,"(Seleccione)",null,"                                                                ","(Seleccione)"]
[222,null,null,null,null,"(Seleccione)","(Seleccione)",null,null,"(Seleccione)",null,"                                                                ","(Seleccione)"]
[223,null,null,null,null,"(Seleccione)","(Seleccione)",null,null,"(Seleccione)",null,"                                                                ","(Seleccione)"]
[224,null,null,null,null,"(Seleccione)","(Seleccione)",null,null,"(Seleccione)",null,"                                                                ","(Seleccione)"]
[225,null,null,null,null,"(Seleccione)","(Seleccione)",null,null,"(Seleccione)",null,"                                                                ","(Seleccione)"]
[226,null,null,null,null,"(Seleccione)","(Seleccione)",null,null,"(Seleccione)",null,"                                                                ","(Seleccione)"]
[227,null,null,null,null,"(Seleccione)","(Seleccione)",null,null,"(Seleccione)",null,"                                                                ","(Seleccione)"]
[228,null,null,null,null,"(Seleccione)","(Seleccione)",null,null,"(Seleccione)",null,"                                                                ","(Seleccione)"]
[229,null,null,null,null,"(Seleccione)","(Seleccione)",null,null,"(Seleccione)",null,"                                                                ","(Seleccione)"]
[230,null,null,null,null,"(Seleccione)","(Seleccione)",null,null,"(Seleccione)",null,"                                                                ","(Seleccione)"]
[231,null,null,null,null,"(Seleccione)","(Seleccione)",null,null,"(Seleccione)",null,"                                                                ","(Seleccione)"]
[232,null,null,null,null,"(Seleccione)","(Seleccione)",null,null,"(Seleccione)",null,"                                                                ","(Seleccione)"]
[233,null,null,null,null,"(Seleccione)","(Seleccione)",null,null,"(Seleccione)",null,"                                                                ","(Seleccione)"]
[234,null,null,null,null,"(Seleccione)","(Seleccione)",null,null,"(Seleccione)",null,"                                                                ","(Seleccione)"]
[235,null,null,null,null,"(Seleccione)","(Seleccione)",null,null,"(Seleccione)",null,"                                                                ","(Seleccione)"]
[236,null,null,null,null,"(Seleccione)","(Seleccione)",null,null,"(Seleccione)",null,"                                                                ","(Seleccione)"]
[237,null,null,null,null,"(Seleccione)","(Seleccione)",null,null,"(Seleccione)",null,"                                                                ","(Seleccione)"]
[238,null,null,null,null,"(Seleccione)","(Seleccione)",null,null,"(Seleccione)",null,"                                                                ","(Seleccione)"]
[239,null,null,null,null,"(Seleccione)","(Seleccione)",null,null,"(Seleccione)",null,"                                                                ","(Seleccione)"]
[240,null,null,null,null,"(Seleccione)","(Seleccione)",null,null,"(Seleccione)",null,"                                                                ","(Seleccione)"]
[241,null,null,null,null,"(Seleccione)","(Seleccione)",null,null,"(Seleccione)",null,"                                                                ","(Seleccione)"]
[242,null,null,null,null,"(Seleccione)","(Seleccione)",null,null,"(Seleccione)",null,"                                                                ","(Seleccione)"]
[243,null,null,null,null,"(Seleccione)","(Seleccione)",null,null,"(Seleccione)",null,"                                                                ","(Seleccione)"]
[244,null,null,null,null,"(Seleccione)","(Seleccione)",null,null,"(Seleccione)",null,"                                                                ","(Seleccione)"]
[245,null,null,null,null,"(Seleccione)","(Seleccione)",null,null,"(Seleccione)",null,"                                                                ","(Seleccione)"]
[246,null,null,null,null,"(Seleccione)","(Seleccione)",null,null,"(Seleccione)",null,"                                                                ","(Seleccione)"]
[247,null,null,null,null,"(Seleccione)","(Seleccione)",null,null,"(Seleccione)",null,"                                                                ","(Seleccione)"]
[248,null,null,null,null,"(Seleccione)","(Seleccione)",null,null,"(Seleccione)",null,"                                                                ","(Seleccione)"]
[249,null,null,null,null,"(Seleccione)","(Seleccione)",null,null,"(Seleccione)",null,"                                                                ","(Seleccione)"]
[250,null,null,null,null,"(Seleccione)","(Seleccione)",null,null,"(Seleccione)",null,"                                                                ","(Seleccione)"]
[251,null,null,null,null,"(Seleccione)","(Seleccione)",null,null,"(Seleccione)",null,"                                                                ","(Seleccione)"]
[252,null,null,null,null,"(Seleccione)","(Seleccione)",null,null,"(Seleccione)",null,"                                                                ","(Seleccione)"]
[253,null,null,null,null,"(Seleccione)","(Seleccione)",null,null,"(Seleccione)",null,"                                                                ","(Seleccione)"]
[254,null,null,null,null,"(Seleccione)","(Seleccione)",null,null,"(Seleccione)",null,"                                                                ","(Seleccione)"]
[255,null,null,null,null,"(Seleccione)","(Seleccione)",null,null,"(Seleccione)",null,"                                                                ","(Seleccione)"]
[256,null,null,null,null,"(Seleccione)","(Seleccione)",null,null,"(Seleccione)",null,"                                                                ","(Seleccione)"]
[257,null,null,null,null,"(Seleccione)","(Seleccione)",null,null,"(Seleccione)",null,"                                                                ","(Seleccione)"]
[258,null,null,null,null,"(Seleccione)","(Seleccione)",null,null,"(Seleccione)",null,"                                                                ","(Seleccione)"]
[259,null,null,null,null,"(Seleccione)","(Seleccione)",null,null,"(Seleccione)",null,"                                                                ","(Seleccione)"]
[260,null,null,null,null,"(Seleccione)","(Seleccione)",null,null,"(Seleccione)",null,"                                                                ","(Seleccione)"]
[261,null,null,null,null,"(Seleccione)","(Seleccione)",null,null,"(Seleccione)",null,"                                                                ","(Seleccione)"]
[262,null,null,null,null,"(Seleccione)","(Seleccione)",null,null,"(Seleccione)",null,"                                                                ","(Seleccione)"]
[263,null,null,null,null,"(Seleccione)","(Seleccione)",null,null,"(Seleccione)",null,"                                                                ","(Seleccione)"]
[264,null,null,null,null,"(Seleccione)","(Seleccione)",null,null,"(Seleccione)",null,"                                                                ","(Seleccione)"]
[265,null,null,null,null,"(Seleccione)","(Seleccione)",null,null,"(Seleccione)",null,"                                                                ","(Seleccione)"]
[266,null,null,null,null,"(Seleccione)","(Seleccione)",null,null,"(Seleccione)",null,"                                                                ","(Seleccione)"]
[267,null,null,null,null,"(Seleccione)","(Seleccione)",null,null,"(Seleccione)",null,"                                                                ","(Seleccione)"]
[268,null,null,null,null,"(Seleccione)","(Seleccione)",null,null,"(Seleccione)",null,"                                                                ","(Seleccione)"]
[269,null,null,null,null,"(Seleccione)","(Seleccione)",null,null,"(Seleccione)",null,"                                                                ","(Seleccione)"]
[270,null,null,null,null,"(Seleccione)","(Seleccione)",null,null,"(Seleccione)",null,"                                                                ","(Seleccione)"]
[271,null,null,null,null,"(Seleccione)","(Seleccione)",null,null,"(Seleccione)",null,"                                                                ","(Seleccione)"]
[272,null,null,null,null,"(Seleccione)","(Seleccione)",null,null,"(Seleccione)",null,"                                                                ","(Seleccione)"]
[273,null,null,null,null,"(Seleccione)","(Seleccione)",null,null,"(Seleccione)",null,"                                                                ","(Seleccione)"]
[274,null,null,null,null,"(Seleccione)","(Seleccione)",null,null,"(Seleccione)",null,"                                                                ","(Seleccione)"]
[275,null,null,null,null,"(Seleccione)","(Seleccione)",null,null,"(Seleccione)",null,"                                                                ","(Seleccione)"]
[276,null,null,null,null,"(Seleccione)","(Seleccione)",null,null,"(Seleccione)",null,"                                                                ","(Seleccione)"]
[277,null,null,null,null,"(Seleccione)","(Seleccione)",null,null,"(Seleccione)",null,"                                                                ","(Seleccione)"]
[{"$f":"+A297+1","v":278},null,null,null,null,"(Seleccione)","(Seleccione)",null,null,"(Seleccione)",null,"                                                                ","(Seleccione)"]
[279,null,null,null,null,"(Seleccione)","(Seleccione)",null,null,"(Seleccione)",null,"                                                                ","(Seleccione)"]
[280,null,null,null,null,"(Seleccione)","(Seleccione)",null,null,"(Seleccione)",null,"                                                                ","(Seleccione)"]
[281,null,null,null,null,"(Seleccione)","(Seleccione)",null,null,"(Seleccione)",null,"                                                                ","(Seleccione)"]
[282,null,null,null,null,"(Seleccione)","(Seleccione)",null,null,"(Seleccione)",null,"                                                                ","(Seleccione)"]
[283,null,null,null,null,"(Seleccione)","(Seleccione)",null,null,"(Seleccione)",null,"                                                                ","(Seleccione)"]
[284,null,null,null,null,"(Seleccione)","(Seleccione)",null,null,"(Seleccione)",null,"                                                                ","(Seleccione)"]
[285,null,null,null,null,"(Seleccione)","(Seleccione)",null,null,"(Seleccione)",null,"                                                                ","(Seleccione)"]
[286,null,null,null,null,"(Seleccione)","(Seleccione)",null,null,"(Seleccione)",null,"                                                                ","(Seleccione)"]
[287,null,null,null,null,"(Seleccione)","(Seleccione)",null,null,"(Seleccione)",null,"                                                                ","(Seleccione)"]
[288,null,null,null,null,"(Seleccione)","(Seleccione)",null,null,"(Seleccione)",null,"                                                                ","(Seleccione)"]
[289,null,null,null,null,"(Seleccione)","(Seleccione)",null,null,"(Seleccione)",null,"                                                                ","(Seleccione)"]
[290,null,null,null,null,"(Seleccione)","(Seleccione)",null,null,"(Seleccione)",null,"                                                                ","(Seleccione)"]
[291,null,null,null,null,"(Seleccione)","(Seleccione)",null,null,"(Seleccione)",null,"                                                                ","(Seleccione)"]
[292,null,null,null,null,"(Seleccione)","(Seleccione)",null,null,"(Seleccione)",null,"                                                                ","(Seleccione)"]
[293,null,null,null,null,"(Seleccione)","(Seleccione)",null,null,"(Seleccione)",null,"                                                                ","(Seleccione)"]
[294,null,null,null,null,"(Seleccione)","(Seleccione)",null,null,"(Seleccione)",null,"                                                                ","(Seleccione)"]
[295,null,null,null,null,"(Seleccione)","(Seleccione)",null,null,"(Seleccione)",null,"                                                                ","(Seleccione)"]
[296,null,null,null,null,"(Seleccione)","(Seleccione)",null,null,"(Seleccione)",null,"                                                                ","(Seleccione)"]
[297,null,null,null,null,"(Seleccione)","(Seleccione)",null,null,"(Seleccione)",null,"                                                                ","(Seleccione)"]
[298,null,null,null,null,"(Seleccione)","(Seleccione)",null,null,"(Seleccione)",null,"                                                                ","(Seleccione)"]
[299,null,null,null,null,"(Seleccione)","(Seleccione)",null,null,"(Seleccione)",null,"                                                                ","(Seleccione)"]
[300,null,null,null,null,"(Seleccione)","(Seleccione)",null,null,"(Seleccione)",null,"                                                                ","(Seleccione)"]
[301,null,null,null,null,"(Seleccione)","(Seleccione)",null,null,"(Seleccione)",null,"                                                                ","(Seleccione)"]
[302,null,null,null,null,"(Seleccione)","(Seleccione)",null,null,"(Seleccione)",null,"                                                                ","(Seleccione)"]
[303,null,null,null,null,"(Seleccione)","(Seleccione)",null,null,"(Seleccione)",null,"                                                                ","(Seleccione)"]
[304,null,null,null,null,"(Seleccione)","(Seleccione)",null,null,"(Seleccione)",null,"                                                                ","(Seleccione)"]
[305,null,null,null,null,"(Seleccione)","(Seleccione)",null,null,"(Seleccione)",null,"                                                                ","(Seleccione)"]
[306,null,null,null,null,"(Seleccione)","(Seleccione)",null,null,"(Seleccione)",null,"                                                                ","(Seleccione)"]
[307,null,null,null,null,"(Seleccione)","(Seleccione)",null,null,"(Seleccione)",null,"                                                                ","(Seleccione)"]
[308,null,null,null,null,"(Seleccione)","(Seleccione)",null,null,"(Seleccione)",null,"                                                                ","(Seleccione)"]
[309,null,null,null,null,"(Seleccione)","(Seleccione)",null,null,"(Seleccione)",null,"                                                                ","(Seleccione)"]
[310,null,null,null,null,"(Seleccione)","(Seleccione)",null,null,"(Seleccione)",null,"                                                                ","(Seleccione)"]
[311,null,null,null,null,"(Seleccione)","(Seleccione)",null,null,"(Seleccione)",null,"                                                                ","(Seleccione)"]
[312,null,null,null,null,"(Seleccione)","(Seleccione)",null,null,"(Seleccione)",null,"                                                                ","(Seleccione)"]
[313,null,null,null,null,"(Seleccione)","(Seleccione)",null,null,"(Seleccione)",null,"                                                                ","(Seleccione)"]
[314,null,null,null,null,"(Seleccione)","(Seleccione)",null,null,"(Seleccione)",null,"                                                                ","(Seleccione)"]
[315,null,null,null,null,"(Seleccione)","(Seleccione)",null,null,"(Seleccione)",null,"                                                                ","(Seleccione)"]
[316,null,null,null,null,"(Seleccione)","(Seleccione)",null,null,"(Seleccione)",null,"                                                                ","(Seleccione)"]
[317,null,null,null,null,"(Seleccione)","(Seleccione)",null,null,"(Seleccione)",null,"                                                                ","(Seleccione)"]
[318,null,null,null,null,"(Seleccione)","(Seleccione)",null,null,"(Seleccione)",null,"                                                                ","(Seleccione)"]
[319,null,null,null,null,"(Seleccione)","(Seleccione)",null,null,"(Seleccione)",null,"                                                                ","(Seleccione)"]
[320,null,null,null,null,"(Seleccione)","(Seleccione)",null,null,"(Seleccione)",null,"                                                                ","(Seleccione)"]
[321,null,null,null,null,"(Seleccione)","(Seleccione)",null,null,"(Seleccione)",null,"                                                                ","(Seleccione)"]
[322,null,null,null,null,"(Seleccione)","(Seleccione)",null,null,"(Seleccione)",null,"                                                                ","(Seleccione)"]
[323,null,null,null,null,"(Seleccione)","(Seleccione)",null,null,"(Seleccione)",null,"                                                                ","(Seleccione)"]
[324,null,null,null,null,"(Seleccione)","(Seleccione)",null,null,"(Seleccione)",null,"                                                                ","(Seleccione)"]
[325,null,null,null,null,"(Seleccione)","(Seleccione)",null,null,"(Seleccione)",null,"                                                                ","(Seleccione)"]
[326,null,null,null,null,"(Seleccione)","(Seleccione)",null,null,"(Seleccione)",null,"                                                                ","(Seleccione)"]
[327,null,null,null,null,"(Seleccione)","(Seleccione)",null,null,"(Seleccione)",null,"                                                                ","(Seleccione)"]
[328,null,null,null,null,"(Seleccione)","(Seleccione)",null,null,"(Seleccione)",null,"                                                                ","(Seleccione)"]
[{"$f":"+A348+1","v":329},null,null,null,null,"(Seleccione)","(Seleccione)",null,null,"(Seleccione)",null,"                                                                ","(Seleccione)"]
[{"$f":"+A349+1","v":330},null,null,null,null,"(Seleccione)","(Seleccione)",null,null,"(Seleccione)",null,"                                                                ","(Seleccione)"]
[{"$f":"+A350+1","v":331},null,null,null,null,"(Seleccione)","(Seleccione)",null,null,"(Seleccione)",null,"                                                                ","(Seleccione)"]
[332,null,null,null,null,"(Seleccione)","(Seleccione)",null,null,"(Seleccione)",null,"                                                                ","(Seleccione)"]
[333,null,null,null,null,"(Seleccione)","(Seleccione)",null,null,"(Seleccione)",null,"                                                                ","(Seleccione)"]
[334,null,null,null,null,"(Seleccione)","(Seleccione)",null,null,"(Seleccione)",null,"                                                                ","(Seleccione)"]
[335,null,null,null,null,"(Seleccione)","(Seleccione)",null,null,"(Seleccione)",null,"                                                                ","(Seleccione)"]
[336,null,null,null,null,"(Seleccione)","(Seleccione)",null,null,"(Seleccione)",null,"                                                                ","(Seleccione)"]
[337,null,null,null,null,"(Seleccione)","(Seleccione)",null,null,"(Seleccione)",null,"                                                                ","(Seleccione)"]
[338,null,null,null,null,"(Seleccione)","(Seleccione)",null,null,"(Seleccione)",null,"                                                                ","(Seleccione)"]
[339,null,null,null,null,"(Seleccione)","(Seleccione)",null,null,"(Seleccione)",null,"                                                                ","(Seleccione)"]
[340,null,null,null,null,"(Seleccione)","(Seleccione)",null,null,"(Seleccione)",null,"                                                                ","(Seleccione)"]
[341,null,null,null,null,"(Seleccione)","(Seleccione)",null,null,"(Seleccione)",null,"                                                                ","(Seleccione)"]
[342,null,null,null,null,"(Seleccione)","(Seleccione)",null,null,"(Seleccione)",null,"                                                                ","(Seleccione)"]
[343,null,null,null,null,"(Seleccione)","(Seleccione)",null,null,"(Seleccione)",null,"                                                                ","(Seleccione)"]
[344,null,null,null,null,"(Seleccione)","(Seleccione)",null,null,"(Seleccione)",null,"                                                                ","(Seleccione)"]
[345,null,null,null,null,"(Seleccione)","(Seleccione)",null,null,"(Seleccione)",null,"                                                                ","(Seleccione)"]
[346,null,null,null,null,"(Seleccione)","(Seleccione)",null,null,"(Seleccione)",null,"                                                                ","(Seleccione)"]
[347,null,null,null,null,"(Seleccione)","(Seleccione)",null,null,"(Seleccione)",null,"                                                                ","(Seleccione)"]
[348,null,null,null,null,"(Seleccione)","(Seleccione)",null,null,"(Seleccione)",null,"                                                                ","(Seleccione)"]
[{"$f":"+A368+1","v":349},null,null,null,null,"(Seleccione)","(Seleccione)",null,null,"(Seleccione)",null,"                                                                ","(Seleccione)"]
[{"$f":"+A369+1","v":350},null,null,null,null,"(Seleccione)","(Seleccione)",null,null,"(Seleccione)",null,"                                                                ","(Seleccione)"]

{"sheet":"V Listado de ResiduosyClientes","index":4,"n_rows":1016,"n_cols":27,"rows_kept":1016,"cut":false,"hidden":false,"merged":[[1092,20,1092,21],[1093,10,1093,12],[1093,13,1093,14],[1093,15,1093,17],[1093,18,1093,19],[1093,20,1093,21],[1092,10,1092,12],[1092,13,1092,14],[1092,15,1092,17],[1092,18,1092,19],[1088,20,1088,21],[1089,10,1089,12],[1089,13,1089,14],[1089,15,1089,17],[1089,18,1089,19],[1089,20,1089,21],[1088,10,1088,12],[1088,13,1088,14],[1088,15,1088,17],[1088,18,1088,19],[1090,20,1090,21],[1091,10,1091,12],[1091,13,1091,14],[1091,15,1091,17],[1091,18,1091,19],[1091,20,1091,21],[1090,10,1090,12],[1090,13,1090,14],[1090,15,1090,17],[1090,18,1090,19],[1084,20,1084,21],[1085,10,1085,12],[1085,13,1085,14],[1085,15,1085,17],[1085,18,1085,19],[1085,20,1085,21],[1084,10,1084,12],[1084,13,1084,14],[1084,15,1084,17],[1084,18,1084,19],[1086,20,1086,21],[1087,10,1087,12],[1087,13,1087,14],[1087,15,1087,17],[1087,18,1087,19],[1087,20,1087,21],[1086,10,1086,12],[1086,13,1086,14],[1086,15,1086,17],[1086,18,1086,19],[1080,20,1080,21],[1081,10,1081,12],[1081,13,1081,14],[1081,15,1081,17],[1081,18,1081,19],[1081,20,1081,21],[1080,10,1080,12],[1080,13,1080,14],[1080,15,1080,17],[1080,18,1080,19],[1082,20,1082,21],[1083,10,1083,12],[1083,13,1083,14],[1083,15,1083,17],[1083,18,1083,19],[1083,20,1083,21],[1082,10,1082,12],[1082,13,1082,14],[1082,15,1082,17],[1082,18,1082,19],[1076,20,1076,21],[1077,10,1077,12],[1077,13,1077,14],[1077,15,1077,17],[1077,18,1077,19],[1077,20,1077,21],[1076,10,1076,12],[1076,13,1076,14],[1076,15,1076,17],[1076,18,1076,19],[1078,20,1078,21],[1079,10,1079,12],[1079,13,1079,14],[1079,15,1079,17],[1079,18,1079,19],[1079,20,1079,21],[1078,10,1078,12],[1078,13,1078,14],[1078,15,1078,17],[1078,18,1078,19],[1072,20,1072,21],[1073,10,1073,12],[1073,13,1073,14],[1073,15,1073,17],[1073,18,1073,19],[1073,20,1073,21],[1072,10,1072,12],[1072,13,1072,14],[1072,15,1072,17],[1072,18,1072,19],[1074,20,1074,21],[1075,10,1075,12],[1075,13,1075,14],[1075,15,1075,17],[1075,18,1075,19],[1075,20,1075,21],[1074,10,1074,12],[1074,13,1074,14],[1074,15,1074,17],[1074,18,1074,19],[1068,20,1068,21],[1069,10,1069,12],[1069,13,1069,14],[1069,15,1069,17],[1069,18,1069,19],[1069,20,1069,21],[1068,10,1068,12],[1068,13,1068,14],[1068,15,1068,17],[1068,18,1068,19],[1070,20,1070,21],[1071,10,1071,12],[1071,13,1071,14],[1071,15,1071,17],[1071,18,1071,19],[1071,20,1071,21],[1070,10,1070,12],[1070,13,1070,14],[1070,15,1070,17],[1070,18,1070,19],[1064,20,1064,21],[1065,10,1065,12],[1065,13,1065,14],[1065,15,1065,17],[1065,18,1065,19],[1065,20,1065,21],[1064,10,1064,12],[1064,13,1064,14],[1064,15,1064,17],[1064,18,1064,19],[1066,20,1066,21],[1067,10,1067,12],[1067,13,1067,14],[1067,15,1067,17],[1067,18,1067,19],[1067,20,1067,21],[1066,10,1066,12],[1066,13,1066,14],[1066,15,1066,17],[1066,18,1066,19],[1060,20,1060,21],[1061,10,1061,12],[1061,13,1061,14],[1061,15,1061,17],[1061,18,1061,19],[1061,20,1061,21],[1060,10,1060,12],[1060,13,1060,14],[1060,15,1060,17],[1060,18,1060,19],[1062,20,1062,21],[1063,10,1063,12],[1063,13,1063,14],[1063,15,1063,17],[1063,18,1063,19],[1063,20,1063,21],[1062,10,1062,12],[1062,13,1062,14],[1062,15,1062,17],[1062,18,1062,19],[1056,20,1056,21],[1057,10,1057,12],[1057,13,1057,14],[1057,15,1057,17],[1057,18,1057,19],[1057,20,1057,21],[1056,10,1056,12],[1056,13,1056,14],[1056,15,1056,17],[1056,18,1056,19],[1058,20,1058,21],[1059,10,1059,12],[1059,13,1059,14],[1059,15,1059,17],[1059,18,1059,19],[1059,20,1059,21],[1058,10,1058,12],[1058,13,1058,14],[1058,15,1058,17],[1058,18,1058,19],[1052,20,1052,21],[1053,10,1053,12],[1053,13,1053,14],[1053,15,1053,17],[1053,18,1053,19],[1053,20,1053,21],[1052,10,1052,12],[1052,13,1052,14],[1052,15,1052,17],[1052,18,1052,19],[1054,20,1054,21],[1055,10,1055,12],[1055,13,1055,14],[1055,15,1055,17],[1055,18,1055,19],[1055,20,1055,21],[1054,10,1054,12],[1054,13,1054,14],[1054,15,1054,17],[1054,18,1054,19],[1048,20,1048,21],[1049,10,1049,12],[1049,13,1049,14],[1049,15,1049,17],[1049,18,1049,19],[1049,20,1049,21],[1048,10,1048,12],[1048,13,1048,14],[1048,15,1048,17],[1048,18,1048,19],[1050,20,1050,21],[1051,10,1051,12],[1051,13,1051,14],[1051,15,1051,17],[1051,18,1051,19],[1051,20,1051,21],[1050,10,1050,12],[1050,13,1050,14],[1050,15,1050,17],[1050,18,1050,19],[1044,20,1044,21],[1045,10,1045,12],[1045,13,1045,14],[1045,15,1045,17],[1045,18,1045,19],[1045,20,1045,21],[1044,10,1044,12],[1044,13,1044,14],[1044,15,1044,17],[1044,18,1044,19],[1046,20,1046,21],[1047,10,1047,12],[1047,13,1047,14],[1047,15,1047,17],[1047,18,1047,19],[1047,20,1047,21],[1046,10,1046,12],[1046,13,1046,14],[1046,15,1046,17],[1046,18,1046,19],[1040,20,1040,21],[1041,10,1041,12],[1041,13,1041,14],[1041,15,1041,17],[1041,18,1041,19],[1041,20,1041,21],[1040,10,1040,12],[1040,13,1040,14],[1040,15,1040,17],[1040,18,1040,19],[1042,20,1042,21],[1043,10,1043,12],[1043,13,1043,14],[1043,15,1043,17],[1043,18,1043,19],[1043,20,1043,21],[1042,10,1042,12],[1042,13,1042,14],[1042,15,1042,17],[1042,18,1042,19],[1036,20,1036,21],[1037,10,1037,12],[1037,13,1037,14],[1037,15,1037,17],[1037,18,1037,19],[1037,20,1037,21],[1036,10,1036,12],[1036,13,1036,14],[1036,15,1036,17],[1036,18,1036,19],[1038,20,1038,21],[1039,10,1039,12],[1039,13,1039,14],[1039,15,1039,17],[1039,18,1039,19],[1039,20,1039,21],[1038,10,1038,12],[1038,13,1038,14],[1038,15,1038,17],[1038,18,1038,19],[1032,20,1032,21],[1033,10,1033,12],[1033,13,1033,14],[1033,15,1033,17],[1033,18,1033,19],[1033,20,1033,21],[1032,10,1032,12],[1032,13,1032,14],[1032,15,1032,17],[1032,18,1032,19],[1034,20,1034,21],[1035,10,1035,12],[1035,13,1035,14],[1035,15,1035,17],[1035,18,1035,19],[1035,20,1035,21],[1034,10,1034,12],[1034,13,1034,14],[1034,15,1034,17],[1034,18,1034,19],[1028,20,1028,21],[1029,10,1029,12],[1029,13,1029,14],[1029,15,1029,17],[1029,18,1029,19],[1029,20,1029,21],[1028,10,1028,12],[1028,13,1028,14],[1028,15,1028,17],[1028,18,1028,19],[1030,20,1030,21],[1031,10,1031,12],[1031,13,1031,14],[1031,15,1031,17],[1031,18,1031,19],[1031,20,1031,21],[1030,10,1030,12],[1030,13,1030,14],[1030,15,1030,17],[1030,18,1030,19],[1024,20,1024,21],[1025,10,1025,12],[1025,13,1025,14],[1025,15,1025,17],[1025,18,1025,19],[1025,20,1025,21],[1024,10,1024,12],[1024,13,1024,14],[1024,15,1024,17],[1024,18,1024,19],[1026,20,1026,21],[1027,10,1027,12],[1027,13,1027,14],[1027,15,1027,17],[1027,18,1027,19],[1027,20,1027,21],[1026,10,1026,12],[1026,13,1026,14],[1026,15,1026,17],[1026,18,1026,19],[1020,20,1020,21],[1021,10,1021,12],[1021,13,1021,14],[1021,15,1021,17],[1021,18,1021,19],[1021,20,1021,21],[1020,10,1020,12],[1020,13,1020,14],[1020,15,1020,17],[1020,18,1020,19],[1022,20,1022,21],[1023,10,1023,12],[1023,13,1023,14],[1023,15,1023,17],[1023,18,1023,19],[1023,20,1023,21],[1022,10,1022,12],[1022,13,1022,14],[1022,15,1022,17],[1022,18,1022,19],[1016,20,1016,21],[1017,10,1017,12],[1017,13,1017,14],[1017,15,1017,17],[1017,18,1017,19],[1017,20,1017,21],[1016,10,1016,12],[1016,13,1016,14],[1016,15,1016,17],[1016,18,1016,19],[1018,20,1018,21],[1019,10,1019,12],[1019,13,1019,14],[1019,15,1019,17],[1019,18,1019,19],[1019,20,1019,21],[1018,10,1018,12],[1018,13,1018,14],[1018,15,1018,17],[1018,18,1018,19],[1012,20,1012,21],[1013,10,1013,12],[1013,13,1013,14],[1013,15,1013,17],[1013,18,1013,19],[1013,20,1013,21],[1012,10,1012,12],[1012,13,1012,14],[1012,15,1012,17],[1012,18,1012,19],[1014,20,1014,21],[1015,10,1015,12],[1015,13,1015,14],[1015,15,1015,17],[1015,18,1015,19],[1015,20,1015,21],[1014,10,1014,12],[1014,13,1014,14],[1014,15,1014,17],[1014,18,1014,19],[1008,20,1008,21],[1009,10,1009,12],[1009,13,1009,14],[1009,15,1009,17],[1009,18,1009,19],[1009,20,1009,21],[1008,10,1008,12],[1008,13,1008,14],[1008,15,1008,17],[1008,18,1008,19],[1010,20,1010,21],[1011,10,1011,12],[1011,13,1011,14],[1011,15,1011,17],[1011,18,1011,19],[1011,20,1011,21],[1010,10,1010,12],[1010,13,1010,14],[1010,15,1010,17],[1010,18,1010,19],[1004,20,1004,21],[1005,10,1005,12],[1005,13,1005,14],[1005,15,1005,17],[1005,18,1005,19],[1005,20,1005,21],[1004,10,1004,12],[1004,13,1004,14],[1004,15,1004,17],[1004,18,1004,19],[1006,20,1006,21],[1007,10,1007,12],[1007,13,1007,14],[1007,15,1007,17],[1007,18,1007,19],[1007,20,1007,21],[1006,10,1006,12],[1006,13,1006,14],[1006,15,1006,17],[1006,18,1006,19],[1000,20,1000,21],[1001,10,1001,12],[1001,13,1001,14],[1001,15,1001,17],[1001,18,1001,19],[1001,20,1001,21],[1000,10,1000,12],[1000,13,1000,14],[1000,15,1000,17],[1000,18,1000,19],[1002,20,1002,21],[1003,10,1003,12],[1003,13,1003,14],[1003,15,1003,17],[1003,18,1003,19],[1003,20,1003,21],[1002,10,1002,12],[1002,13,1002,14],[1002,15,1002,17],[1002,18,1002,19],[996,20,996,21],[997,10,997,12],[997,13,997,14],[997,15,997,17],[997,18,997,19],[997,20,997,21],[996,10,996,12],[996,13,996,14],[996,15,996,17],[996,18,996,19],[998,20,998,21],[999,10,999,12],[999,13,999,14],[999,15,999,17],[999,18,999,19],[999,20,999,21],[998,10,998,12],[998,13,998,14],[998,15,998,17],[998,18,998,19],[992,20,992,21],[993,10,993,12],[993,13,993,14],[993,15,993,17],[993,18,993,19],[993,20,993,21],[992,10,992,12],[992,13,992,14],[992,15,992,17],[992,18,992,19],[994,20,994,21],[995,10,995,12],[995,13,995,14],[995,15,995,17],[995,18,995,19],[995,20,995,21],[994,10,994,12],[994,13,994,14],[994,15,994,17],[994,18,994,19],[988,20,988,21],[989,10,989,12],[989,13,989,14],[989,15,989,17],[989,18,989,19],[989,20,989,21],[988,10,988,12],[988,13,988,14],[988,15,988,17],[988,18,988,19],[990,20,990,21],[991,10,991,12],[991,13,991,14],[991,15,991,17],[991,18,991,19],[991,20,991,21],[990,10,990,12],[990,13,990,14],[990,15,990,17],[990,18,990,19],[984,20,984,21],[985,10,985,12],[985,13,985,14],[985,15,985,17],[985,18,985,19],[985,20,985,21],[984,10,984,12],[984,13,984,14],[984,15,984,17],[984,18,984,19],[986,20,986,21],[987,10,987,12],[987,13,987,14],[987,15,987,17],[987,18,987,19],[987,20,987,21],[986,10,986,12],[986,13,986,14],[986,15,986,17],[986,18,986,19],[980,20,980,21],[981,10,981,12],[981,13,981,14],[981,15,981,17],[981,18,981,19],[981,20,981,21],[980,10,980,12],[980,13,980,14],[980,15,980,17],[980,18,980,19],[982,20,982,21],[983,10,983,12],[983,13,983,14],[983,15,983,17],[983,18,983,19],[983,20,983,21],[982,10,982,12],[982,13,982,14],[982,15,982,17],[982,18,982,19],[976,20,976,21],[977,10,977,12],[977,13,977,14],[977,15,977,17],[977,18,977,19],[977,20,977,21],[976,10,976,12],[976,13,976,14],[976,15,976,17],[976,18,976,19],[978,20,978,21],[979,10,979,12],[979,13,979,14],[979,15,979,17],[979,18,979,19],[979,20,979,21],[978,10,978,12],[978,13,978,14],[978,15,978,17],[978,18,978,19],[972,20,972,21],[973,10,973,12],[973,13,973,14],[973,15,973,17],[973,18,973,19],[973,20,973,21],[972,10,972,12],[972,13,972,14],[972,15,972,17],[972,18,972,19],[974,20,974,21],[975,10,975,12],[975,13,975,14],[975,15,975,17],[975,18,975,19],[975,20,975,21],[974,10,974,12],[974,13,974,14],[974,15,974,17],[974,18,974,19],[968,20,968,21],[969,10,969,12],[969,13,969,14],[969,15,969,17],[969,18,969,19],[969,20,969,21],[968,10,968,12],[968,13,968,14],[968,15,968,17],[968,18,968,19],[970,20,970,21],[971,10,971,12],[971,13,971,14],[971,15,971,17],[971,18,971,19],[971,20,971,21],[970,10,970,12],[970,13,970,14],[970,15,970,17],[970,18,970,19],[964,20,964,21],[965,10,965,12],[965,13,965,14],[965,15,965,17],[965,18,965,19],[965,20,965,21],[964,10,964,12],[964,13,964,14],[964,15,964,17],[964,18,964,19],[966,20,966,21],[967,10,967,12],[967,13,967,14],[967,15,967,17],[967,18,967,19],[967,20,967,21],[966,10,966,12],[966,13,966,14],[966,15,966,17],[966,18,966,19],[960,20,960,21],[961,10,961,12],[961,13,961,14],[961,15,961,17],[961,18,961,19],[961,20,961,21],[960,10,960,12],[960,13,960,14],[960,15,960,17],[960,18,960,19],[962,20,962,21],[963,10,963,12],[963,13,963,14],[963,15,963,17],[963,18,963,19],[963,20,963,21],[962,10,962,12],[962,13,962,14],[962,15,962,17],[962,18,962,19],[956,20,956,21],[957,10,957,12],[957,13,957,14],[957,15,957,17],[957,18,957,19],[957,20,957,21],[956,10,956,12],[956,13,956,14],[956,15,956,17],[956,18,956,19],[958,20,958,21],[959,10,959,12],[959,13,959,14],[959,15,959,17],[959,18,959,19],[959,20,959,21],[958,10,958,12],[958,13,958,14],[958,15,958,17],[958,18,958,19],[952,20,952,21],[953,10,953,12],[953,13,953,14],[953,15,953,17],[953,18,953,19],[953,20,953,21],[952,10,952,12],[952,13,952,14],[952,15,952,17],[952,18,952,19],[954,20,954,21],[955,10,955,12],[955,13,955,14],[955,15,955,17],[955,18,955,19],[955,20,955,21],[954,10,954,12],[954,13,954,14],[954,15,954,17],[954,18,954,19],[948,20,948,21],[949,10,949,12],[949,13,949,14],[949,15,949,17],[949,18,949,19],[949,20,949,21],[948,10,948,12],[948,13,948,14],[948,15,948,17],[948,18,948,19],[950,20,950,21],[951,10,951,12],[951,13,951,14],[951,15,951,17],[951,18,951,19],[951,20,951,21],[950,10,950,12],[950,13,950,14],[950,15,950,17],[950,18,950,19],[944,20,944,21],[945,10,945,12],[945,13,945,14],[945,15,945,17],[945,18,945,19],[945,20,945,21],[944,10,944,12],[944,13,944,14],[944,15,944,17],[944,18,944,19],[946,20,946,21],[947,10,947,12],[947,13,947,14],[947,15,947,17],[947,18,947,19],[947,20,947,21],[946,10,946,12],[946,13,946,14],[946,15,946,17],[946,18,946,19],[940,20,940,21],[941,10,941,12],[941,13,941,14],[941,15,941,17],[941,18,941,19],[941,20,941,21],[940,10,940,12],[940,13,940,14],[940,15,940,17],[940,18,940,19],[942,20,942,21],[943,10,943,12],[943,13,943,14],[943,15,943,17],[943,18,943,19],[943,20,943,21],[942,10,942,12],[942,13,942,14],[942,15,942,17],[942,18,942,19],[936,20,936,21],[937,10,937,12],[937,13,937,14],[937,15,937,17],[937,18,937,19],[937,20,937,21],[936,10,936,12],[936,13,936,14],[936,15,936,17],[936,18,936,19],[938,20,938,21],[939,10,939,12],[939,13,939,14],[939,15,939,17],[939,18,939,19],[939,20,939,21],[938,10,938,12],[938,13,938,14],[938,15,938,17],[938,18,938,19],[932,20,932,21],[933,10,933,12],[933,13,933,14],[933,15,933,17],[933,18,933,19],[933,20,933,21],[932,10,932,12],[932,13,932,14],[932,15,932,17],[932,18,932,19],[934,20,934,21],[935,10,935,12],[935,13,935,14],[935,15,935,17],[935,18,935,19],[935,20,935,21],[934,10,934,12],[934,13,934,14],[934,15,934,17],[934,18,934,19],[928,20,928,21],[929,10,929,12],[929,13,929,14],[929,15,929,17],[929,18,929,19],[929,20,929,21],[928,10,928,12],[928,13,928,14],[928,15,928,17],[928,18,928,19],[930,20,930,21],[931,10,931,12],[931,13,931,14],[931,15,931,17],[931,18,931,19],[931,20,931,21],[930,10,930,12],[930,13,930,14],[930,15,930,17],[930,18,930,19],[924,20,924,21],[925,10,925,12],[925,13,925,14],[925,15,925,17],[925,18,925,19],[925,20,925,21],[924,10,924,12],[924,13,924,14],[924,15,924,17],[924,18,924,19],[926,20,926,21],[927,10,927,12],[927,13,927,14],[927,15,927,17],[927,18,927,19],[927,20,927,21],[926,10,926,12],[926,13,926,14],[926,15,926,17],[926,18,926,19],[920,20,920,21],[921,10,921,12],[921,13,921,14],[921,15,921,17],[921,18,921,19],[921,20,921,21],[920,10,920,12],[920,13,920,14],[920,15,920,17],[920,18,920,19],[922,20,922,21],[923,10,923,12],[923,13,923,14],[923,15,923,17],[923,18,923,19],[923,20,923,21],[922,10,922,12],[922,13,922,14],[922,15,922,17],[922,18,922,19],[916,20,916,21],[917,10,917,12],[917,13,917,14],[917,15,917,17],[917,18,917,19],[917,20,917,21],[916,10,916,12],[916,13,916,14],[916,15,916,17],[916,18,916,19],[918,20,918,21],[919,10,919,12],[919,13,919,14],[919,15,919,17],[919,18,919,19],[919,20,919,21],[918,10,918,12],[918,13,918,14],[918,15,918,17],[918,18,918,19],[912,20,912,21],[913,10,913,12],[913,13,913,14],[913,15,913,17],[913,18,913,19],[913,20,913,21],[912,10,912,12],[912,13,912,14],[912,15,912,17],[912,18,912,19],[914,20,914,21],[915,10,915,12],[915,13,915,14],[915,15,915,17],[915,18,915,19],[915,20,915,21],[914,10,914,12],[914,13,914,14],[914,15,914,17],[914,18,914,19],[908,20,908,21],[909,10,909,12],[909,13,909,14],[909,15,909,17],[909,18,909,19],[909,20,909,21],[908,10,908,12],[908,13,908,14],[908,15,908,17],[908,18,908,19],[910,20,910,21],[911,10,911,12],[911,13,911,14],[911,15,911,17],[911,18,911,19],[911,20,911,21],[910,10,910,12],[910,13,910,14],[910,15,910,17],[910,18,910,19],[904,20,904,21],[905,10,905,12],[905,13,905,14],[905,15,905,17],[905,18,905,19],[905,20,905,21],[904,10,904,12],[904,13,904,14],[904,15,904,17],[904,18,904,19],[906,20,906,21],[907,10,907,12],[907,13,907,14],[907,15,907,17],[907,18,907,19],[907,20,907,21],[906,10,906,12],[906,13,906,14],[906,15,906,17],[906,18,906,19],[900,20,900,21],[901,10,901,12],[901,13,901,14],[901,15,901,17],[901,18,901,19],[901,20,901,21],[900,10,900,12],[900,13,900,14],[900,15,900,17],[900,18,900,19],[902,20,902,21],[903,10,903,12],[903,13,903,14],[903,15,903,17],[903,18,903,19],[903,20,903,21],[902,10,902,12],[902,13,902,14],[902,15,902,17],[902,18,902,19],[896,20,896,21],[897,10,897,12],[897,13,897,14],[897,15,897,17],[897,18,897,19],[897,20,897,21],[896,10,896,12],[896,13,896,14],[896,15,896,17],[896,18,896,19],[898,20,898,21],[899,10,899,12],[899,13,899,14],[899,15,899,17],[899,18,899,19],[899,20,899,21],[898,10,898,12],[898,13,898,14],[898,15,898,17],[898,18,898,19],[892,20,892,21],[893,10,893,12],[893,13,893,14],[893,15,893,17],[893,18,893,19],[893,20,893,21],[892,10,892,12],[892,13,892,14],[892,15,892,17],[892,18,892,19]],"merged_total":5407,"flags":["merged_cut"]}
[]
[]
[null,null,null,null,null,null,null,null,null,null,null,null,null,null,null,null,null,"Registrante",{"$f":"+'I - Identificación'!C24","v":0}]
[null,null,null,null,null,null,{"$f":"IF(AND($E$228>0,$J$230=0),\"Complete\",\"  \")","v":"  "}]
[null,null,null,null,null,null,null,null,null,null,null,null,null,null,null,null,null,"Fecha",{"$f":"'I - Identificación'!$S$18","v":"00:00:00"}]
[null,null,null,null,null,null,null,null,{"$f":"IF(AND(J17=Z30,K17= \" \"),\" \",\" \")","v":" "}]
[]
[]
[]
[null,null,"Ingrese en la siguiente casilla el número de filas que usarán",null,null,null,0,"  y haga click en el botón siguiente para generar la planilla"]
[]
[]
[null,"*Completar con información del último año de actividad."]
[null,"*La información deberá presentarse discriminando por residuo, generador y destino, utilizando la cantidad de filas que sean necesarias."]
[null,"Cliente/Generador",null,"Tipo de servicio","Categoría Residuos","Identificación del residuo","Estado Físico","Cantidad Anual ",null,"Acondicionamiento de la carga",null,null,null,"Gestor / Destino Final",null,null,null,null,null,null,null,null,null,null,null,"(Seleccione)"]
[null,"Razón Social","Rut",null,null,null,null,"Valor","Unidades","Tipo","Otro                                Especifique",null,null,"Nombre o Razón Social",null,"RUT",null,null,"Dirección",null,"Localidad/             Departamento",null,null,null,null,"Sólido"]
[1,null,null,"(Seleccione)","(Seleccione)",null,"(Seleccione)",null,"(Seleccione)","(Seleccione)",null,null,null,null,null,null,null,null,null,null,null,null,null,null,null,"Semisólido","(Seleccione)"]
[2,null,null,"(Seleccione)","(Seleccione)",null,"(Seleccione)",null,"(Seleccione)","(Seleccione)",null,null,null,null,null,null,null,null,null,null,null,null,null,null,null,"Líquido","Periódico"]
[3,null,null,"(Seleccione)","(Seleccione)",null,"(Seleccione)",null,"(Seleccione)","(Seleccione)",null,null,null,null,null,null,null,null,null,null,null,null,null,null,null,"Gaseoso","Esporádico"]
[4,null,null,"(Seleccione)","(Seleccione)",null,"(Seleccione)",null,"(Seleccione)","(Seleccione)"]
[5,null,null,"(Seleccione)","(Seleccione)",null,"(Seleccione)",null,"(Seleccione)","(Seleccione)",null,null,null,null,null,null,null,null,null,null,null,null,null,null,null,"(Seleccione)"]
[6,null,null,"(Seleccione)","(Seleccione)",null,"(Seleccione)",null,"(Seleccione)","(Seleccione)",null,null,null,null,null,null,null,null,null,null,null,null,null,null,null,"Ton"]
[7,null,null,"(Seleccione)","(Seleccione)",null,"(Seleccione)",null,"(Seleccione)","(Seleccione)",null,null,null,null,null,null,null,null,null,null,null,null,null,null,null,"m3"]
[8,null,null,"(Seleccione)","(Seleccione)",null,"(Seleccione)",null,"(Seleccione)","(Seleccione)"]
[9,null,null,"(Seleccione)","(Seleccione)",null,"(Seleccione)",null,"(Seleccione)","(Seleccione)",null,null,null,null,null,null,null,null,null,null,null,null,null,null,null,"(Seleccione)"]
[10,null,null,"(Seleccione)","(Seleccione)",null,"(Seleccione)",null,"(Seleccione)","(Seleccione)",null,null,null,null,null,null,null,null,null,null,null,null,null,null,null,"Granel"]
[11,null,null,"(Seleccione)","(Seleccione)",null,"(Seleccione)",null,"(Seleccione)","(Seleccione)",null,null,null,null,null,null,null,null,null,null,null,null,null,null,null,"Contenedor"]
[12,null,null,"(Seleccione)","(Seleccione)",null,"(Seleccione)",null,"(Seleccione)","(Seleccione)",null,null,null,null,null,null,null,null,null,null,null,null,null,null,null,"Bolsones"]
[13,null,null,"(Seleccione)","(Seleccione)",null,"(Seleccione)",null,"(Seleccione)","(Seleccione)",null,null,null,null,null,null,null,null,null,null,null,null,null,null,null,"Recip. presión"]
[14,null,null,"(Seleccione)","(Seleccione)",null,"(Seleccione)",null,"(Seleccione)","(Seleccione)",null,null,null,null,null,null,null,null,null,null,null,null,null,null,null,"Otro"]
[15,null,null,"(Seleccione)","(Seleccione)",null,"(Seleccione)",null,"(Seleccione)","(Seleccione)"]
[16,null,null,"(Seleccione)","(Seleccione)",null,"(Seleccione)",null,"(Seleccione)","(Seleccione)",null,null,null,null,null,null,null,null,null,null,null,null,null,null,null,"(Seleccione)"]
[17,null,null,"(Seleccione)","(Seleccione)",null,"(Seleccione)",null,"(Seleccione)","(Seleccione)",null,null,null,null,null,null,null,null,null,null,null,null,null,null,null,"Cat. I"]
[18,null,null,"(Seleccione)","(Seleccione)",null,"(Seleccione)",null,"(Seleccione)","(Seleccione)",null,null,null,null,null,null,null,null,null,null,null,null,null,null,null,"Cat. II"]
[19,null,null,"(Seleccione)","(Seleccione)",null,"(Seleccione)",null,"(Seleccione)","(Seleccione)"]
[20,null,null,"(Seleccione)","(Seleccione)",null,"(Seleccione)",null,"(Seleccione)","(Seleccione)"]
[21,null,null,"(Seleccione)","(Seleccione)",null,"(Seleccione)",null,"(Seleccione)","(Seleccione)"]
[22,null,null,"(Seleccione)","(Seleccione)",null,"(Seleccione)",null,"(Seleccione)","(Seleccione)"]
[23,null,null,"(Seleccione)","(Seleccione)",null,"(Seleccione)",null,"(Seleccione)","(Seleccione)"]
[24,null,null,"(Seleccione)","(Seleccione)",null,"(Seleccione)",null,"(Seleccione)","(Seleccione)"]
[25,null,null,"(Seleccione)","(Seleccione)",null,"(Seleccione)",null,"(Seleccione)","(Seleccione)"]
[26,null,null,"(Seleccione)","(Seleccione)",null,"(Seleccione)",null,"(Seleccione)","(Seleccione)"]
[27,null,null,"(Seleccione)","(Seleccione)",null,"(Seleccione)",null,"(Seleccione)","(Seleccione)"]
[28,null,null,"(Seleccione)","(Seleccione)",null,"(Seleccione)",null,"(Seleccione)","(Seleccione)"]
[29,null,null,"(Seleccione)","(Seleccione)",null,"(Seleccione)",null,"(Seleccione)","(Seleccione)"]
[30,null,null,"(Seleccione)","(Seleccione)",null,"(Seleccione)",null,"(Seleccione)","(Seleccione)"]
[31,null,null,"(Seleccione)","(Seleccione)",null,"(Seleccione)",null,"(Seleccione)","(Seleccione)"]
[32,null,null,"(Seleccione)","(Seleccione)",null,"(Seleccione)",null,"(Seleccione)","(Seleccione)"]
[33,null,null,"(Seleccione)","(Seleccione)",null,"(Seleccione)",null,"(Seleccione)","(Seleccione)"]
[34,null,null,"(Seleccione)","(Seleccione)",null,"(Seleccione)",null,"(Seleccione)","(Seleccione)"]
[35,null,null,"(Seleccione)","(Seleccione)",null,"(Seleccione)",null,"(Seleccione)","(Seleccione)"]
[36,null,null,"(Seleccione)","(Seleccione)",null,"(Seleccione)",null,"(Seleccione)","(Seleccione)"]
[37,null,null,"(Seleccione)","(Seleccione)",null,"(Seleccione)",null,"(Seleccione)","(Seleccione)"]
[38,null,null,"(Seleccione)","(Seleccione)",null,"(Seleccione)",null,"(Seleccione)","(Seleccione)"]
[39,null,null,"(Seleccione)","(Seleccione)",null,"(Seleccione)",null,"(Seleccione)","(Seleccione)"]
[40,null,null,"(Seleccione)","(Seleccione)",null,"(Seleccione)",null,"(Seleccione)","(Seleccione)"]
[41,null,null,"(Seleccione)","(Seleccione)",null,"(Seleccione)",null,"(Seleccione)","(Seleccione)"]
[42,null,null,"(Seleccione)","(Seleccione)",null,"(Seleccione)",null,"(Seleccione)","(Seleccione)"]
[43,null,null,"(Seleccione)","(Seleccione)",null,"(Seleccione)",null,"(Seleccione)","(Seleccione)"]
[44,null,null,"(Seleccione)","(Seleccione)",null,"(Seleccione)",null,"(Seleccione)","(Seleccione)"]
[45,null,null,"(Seleccione)","(Seleccione)",null,"(Seleccione)",null,"(Seleccione)","(Seleccione)"]
[46,null,null,"(Seleccione)","(Seleccione)",null,"(Seleccione)",null,"(Seleccione)","(Seleccione)"]
[47,null,null,"(Seleccione)","(Seleccione)",null,"(Seleccione)",null,"(Seleccione)","(Seleccione)"]
[48,null,null,"(Seleccione)","(Seleccione)",null,"(Seleccione)",null,"(Seleccione)","(Seleccione)"]
[49,null,null,"(Seleccione)","(Seleccione)",null,"(Seleccione)",null,"(Seleccione)","(Seleccione)"]
[50,null,null,"(Seleccione)","(Seleccione)",null,"(Seleccione)",null,"(Seleccione)","(Seleccione)"]
[51,null,null,"(Seleccione)","(Seleccione)",null,"(Seleccione)",null,"(Seleccione)","(Seleccione)"]
[52,null,null,"(Seleccione)","(Seleccione)",null,"(Seleccione)",null,"(Seleccione)","(Seleccione)"]
[53,null,null,"(Seleccione)","(Seleccione)",null,"(Seleccione)",null,"(Seleccione)","(Seleccione)"]
[54,null,null,"(Seleccione)","(Seleccione)",null,"(Seleccione)",null,"(Seleccione)","(Seleccione)"]
[55,null,null,"(Seleccione)","(Seleccione)",null,"(Seleccione)",null,"(Seleccione)","(Seleccione)"]
[56,null,null,"(Seleccione)","(Seleccione)",null,"(Seleccione)",null,"(Seleccione)","(Seleccione)"]
[57,null,null,"(Seleccione)","(Seleccione)",null,"(Seleccione)",null,"(Seleccione)","(Seleccione)"]
[58,null,null,"(Seleccione)","(Seleccione)",null,"(Seleccione)",null,"(Seleccione)","(Seleccione)"]
[59,null,null,"(Seleccione)","(Seleccione)",null,"(Seleccione)",null,"(Seleccione)","(Seleccione)"]
[60,null,null,"(Seleccione)","(Seleccione)",null,"(Seleccione)",null,"(Seleccione)","(Seleccione)"]
[61,null,null,"(Seleccione)","(Seleccione)",null,"(Seleccione)",null,"(Seleccione)","(Seleccione)"]
[62,null,null,"(Seleccione)","(Seleccione)",null,"(Seleccione)",null,"(Seleccione)","(Seleccione)"]
[63,null,null,"(Seleccione)","(Seleccione)",null,"(Seleccione)",null,"(Seleccione)","(Seleccione)"]
[64,null,null,"(Seleccione)","(Seleccione)",null,"(Seleccione)",null,"(Seleccione)","(Seleccione)"]
[65,null,null,"(Seleccione)","(Seleccione)",null,"(Seleccione)",null,"(Seleccione)","(Seleccione)"]
[66,null,null,"(Seleccione)","(Seleccione)",null,"(Seleccione)",null,"(Seleccione)","(Seleccione)"]
[67,null,null,"(Seleccione)","(Seleccione)",null,"(Seleccione)",null,"(Seleccione)","(Seleccione)"]
[68,null,null,"(Seleccione)","(Seleccione)",null,"(Seleccione)",null,"(Seleccione)","(Seleccione)"]
[69,null,null,"(Seleccione)","(Seleccione)",null,"(Seleccione)",null,"(Seleccione)","(Seleccione)"]
[70,null,null,"(Seleccione)","(Seleccione)",null,"(Seleccione)",null,"(Seleccione)","(Seleccione)"]
[71,null,null,"(Seleccione)","(Seleccione)",null,"(Seleccione)",null,"(Seleccione)","(Seleccione)"]
[72,null,null,"(Seleccione)","(Seleccione)",null,"(Seleccione)",null,"(Seleccione)","(Seleccione)"]
[73,null,null,"(Seleccione)","(Seleccione)",null,"(Seleccione)",null,"(Seleccione)","(Seleccione)"]
[74,null,null,"(Seleccione)","(Seleccione)",null,"(Seleccione)",null,"(Seleccione)","(Seleccione)"]
[75,null,null,"(Seleccione)","(Seleccione)",null,"(Seleccione)",null,"(Seleccione)","(Seleccione)"]
[76,null,null,"(Seleccione)","(Seleccione)",null,"(Seleccione)",null,"(Seleccione)","(Seleccione)"]
[77,null,null,"(Seleccione)","(Seleccione)",null,"(Seleccione)",null,"(Seleccione)","(Seleccione)"]
[78,null,null,"(Seleccione)","(Seleccione)",null,"(Seleccione)",null,"(Seleccione)","(Seleccione)"]
[79,null,null,"(Seleccione)","(Seleccione)",null,"(Seleccione)",null,"(Seleccione)","(Seleccione)"]
[80,null,null,"(Seleccione)","(Seleccione)",null,"(Seleccione)",null,"(Seleccione)","(Seleccione)"]
[81,null,null,"(Seleccione)","(Seleccione)",null,"(Seleccione)",null,"(Seleccione)","(Seleccione)"]
[82,null,null,"(Seleccione)","(Seleccione)",null,"(Seleccione)",null,"(Seleccione)","(Seleccione)"]
[83,null,null,"(Seleccione)","(Seleccione)",null,"(Seleccione)",null,"(Seleccione)","(Seleccione)"]
[84,null,null,"(Seleccione)","(Seleccione)",null,"(Seleccione)",null,"(Seleccione)","(Seleccione)"]
[85,null,null,"(Seleccione)","(Seleccione)",null,"(Seleccione)",null,"(Seleccione)","(Seleccione)"]
[86,null,null,"(Seleccione)","(Seleccione)",null,"(Seleccione)",null,"(Seleccione)","(Seleccione)"]
[87,null,null,"(Seleccione)","(Seleccione)",null,"(Seleccione)",null,"(Seleccione)","(Seleccione)"]
[88,null,null,"(Seleccione)","(Seleccione)",null,"(Seleccione)",null,"(Seleccione)","(Seleccione)"]
[89,null,null,"(Seleccione)","(Seleccione)",null,"(Seleccione)",null,"(Seleccione)","(Seleccione)"]
[90,null,null,"(Seleccione)","(Seleccione)",null,"(Seleccione)",null,"(Seleccione)","(Seleccione)"]
[91,null,null,"(Seleccione)","(Seleccione)",null,"(Seleccione)",null,"(Seleccione)","(Seleccione)"]
[92,null,null,"(Seleccione)","(Seleccione)",null,"(Seleccione)",null,"(Seleccione)","(Seleccione)"]
[93,null,null,"(Seleccione)","(Seleccione)",null,"(Seleccione)",null,"(Seleccione)","(Seleccione)"]
[94,null,null,"(Seleccione)","(Seleccione)",null,"(Seleccione)",null,"(Seleccione)","(Seleccione)"]
[95,null,null,"(Seleccione)","(Seleccione)",null,"(Seleccione)",null,"(Seleccione)","(Seleccione)"]
[96,null,null,"(Seleccione)","(Seleccione)",null,"(Seleccione)",null,"(Seleccione)","(Seleccione)"]
[97,null,null,"(Seleccione)","(Seleccione)",null,"(Seleccione)",null,"(Seleccione)","(Seleccione)"]
[98,null,null,"(Seleccione)","(Seleccione)",null,"(Seleccione)",null,"(Seleccione)","(Seleccione)"]
[99,null,null,"(Seleccione)","(Seleccione)",null,"(Seleccione)",null,"(Seleccione)","(Seleccione)"]
[100,null,null,"(Seleccione)","(Seleccione)",null,"(Seleccione)",null,"(Seleccione)","(Seleccione)"]
[101,null,null,"(Seleccione)","(Seleccione)",null,"(Seleccione)",null,"(Seleccione)","(Seleccione)"]
[102,null,null,"(Seleccione)","(Seleccione)",null,"(Seleccione)",null,"(Seleccione)","(Seleccione)"]
[103,null,null,"(Seleccione)","(Seleccione)",null,"(Seleccione)",null,"(Seleccione)","(Seleccione)"]
[104,null,null,"(Seleccione)","(Seleccione)",null,"(Seleccione)",null,"(Seleccione)","(Seleccione)"]
[105,null,null,"(Seleccione)","(Seleccione)",null,"(Seleccione)",null,"(Seleccione)","(Seleccione)"]
[106,null,null,"(Seleccione)","(Seleccione)",null,"(Seleccione)",null,"(Seleccione)","(Seleccione)"]
[107,null,null,"(Seleccione)","(Seleccione)",null,"(Seleccione)",null,"(Seleccione)","(Seleccione)"]
[108,null,null,"(Seleccione)","(Seleccione)",null,"(Seleccione)",null,"(Seleccione)","(Seleccione)"]
[109,null,null,"(Seleccione)","(Seleccione)",null,"(Seleccione)",null,"(Seleccione)","(Seleccione)"]
[110,null,null,"(Seleccione)","(Seleccione)",null,"(Seleccione)",null,"(Seleccione)","(Seleccione)"]
[111,null,null,"(Seleccione)","(Seleccione)",null,"(Seleccione)",null,"(Seleccione)","(Seleccione)"]
[112,null,null,"(Seleccione)","(Seleccione)",null,"(Seleccione)",null,"(Seleccione)","(Seleccione)"]
[113,null,null,"(Seleccione)","(Seleccione)",null,"(Seleccione)",null,"(Seleccione)","(Seleccione)"]
[114,null,null,"(Seleccione)","(Seleccione)",null,"(Seleccione)",null,"(Seleccione)","(Seleccione)"]
[115,null,null,"(Seleccione)","(Seleccione)",null,"(Seleccione)",null,"(Seleccione)","(Seleccione)"]
[116,null,null,"(Seleccione)","(Seleccione)",null,"(Seleccione)",null,"(Seleccione)","(Seleccione)"]
[117,null,null,"(Seleccione)","(Seleccione)",null,"(Seleccione)",null,"(Seleccione)","(Seleccione)"]
[118,null,null,"(Seleccione)","(Seleccione)",null,"(Seleccione)",null,"(Seleccione)","(Seleccione)"]
[119,null,null,"(Seleccione)","(Seleccione)",null,"(Seleccione)",null,"(Seleccione)","(Seleccione)"]
[120,null,null,"(Seleccione)","(Seleccione)",null,"(Seleccione)",null,"(Seleccione)","(Seleccione)"]
[121,null,null,"(Seleccione)","(Seleccione)",null,"(Seleccione)",null,"(Seleccione)","(Seleccione)"]
[122,null,null,"(Seleccione)","(Seleccione)",null,"(Seleccione)",null,"(Seleccione)","(Seleccione)"]
[123,null,null,"(Seleccione)","(Seleccione)",null,"(Seleccione)",null,"(Seleccione)","(Seleccione)"]
[124,null,null,"(Seleccione)","(Seleccione)",null,"(Seleccione)",null,"(Seleccione)","(Seleccione)"]
[125,null,null,"(Seleccione)","(Seleccione)",null,"(Seleccione)",null,"(Seleccione)","(Seleccione)"]
[126,null,null,"(Seleccione)","(Seleccione)",null,"(Seleccione)",null,"(Seleccione)","(Seleccione)"]
[127,null,null,"(Seleccione)","(Seleccione)",null,"(Seleccione)",null,"(Seleccione)","(Seleccione)"]
[128,null,null,"(Seleccione)","(Seleccione)",null,"(Seleccione)",null,"(Seleccione)","(Seleccione)"]
[129,null,null,"(Seleccione)","(Seleccione)",null,"(Seleccione)",null,"(Seleccione)","(Seleccione)"]
[130,null,null,"(Seleccione)","(Seleccione)",null,"(Seleccione)",null,"(Seleccione)","(Seleccione)"]
[131,null,null,"(Seleccione)","(Seleccione)",null,"(Seleccione)",null,"(Seleccione)","(Seleccione)"]
[132,null,null,"(Seleccione)","(Seleccione)",null,"(Seleccione)",null,"(Seleccione)","(Seleccione)"]
[133,null,null,"(Seleccione)","(Seleccione)",null,"(Seleccione)",null,"(Seleccione)","(Seleccione)"]
[134,null,null,"(Seleccione)","(Seleccione)",null,"(Seleccione)",null,"(Seleccione)","(Seleccione)"]
[135,null,null,"(Seleccione)","(Seleccione)",null,"(Seleccione)",null,"(Seleccione)","(Seleccione)"]
[136,null,null,"(Seleccione)","(Seleccione)",null,"(Seleccione)",null,"(Seleccione)","(Seleccione)"]
[137,null,null,"(Seleccione)","(Seleccione)",null,"(Seleccione)",null,"(Seleccione)","(Seleccione)"]
[138,null,null,"(Seleccione)","(Seleccione)",null,"(Seleccione)",null,"(Seleccione)","(Seleccione)"]
[139,null,null,"(Seleccione)","(Seleccione)",null,"(Seleccione)",null,"(Seleccione)","(Seleccione)"]
[140,null,null,"(Seleccione)","(Seleccione)",null,"(Seleccione)",null,"(Seleccione)","(Seleccione)"]
[141,null,null,"(Seleccione)","(Seleccione)",null,"(Seleccione)",null,"(Seleccione)","(Seleccione)"]
[142,null,null,"(Seleccione)","(Seleccione)",null,"(Seleccione)",null,"(Seleccione)","(Seleccione)"]
[143,null,null,"(Seleccione)","(Seleccione)",null,"(Seleccione)",null,"(Seleccione)","(Seleccione)"]
[144,null,null,"(Seleccione)","(Seleccione)",null,"(Seleccione)",null,"(Seleccione)","(Seleccione)"]
[145,null,null,"(Seleccione)","(Seleccione)",null,"(Seleccione)",null,"(Seleccione)","(Seleccione)"]
[146,null,null,"(Seleccione)","(Seleccione)",null,"(Seleccione)",null,"(Seleccione)","(Seleccione)"]
[147,null,null,"(Seleccione)","(Seleccione)",null,"(Seleccione)",null,"(Seleccione)","(Seleccione)"]
[148,null,null,"(Seleccione)","(Seleccione)",null,"(Seleccione)",null,"(Seleccione)","(Seleccione)"]
[149,null,null,"(Seleccione)","(Seleccione)",null,"(Seleccione)",null,"(Seleccione)","(Seleccione)"]
[150,null,null,"(Seleccione)","(Seleccione)",null,"(Seleccione)",null,"(Seleccione)","(Seleccione)"]
[151,null,null,"(Seleccione)","(Seleccione)",null,"(Seleccione)",null,"(Seleccione)","(Seleccione)"]
[152,null,null,"(Seleccione)","(Seleccione)",null,"(Seleccione)",null,"(Seleccione)","(Seleccione)"]
[153,null,null,"(Seleccione)","(Seleccione)",null,"(Seleccione)",null,"(Seleccione)","(Seleccione)"]
[154,null,null,"(Seleccione)","(Seleccione)",null,"(Seleccione)",null,"(Seleccione)","(Seleccione)"]
[155,null,null,"(Seleccione)","(Seleccione)",null,"(Seleccione)",null,"(Seleccione)","(Seleccione)"]
[156,null,null,"(Seleccione)","(Seleccione)",null,"(Seleccione)",null,"(Seleccione)","(Seleccione)"]
[157,null,null,"(Seleccione)","(Seleccione)",null,"(Seleccione)",null,"(Seleccione)","(Seleccione)"]
[158,null,null,"(Seleccione)","(Seleccione)",null,"(Seleccione)",null,"(Seleccione)","(Seleccione)"]
[159,null,null,"(Seleccione)","(Seleccione)",null,"(Seleccione)",null,"(Seleccione)","(Seleccione)"]
[160,null,null,"(Seleccione)","(Seleccione)",null,"(Seleccione)",null,"(Seleccione)","(Seleccione)"]
[161,null,null,"(Seleccione)","(Seleccione)",null,"(Seleccione)",null,"(Seleccione)","(Seleccione)"]
[162,null,null,"(Seleccione)","(Seleccione)",null,"(Seleccione)",null,"(Seleccione)","(Seleccione)"]
[163,null,null,"(Seleccione)","(Seleccione)",null,"(Seleccione)",null,"(Seleccione)","(Seleccione)"]
[164,null,null,"(Seleccione)","(Seleccione)",null,"(Seleccione)",null,"(Seleccione)","(Seleccione)"]
[165,null,null,"(Seleccione)","(Seleccione)",null,"(Seleccione)",null,"(Seleccione)","(Seleccione)"]
[166,null,null,"(Seleccione)","(Seleccione)",null,"(Seleccione)",null,"(Seleccione)","(Seleccione)"]
[167,null,null,"(Seleccione)","(Seleccione)",null,"(Seleccione)",null,"(Seleccione)","(Seleccione)"]
[168,null,null,"(Seleccione)","(Seleccione)",null,"(Seleccione)",null,"(Seleccione)","(Seleccione)"]
[169,null,null,"(Seleccione)","(Seleccione)",null,"(Seleccione)",null,"(Seleccione)","(Seleccione)"]
[170,null,null,"(Seleccione)","(Seleccione)",null,"(Seleccione)",null,"(Seleccione)","(Seleccione)"]
[171,null,null,"(Seleccione)","(Seleccione)",null,"(Seleccione)",null,"(Seleccione)","(Seleccione)"]
[172,null,null,"(Seleccione)","(Seleccione)",null,"(Seleccione)",null,"(Seleccione)","(Seleccione)"]
[173,null,null,"(Seleccione)","(Seleccione)",null,"(Seleccione)",null,"(Seleccione)","(Seleccione)"]
[174,null,null,"(Seleccione)","(Seleccione)",null,"(Seleccione)",null,"(Seleccione)","(Seleccione)"]
[175,null,null,"(Seleccione)","(Seleccione)",null,"(Seleccione)",null,"(Seleccione)","(Seleccione)"]
[176,null,null,"(Seleccione)","(Seleccione)",null,"(Seleccione)",null,"(Seleccione)","(Seleccione)"]
[177,null,null,"(Seleccione)","(Seleccione)",null,"(Seleccione)",null,"(Seleccione)","(Seleccione)"]
[178,null,null,"(Seleccione)","(Seleccione)",null,"(Seleccione)",null,"(Seleccione)","(Seleccione)"]
[179,null,null,"(Seleccione)","(Seleccione)",null,"(Seleccione)",null,"(Seleccione)","(Seleccione)"]
[180,null,null,"(Seleccione)","(Seleccione)",null,"(Seleccione)",null,"(Seleccione)","(Seleccione)"]
[181,null,null,"(Seleccione)","(Seleccione)",null,"(Seleccione)",null,"(Seleccione)","(Seleccione)"]
[182,null,null,"(Seleccione)","(Seleccione)",null,"(Seleccione)",null,"(Seleccione)","(Seleccione)"]
[183,null,null,"(Seleccione)","(Seleccione)",null,"(Seleccione)",null,"(Seleccione)","(Seleccione)"]
[184,null,null,"(Seleccione)","(Seleccione)",null,"(Seleccione)",null,"(Seleccione)","(Seleccione)"]
[185,null,null,"(Seleccione)","(Seleccione)",null,"(Seleccione)",null,"(Seleccione)","(Seleccione)"]
[186,null,null,"(Seleccione)","(Seleccione)",null,"(Seleccione)",null,"(Seleccione)","(Seleccione)"]
[187,null,null,"(Seleccione)","(Seleccione)",null,"(Seleccione)",null,"(Seleccione)","(Seleccione)"]
[188,null,null,"(Seleccione)","(Seleccione)",null,"(Seleccione)",null,"(Seleccione)","(Seleccione)"]
[189,null,null,"(Seleccione)","(Seleccione)",null,"(Seleccione)",null,"(Seleccione)","(Seleccione)"]
[190,null,null,"(Seleccione)","(Seleccione)",null,"(Seleccione)",null,"(Seleccione)","(Seleccione)"]
[191,null,null,"(Seleccione)","(Seleccione)",null,"(Seleccione)",null,"(Seleccione)","(Seleccione)"]
[192,null,null,"(Seleccione)","(Seleccione)",null,"(Seleccione)",null,"(Seleccione)","(Seleccione)"]
[193,null,null,"(Seleccione)","(Seleccione)",null,"(Seleccione)",null,"(Seleccione)","(Seleccione)"]
[194,null,null,"(Seleccione)","(Seleccione)",null,"(Seleccione)",null,"(Seleccione)","(Seleccione)"]
[195,null,null,"(Seleccione)","(Seleccione)",null,"(Seleccione)",null,"(Seleccione)","(Seleccione)"]
[196,null,null,"(Seleccione)","(Seleccione)",null,"(Seleccione)",null,"(Seleccione)","(Seleccione)"]
[197,null,null,"(Seleccione)","(Seleccione)",null,"(Seleccione)",null,"(Seleccione)","(Seleccione)"]
[198,null,null,"(Seleccione)","(Seleccione)",null,"(Seleccione)",null,"(Seleccione)","(Seleccione)"]
[199,null,null,"(Seleccione)","(Seleccione)",null,"(Seleccione)",null,"(Seleccione)","(Seleccione)"]
[200,null,null,"(Seleccione)","(Seleccione)",null,"(Seleccione)",null,"(Seleccione)","(Seleccione)"]
[201,null,null,"(Seleccione)","(Seleccione)",null,"(Seleccione)",null,"(Seleccione)","(Seleccione)"]
[202,null,null,"(Seleccione)","(Seleccione)",null,"(Seleccione)",null,"(Seleccione)","(Seleccione)"]
[203,null,null,"(Seleccione)","(Seleccione)",null,"(Seleccione)",null,"(Seleccione)","(Seleccione)"]
[204,null,null,"(Seleccione)","(Seleccione)",null,"(Seleccione)",null,"(Seleccione)","(Seleccione)"]
[205,null,null,"(Seleccione)","(Seleccione)",null,"(Seleccione)",null,"(Seleccione)","(Seleccione)"]
[206,null,null,"(Seleccione)","(Seleccione)",null,"(Seleccione)",null,"(Seleccione)","(Seleccione)"]
[207,null,null,"(Seleccione)","(Seleccione)",null,"(Seleccione)",null,"(Seleccione)","(Seleccione)"]
[208,null,null,"(Seleccione)","(Seleccione)",null,"(Seleccione)",null,"(Seleccione)","(Seleccione)"]
[209,null,null,"(Seleccione)","(Seleccione)",null,"(Seleccione)",null,"(Seleccione)","(Seleccione)"]
[210,null,null,"(Seleccione)","(Seleccione)",null,"(Seleccione)",null,"(Seleccione)","(Seleccione)"]
[211,null,null,"(Seleccione)","(Seleccione)",null,"(Seleccione)",null,"(Seleccione)","(Seleccione)"]
[212,null,null,"(Seleccione)","(Seleccione)",null,"(Seleccione)",null,"(Seleccione)","(Seleccione)"]
[213,null,null,"(Seleccione)","(Seleccione)",null,"(Seleccione)",null,"(Seleccione)","(Seleccione)"]
[214,null,null,"(Seleccione)","(Seleccione)",null,"(Seleccione)",null,"(Seleccione)","(Seleccione)"]
[215,null,null,"(Seleccione)","(Seleccione)",null,"(Seleccione)",null,"(Seleccione)","(Seleccione)"]
[216,null,null,"(Seleccione)","(Seleccione)",null,"(Seleccione)",null,"(Seleccione)","(Seleccione)"]
[217,null,null,"(Seleccione)","(Seleccione)",null,"(Seleccione)",null,"(Seleccione)","(Seleccione)"]
[218,null,null,"(Seleccione)","(Seleccione)",null,"(Seleccione)",null,"(Seleccione)","(Seleccione)"]
[219,null,null,"(Seleccione)","(Seleccione)",null,"(Seleccione)",null,"(Seleccione)","(Seleccione)"]
[220,null,null,"(Seleccione)","(Seleccione)",null,"(Seleccione)",null,"(Seleccione)","(Seleccione)"]
[221,null,null,"(Seleccione)","(Seleccione)",null,"(Seleccione)",null,"(Seleccione)","(Seleccione)"]
[222,null,null,"(Seleccione)","(Seleccione)",null,"(Seleccione)",null,"(Seleccione)","(Seleccione)"]
[223,null,null,"(Seleccione)","(Seleccione)",null,"(Seleccione)",null,"(Seleccione)","(Seleccione)"]
[224,null,null,"(Seleccione)","(Seleccione)",null,"(Seleccione)",null,"(Seleccione)","(Seleccione)"]
[225,null,null,"(Seleccione)","(Seleccione)",null,"(Seleccione)",null,"(Seleccione)","(Seleccione)"]
[226,null,null,"(Seleccione)","(Seleccione)",null,"(Seleccione)",null,"(Seleccione)","(Seleccione)"]
[227,null,null,"(Seleccione)","(Seleccione)",null,"(Seleccione)",null,"(Seleccione)","(Seleccione)"]
[228,null,null,"(Seleccione)","(Seleccione)",null,"(Seleccione)",null,"(Seleccione)","(Seleccione)"]
[229,null,null,"(Seleccione)","(Seleccione)",null,"(Seleccione)",null,"(Seleccione)","(Seleccione)"]
[230,null,null,"(Seleccione)","(Seleccione)",null,"(Seleccione)",null,"(Seleccione)","(Seleccione)"]
[231,null,null,"(Seleccione)","(Seleccione)",null,"(Seleccione)",null,"(Seleccione)","(Seleccione)"]
[232,null,null,"(Seleccione)","(Seleccione)",null,"(Seleccione)",null,"(Seleccione)","(Seleccione)"]
[233,null,null,"(Seleccione)","(Seleccione)",null,"(Seleccione)",null,"(Seleccione)","(Seleccione)"]
[234,null,null,"(Seleccione)","(Seleccione)",null,"(Seleccione)",null,"(Seleccione)","(Seleccione)"]
[235,null,null,"(Seleccione)","(Seleccione)",null,"(Seleccione)",null,"(Seleccione)","(Seleccione)"]
[236,null,null,"(Seleccione)","(Seleccione)",null,"(Seleccione)",null,"(Seleccione)","(Seleccione)"]
[237,null,null,"(Seleccione)","(Seleccione)",null,"(Seleccione)",null,"(Seleccione)","(Seleccione)"]
[238,null,null,"(Seleccione)","(Seleccione)",null,"(Seleccione)",null,"(Seleccione)","(Seleccione)"]
[239,null,null,"(Seleccione)","(Seleccione)",null,"(Seleccione)",null,"(Seleccione)","(Seleccione)"]
[240,null,null,"(Seleccione)","(Seleccione)",null,"(Seleccione)",null,"(Seleccione)","(Seleccione)"]
[241,null,null,"(Seleccione)","(Seleccione)",null,"(Seleccione)",null,"(Seleccione)","(Seleccione)"]
[242,null,null,"(Seleccione)","(Seleccione)",null,"(Seleccione)",null,"(Seleccione)","(Seleccione)"]
[243,null,null,"(Seleccione)","(Seleccione)",null,"(Seleccione)",null,"(Seleccione)","(Seleccione)"]
[244,null,null,"(Seleccione)","(Seleccione)",null,"(Seleccione)",null,"(Seleccione)","(Seleccione)"]
[245,null,null,"(Seleccione)","(Seleccione)",null,"(Seleccione)",null,"(Seleccione)","(Seleccione)"]
[246,null,null,"(Seleccione)","(Seleccione)",null,"(Seleccione)",null,"(Seleccione)","(Seleccione)"]
[247,null,null,"(Seleccione)","(Seleccione)",null,"(Seleccione)",null,"(Seleccione)","(Seleccione)"]
[248,null,null,"(Seleccione)","(Seleccione)",null,"(Seleccione)",null,"(Seleccione)","(Seleccione)"]
[249,null,null,"(Seleccione)","(Seleccione)",null,"(Seleccione)",null,"(Seleccione)","(Seleccione)"]
[250,null,null,"(Seleccione)","(Seleccione)",null,"(Seleccione)",null,"(Seleccione)","(Seleccione)"]
[251,null,null,"(Seleccione)","(Seleccione)",null,"(Seleccione)",null,"(Seleccione)","(Seleccione)"]
[252,null,null,"(Seleccione)","(Seleccione)",null,"(Seleccione)",null,"(Seleccione)","(Seleccione)"]
[253,null,null,"(Seleccione)","(Seleccione)",null,"(Seleccione)",null,"(Seleccione)","(Seleccione)"]
[254,null,null,"(Seleccione)","(Seleccione)",null,"(Seleccione)",null,"(Seleccione)","(Seleccione)"]
[255,null,null,"(Seleccione)","(Seleccione)",null,"(Seleccione)",null,"(Seleccione)","(Seleccione)"]
[256,null,null,"(Seleccione)","(Seleccione)",null,"(Seleccione)",null,"(Seleccione)","(Seleccione)"]
[257,null,null,"(Seleccione)","(Seleccione)",null,"(Seleccione)",null,"(Seleccione)","(Seleccione)"]
[258,null,null,"(Seleccione)","(Seleccione)",null,"(Seleccione)",null,"(Seleccione)","(Seleccione)"]
[259,null,null,"(Seleccione)","(Seleccione)",null,"(Seleccione)",null,"(Seleccione)","(Seleccione)"]
[260,null,null,"(Seleccione)","(Seleccione)",null,"(Seleccione)",null,"(Seleccione)","(Seleccione)"]
[261,null,null,"(Seleccione)","(Seleccione)",null,"(Seleccione)",null,"(Seleccione)","(Seleccione)"]
[262,null,null,"(Seleccione)","(Seleccione)",null,"(Seleccione)",null,"(Seleccione)","(Seleccione)"]
[263,null,null,"(Seleccione)","(Seleccione)",null,"(Seleccione)",null,"(Seleccione)","(Seleccione)"]
[264,null,null,"(Seleccione)","(Seleccione)",null,"(Seleccione)",null,"(Seleccione)","(Seleccione)"]
[265,null,null,"(Seleccione)","(Seleccione)",null,"(Seleccione)",null,"(Seleccione)","(Seleccione)"]
[266,null,null,"(Seleccione)","(Seleccione)",null,"(Seleccione)",null,"(Seleccione)","(Seleccione)"]
[267,null,null,"(Seleccione)","(Seleccione)",null,"(Seleccione)",null,"(Seleccione)","(Seleccione)"]
[268,null,null,"(Seleccione)","(Seleccione)",null,"(Seleccione)",null,"(Seleccione)","(Seleccione)"]
[269,null,null,"(Seleccione)","(Seleccione)",null,"(Seleccione)",null,"(Seleccione)","(Seleccione)"]
[270,null,null,"(Seleccione)","(Seleccione)",null,"(Seleccione)",null,"(Seleccione)","(Seleccione)"]
[271,null,null,"(Seleccione)","(Seleccione)",null,"(Seleccione)",null,"(Seleccione)","(Seleccione)"]
[272,null,null,"(Seleccione)","(Seleccione)",null,"(Seleccione)",null,"(Seleccione)","(Seleccione)"]
[273,null,null,"(Seleccione)","(Seleccione)",null,"(Seleccione)",null,"(Seleccione)","(Seleccione)"]
[274,null,null,"(Seleccione)","(Seleccione)",null,"(Seleccione)",null,"(Seleccione)","(Seleccione)"]
[275,null,null,"(Seleccione)","(Seleccione)",null,"(Seleccione)",null,"(Seleccione)","(Seleccione)"]
[276,null,null,"(Seleccione)","(Seleccione)",null,"(Seleccione)",null,"(Seleccione)","(Seleccione)"]
[277,null,null,"(Seleccione)","(Seleccione)",null,"(Seleccione)",null,"(Seleccione)","(Seleccione)"]
[278,null,null,"(Seleccione)","(Seleccione)",null,"(Seleccione)",null,"(Seleccione)","(Seleccione)"]
[279,null,null,"(Seleccione)","(Seleccione)",null,"(Seleccione)",null,"(Seleccione)","(Seleccione)"]
[280,null,null,"(Seleccione)","(Seleccione)",null,"(Seleccione)",null,"(Seleccione)","(Seleccione)"]
[281,null,null,"(Seleccione)","(Seleccione)",null,"(Seleccione)",null,"(Seleccione)","(Seleccione)"]
[282,null,null,"(Seleccione)","(Seleccione)",null,"(Seleccione)",null,"(Seleccione)","(Seleccione)"]
[283,null,null,"(Seleccione)","(Seleccione)",null,"(Seleccione)",null,"(Seleccione)","(Seleccione)"]
[284,null,null,"(Seleccione)","(Seleccione)",null,"(Seleccione)",null,"(Seleccione)","(Seleccione)"]
[285,null,null,"(Seleccione)","(Seleccione)",null,"(Seleccione)",null,"(Seleccione)","(Seleccione)"]
[286,null,null,"(Seleccione)","(Seleccione)",null,"(Seleccione)",null,"(Seleccione)","(Seleccione)"]
[287,null,null,"(Seleccione)","(Seleccione)",null,"(Seleccione)",null,"(Seleccione)","(Seleccione)"]
[288,null,null,"(Seleccione)","(Seleccione)",null,"(Seleccione)",null,"(Seleccione)","(Seleccione)"]
[289,null,null,"(Seleccione)","(Seleccione)",null,"(Seleccione)",null,"(Seleccione)","(Seleccione)"]
[290,null,null,"(Seleccione)","(Seleccione)",null,"(Seleccione)",null,"(Seleccione)","(Seleccione)"]
[291,null,null,"(Seleccione)","(Seleccione)",null,"(Seleccione)",null,"(Seleccione)","(Seleccione)"]
[292,null,null,"(Seleccione)","(Seleccione)",null,"(Seleccione)",null,"(Seleccione)","(Seleccione)"]
[293,null,null,"(Seleccione)","(Seleccione)",null,"(Seleccione)",null,"(Seleccione)","(Seleccione)"]
[294,null,null,"(Seleccione)","(Seleccione)",null,"(Seleccione)",null,"(Seleccione)","(Seleccione)"]
[295,null,null,"(Seleccione)","(Seleccione)",null,"(Seleccione)",null,"(Seleccione)","(Seleccione)"]
[296,null,null,"(Seleccione)","(Seleccione)",null,"(Seleccione)",null,"(Seleccione)","(Seleccione)"]
[297,null,null,"(Seleccione)","(Seleccione)",null,"(Seleccione)",null,"(Seleccione)","(Seleccione)"]
[298,null,null,"(Seleccione)","(Seleccione)",null,"(Seleccione)",null,"(Seleccione)","(Seleccione)"]
[299,null,null,"(Seleccione)","(Seleccione)",null,"(Seleccione)",null,"(Seleccione)","(Seleccione)"]
[300,null,null,"(Seleccione)","(Seleccione)",null,"(Seleccione)",null,"(Seleccione)","(Seleccione)"]
[301,null,null,"(Seleccione)","(Seleccione)",null,"(Seleccione)",null,"(Seleccione)","(Seleccione)"]
[302,null,null,"(Seleccione)","(Seleccione)",null,"(Seleccione)",null,"(Seleccione)","(Seleccione)"]
[303,null,null,"(Seleccione)","(Seleccione)",null,"(Seleccione)",null,"(Seleccione)","(Seleccione)"]
[304,null,null,"(Seleccione)","(Seleccione)",null,"(Seleccione)",null,"(Seleccione)","(Seleccione)"]
[305,null,null,"(Seleccione)","(Seleccione)",null,"(Seleccione)",null,"(Seleccione)","(Seleccione)"]
[306,null,null,"(Seleccione)","(Seleccione)",null,"(Seleccione)",null,"(Seleccione)","(Seleccione)"]
[307,null,null,"(Seleccione)","(Seleccione)",null,"(Seleccione)",null,"(Seleccione)","(Seleccione)"]
[308,null,null,"(Seleccione)","(Seleccione)",null,"(Seleccione)",null,"(Seleccione)","(Seleccione)"]
[309,null,null,"(Seleccione)","(Seleccione)",null,"(Seleccione)",null,"(Seleccione)","(Seleccione)"]
[310,null,null,"(Seleccione)","(Seleccione)",null,"(Seleccione)",null,"(Seleccione)","(Seleccione)"]
[311,null,null,"(Seleccione)","(Seleccione)",null,"(Seleccione)",null,"(Seleccione)","(Seleccione)"]
[312,null,null,"(Seleccione)","(Seleccione)",null,"(Seleccione)",null,"(Seleccione)","(Seleccione)"]
[313,null,null,"(Seleccione)","(Seleccione)",null,"(Seleccione)",null,"(Seleccione)","(Seleccione)"]
[314,null,null,"(Seleccione)","(Seleccione)",null,"(Seleccione)",null,"(Seleccione)","(Seleccione)"]
[315,null,null,"(Seleccione)","(Seleccione)",null,"(Seleccione)",null,"(Seleccione)","(Seleccione)"]
[316,null,null,"(Seleccione)","(Seleccione)",null,"(Seleccione)",null,"(Seleccione)","(Seleccione)"]
[317,null,null,"(Seleccione)","(Seleccione)",null,"(Seleccione)",null,"(Seleccione)","(Seleccione)"]
[318,null,null,"(Seleccione)","(Seleccione)",null,"(Seleccione)",null,"(Seleccione)","(Seleccione)"]
[319,null,null,"(Seleccione)","(Seleccione)",null,"(Seleccione)",null,"(Seleccione)","(Seleccione)"]
[320,null,null,"(Seleccione)","(Seleccione)",null,"(Seleccione)",null,"(Seleccione)","(Seleccione)"]
[321,null,null,"(Seleccione)","(Seleccione)",null,"(Seleccione)",null,"(Seleccione)","(Seleccione)"]
[322,null,null,"(Seleccione)","(Seleccione)",null,"(Seleccione)",null,"(Seleccione)","(Seleccione)"]
[323,null,null,"(Seleccione)","(Seleccione)",null,"(Seleccione)",null,"(Seleccione)","(Seleccione)"]
[324,null,null,"(Seleccione)","(Seleccione)",null,"(Seleccione)",null,"(Seleccione)","(Seleccione)"]
[325,null,null,"(Seleccione)","(Seleccione)",null,"(Seleccione)",null,"(Seleccione)","(Seleccione)"]
[326,null,null,"(Seleccione)","(Seleccione)",null,"(Seleccione)",null,"(Seleccione)","(Seleccione)"]
[327,null,null,"(Seleccione)","(Seleccione)",null,"(Seleccione)",null,"(Seleccione)","(Seleccione)"]
[328,null,null,"(Seleccione)","(Seleccione)",null,"(Seleccione)",null,"(Seleccione)","(Seleccione)"]
[329,null,null,"(Seleccione)","(Seleccione)",null,"(Seleccione)",null,"(Seleccione)","(Seleccione)"]
[330,null,null,"(Seleccione)","(Seleccione)",null,"(Seleccione)",null,"(Seleccione)","(Seleccione)"]
[331,null,null,"(Seleccione)","(Seleccione)",null,"(Seleccione)",null,"(Seleccione)","(Seleccione)"]
[332,null,null,"(Seleccione)","(Seleccione)",null,"(Seleccione)",null,"(Seleccione)","(Seleccione)"]
[333,null,null,"(Seleccione)","(Seleccione)",null,"(Seleccione)",null,"(Seleccione)","(Seleccione)"]
[334,null,null,"(Seleccione)","(Seleccione)",null,"(Seleccione)",null,"(Seleccione)","(Seleccione)"]
[335,null,null,"(Seleccione)","(Seleccione)",null,"(Seleccione)",null,"(Seleccione)","(Seleccione)"]
[336,null,null,"(Seleccione)","(Seleccione)",null,"(Seleccione)",null,"(Seleccione)","(Seleccione)"]
[337,null,null,"(Seleccione)","(Seleccione)",null,"(Seleccione)",null,"(Seleccione)","(Seleccione)"]
[338,null,null,"(Seleccione)","(Seleccione)",null,"(Seleccione)",null,"(Seleccione)","(Seleccione)"]
[339,null,null,"(Seleccione)","(Seleccione)",null,"(Seleccione)",null,"(Seleccione)","(Seleccione)"]
[340,null,null,"(Seleccione)","(Seleccione)",null,"(Seleccione)",null,"(Seleccione)","(Seleccione)"]
[341,null,null,"(Seleccione)","(Seleccione)",null,"(Seleccione)",null,"(Seleccione)","(Seleccione)"]
[342,null,null,"(Seleccione)","(Seleccione)",null,"(Seleccione)",null,"(Seleccione)","(Seleccione)"]
[343,null,null,"(Seleccione)","(Seleccione)",null,"(Seleccione)",null,"(Seleccione)","(Seleccione)"]
[344,null,null,"(Seleccione)","(Seleccione)",null,"(Seleccione)",null,"(Seleccione)","(Seleccione)"]
[345,null,null,"(Seleccione)","(Seleccione)",null,"(Seleccione)",null,"(Seleccione)","(Seleccione)"]
[346,null,null,"(Seleccione)","(Seleccione)",null,"(Seleccione)",null,"(Seleccione)","(Seleccione)"]
[347,null,null,"(Seleccione)","(Seleccione)",null,"(Seleccione)",null,"(Seleccione)","(Seleccione)"]
[348,null,null,"(Seleccione)","(Seleccione)",null,"(Seleccione)",null,"(Seleccione)","(Seleccione)"]
[349,null,null,"(Seleccione)","(Seleccione)",null,"(Seleccione)",null,"(Seleccione)","(Seleccione)"]
[350,null,null,"(Seleccione)","(Seleccione)",null,"(Seleccione)",null,"(Seleccione)","(Seleccione)"]
[351,null,null,"(Seleccione)","(Seleccione)",null,"(Seleccione)",null,"(Seleccione)","(Seleccione)"]
[352,null,null,"(Seleccione)","(Seleccione)",null,"(Seleccione)",null,"(Seleccione)","(Seleccione)"]
[353,null,null,"(Seleccione)","(Seleccione)",null,"(Seleccione)",null,"(Seleccione)","(Seleccione)"]
[354,null,null,"(Seleccione)","(Seleccione)",null,"(Seleccione)",null,"(Seleccione)","(Seleccione)"]
[355,null,null,"(Seleccione)","(Seleccione)",null,"(Seleccione)",null,"(Seleccione)","(Seleccione)"]
[356,null,null,"(Seleccione)","(Seleccione)",null,"(Seleccione)",null,"(Seleccione)","(Seleccione)"]
[357,null,null,"(Seleccione)","(Seleccione)",null,"(Seleccione)",null,"(Seleccione)","(Seleccione)"]
[358,null,null,"(Seleccione)","(Seleccione)",null,"(Seleccione)",null,"(Seleccione)","(Seleccione)"]
[359,null,null,"(Seleccione)","(Seleccione)",null,"(Seleccione)",null,"(Seleccione)","(Seleccione)"]
[360,null,null,"(Seleccione)","(Seleccione)",null,"(Seleccione)",null,"(Seleccione)","(Seleccione)"]
[361,null,null,"(Seleccione)","(Seleccione)",null,"(Seleccione)",null,"(Seleccione)","(Seleccione)"]
[362,null,null,"(Seleccione)","(Seleccione)",null,"(Seleccione)",null,"(Seleccione)","(Seleccione)"]
[363,null,null,"(Seleccione)","(Seleccione)",null,"(Seleccione)",null,"(Seleccione)","(Seleccione)"]
[364,null,null,"(Seleccione)","(Seleccione)",null,"(Seleccione)",null,"(Seleccione)","(Seleccione)"]
[365,null,null,"(Seleccione)","(Seleccione)",null,"(Seleccione)",null,"(Seleccione)","(Seleccione)"]
[366,null,null,"(Seleccione)","(Seleccione)",null,"(Seleccione)",null,"(Seleccione)","(Seleccione)"]
[367,null,null,"(Seleccione)","(Seleccione)",null,"(Seleccione)",null,"(Seleccione)","(Seleccione)"]
[368,null,null,"(Seleccione)","(Seleccione)",null,"(Seleccione)",null,"(Seleccione)","(Seleccione)"]
[369,null,null,"(Seleccione)","(Seleccione)",null,"(Seleccione)",null,"(Seleccione)","(Seleccione)"]
[370,null,null,"(Seleccione)","(Seleccione)",null,"(Seleccione)",null,"(Seleccione)","(Seleccione)"]
[371,null,null,"(Seleccione)","(Seleccione)",null,"(Seleccione)",null,"(Seleccione)","(Seleccione)"]
[372,null,null,"(Seleccione)","(Seleccione)",null,"(Seleccione)",null,"(Seleccione)","(Seleccione)"]
[373,null,null,"(Seleccione)","(Seleccione)",null,"(Seleccione)",null,"(Seleccione)","(Seleccione)"]
[374,null,null,"(Seleccione)","(Seleccione)",null,"(Seleccione)",null,"(Seleccione)","(Seleccione)"]
[375,null,null,"(Seleccione)","(Seleccione)",null,"(Seleccione)",null,"(Seleccione)","(Seleccione)"]
[376,null,null,"(Seleccione)","(Seleccione)",null,"(Seleccione)",null,"(Seleccione)","(Seleccione)"]
[377,null,null,"(Seleccione)","(Seleccione)",null,"(Seleccione)",null,"(Seleccione)","(Seleccione)"]
[378,null,null,"(Seleccione)","(Seleccione)",null,"(Seleccione)",null,"(Seleccione)","(Seleccione)"]
[379,null,null,"(Seleccione)","(Seleccione)",null,"(Seleccione)",null,"(Seleccione)","(Seleccione)"]
[380,null,null,"(Seleccione)","(Seleccione)",null,"(Seleccione)",null,"(Seleccione)","(Seleccione)"]
[381,null,null,"(Seleccione)","(Seleccione)",null,"(Seleccione)",null,"(Seleccione)","(Seleccione)"]
[382,null,null,"(Seleccione)","(Seleccione)",null,"(Seleccione)",null,"(Seleccione)","(Seleccione)"]
[383,null,null,"(Seleccione)","(Seleccione)",null,"(Seleccione)",null,"(Seleccione)","(Seleccione)"]
[384,null,null,"(Seleccione)","(Seleccione)",null,"(Seleccione)",null,"(Seleccione)","(Seleccione)"]
[385,null,null,"(Seleccione)","(Seleccione)",null,"(Seleccione)",null,"(Seleccione)","(Seleccione)"]
[386,null,null,"(Seleccione)","(Seleccione)",null,"(Seleccione)",null,"(Seleccione)","(Seleccione)"]
[387,null,null,"(Seleccione)","(Seleccione)",null,"(Seleccione)",null,"(Seleccione)","(Seleccione)"]
[388,null,null,"(Seleccione)","(Seleccione)",null,"(Seleccione)",null,"(Seleccione)","(Seleccione)"]
[389,null,null,"(Seleccione)","(Seleccione)",null,"(Seleccione)",null,"(Seleccione)","(Seleccione)"]
[390,null,null,"(Seleccione)","(Seleccione)",null,"(Seleccione)",null,"(Seleccione)","(Seleccione)"]
[391,null,null,"(Seleccione)","(Seleccione)",null,"(Seleccione)",null,"(Seleccione)","(Seleccione)"]
[392,null,null,"(Seleccione)","(Seleccione)",null,"(Seleccione)",null,"(Seleccione)","(Seleccione)"]
[393,null,null,"(Seleccione)","(Seleccione)",null,"(Seleccione)",null,"(Seleccione)","(Seleccione)"]
[394,null,null,"(Seleccione)","(Seleccione)",null,"(Seleccione)",null,"(Seleccione)","(Seleccione)"]
[395,null,null,"(Seleccione)","(Seleccione)",null,"(Seleccione)",null,"(Seleccione)","(Seleccione)"]
[396,null,null,"(Seleccione)","(Seleccione)",null,"(Seleccione)",null,"(Seleccione)","(Seleccione)"]
[397,null,null,"(Seleccione)","(Seleccione)",null,"(Seleccione)",null,"(Seleccione)","(Seleccione)"]
[398,null,null,"(Seleccione)","(Seleccione)",null,"(Seleccione)",null,"(Seleccione)","(Seleccione)"]
[399,null,null,"(Seleccione)","(Seleccione)",null,"(Seleccione)",null,"(Seleccione)","(Seleccione)"]
[400,null,null,"(Seleccione)","(Seleccione)",null,"(Seleccione)",null,"(Seleccione)","(Seleccione)"]
[401,null,null,"(Seleccione)","(Seleccione)",null,"(Seleccione)",null,"(Seleccione)","(Seleccione)"]
[402,null,null,"(Seleccione)","(Seleccione)",null,"(Seleccione)",null,"(Seleccione)","(Seleccione)"]
[403,null,null,"(Seleccione)","(Seleccione)",null,"(Seleccione)",null,"(Seleccione)","(Seleccione)"]
[404,null,null,"(Seleccione)","(Seleccione)",null,"(Seleccione)",null,"(Seleccione)","(Seleccione)"]
[405,null,null,"(Seleccione)","(Seleccione)",null,"(Seleccione)",null,"(Seleccione)","(Seleccione)"]
[406,null,null,"(Seleccione)","(Seleccione)",null,"(Seleccione)",null,"(Seleccione)","(Seleccione)"]
[407,null,null,"(Seleccione)","(Seleccione)",null,"(Seleccione)",null,"(Seleccione)","(Seleccione)"]
[408,null,null,"(Seleccione)","(Seleccione)",null,"(Seleccione)",null,"(Seleccione)","(Seleccione)"]
[409,null,null,"(Seleccione)","(Seleccione)",null,"(Seleccione)",null,"(Seleccione)","(Seleccione)"]
[410,null,null,"(Seleccione)","(Seleccione)",null,"(Seleccione)",null,"(Seleccione)","(Seleccione)"]
[411,null,null,"(Seleccione)","(Seleccione)",null,"(Seleccione)",null,"(Seleccione)","(Seleccione)"]
[412,null,null,"(Seleccione)","(Seleccione)",null,"(Seleccione)",null,"(Seleccione)","(Seleccione)"]
[413,null,null,"(Seleccione)","(Seleccione)",null,"(Seleccione)",null,"(Seleccione)","(Seleccione)"]
[414,null,null,"(Seleccione)","(Seleccione)",null,"(Seleccione)",null,"(Seleccione)","(Seleccione)"]
[415,null,null,"(Seleccione)","(Seleccione)",null,"(Seleccione)",null,"(Seleccione)","(Seleccione)"]
[416,null,null,"(Seleccione)","(Seleccione)",null,"(Seleccione)",null,"(Seleccione)","(Seleccione)"]
[417,null,null,"(Seleccione)","(Seleccione)",null,"(Seleccione)",null,"(Seleccione)","(Seleccione)"]
[418,null,null,"(Seleccione)","(Seleccione)",null,"(Seleccione)",null,"(Seleccione)","(Seleccione)"]
[419,null,null,"(Seleccione)","(Seleccione)",null,"(Seleccione)",null,"(Seleccione)","(Seleccione)"]
[420,null,null,"(Seleccione)","(Seleccione)",null,"(Seleccione)",null,"(Seleccione)","(Seleccione)"]
[421,null,null,"(Seleccione)","(Seleccione)",null,"(Seleccione)",null,"(Seleccione)","(Seleccione)"]
[422,null,null,"(Seleccione)","(Seleccione)",null,"(Seleccione)",null,"(Seleccione)","(Seleccione)"]
[423,null,null,"(Seleccione)","(Seleccione)",null,"(Seleccione)",null,"(Seleccione)","(Seleccione)"]
[424,null,null,"(Seleccione)","(Seleccione)",null,"(Seleccione)",null,"(Seleccione)","(Seleccione)"]
[425,null,null,"(Seleccione)","(Seleccione)",null,"(Seleccione)",null,"(Seleccione)","(Seleccione)"]
[426,null,null,"(Seleccione)","(Seleccione)",null,"(Seleccione)",null,"(Seleccione)","(Seleccione)"]
[427,null,null,"(Seleccione)","(Seleccione)",null,"(Seleccione)",null,"(Seleccione)","(Seleccione)"]
[428,null,null,"(Seleccione)","(Seleccione)",null,"(Seleccione)",null,"(Seleccione)","(Seleccione)"]
[429,null,null,"(Seleccione)","(Seleccione)",null,"(Seleccione)",null,"(Seleccione)","(Seleccione)"]
[430,null,null,"(Seleccione)","(Seleccione)",null,"(Seleccione)",null,"(Seleccione)","(Seleccione)"]
[431,null,null,"(Seleccione)","(Seleccione)",null,"(Seleccione)",null,"(Seleccione)","(Seleccione)"]
[432,null,null,"(Seleccione)","(Seleccione)",null,"(Seleccione)",null,"(Seleccione)","(Seleccione)"]
[433,null,null,"(Seleccione)","(Seleccione)",null,"(Seleccione)",null,"(Seleccione)","(Seleccione)"]
[434,null,null,"(Seleccione)","(Seleccione)",null,"(Seleccione)",null,"(Seleccione)","(Seleccione)"]
[435,null,null,"(Seleccione)","(Seleccione)",null,"(Seleccione)",null,"(Seleccione)","(Seleccione)"]
[436,null,null,"(Seleccione)","(Seleccione)",null,"(Seleccione)",null,"(Seleccione)","(Seleccione)"]
[437,null,null,"(Seleccione)","(Seleccione)",null,"(Seleccione)",null,"(Seleccione)","(Seleccione)"]
[438,null,null,"(Seleccione)","(Seleccione)",null,"(Seleccione)",null,"(Seleccione)","(Seleccione)"]
[439,null,null,"(Seleccione)","(Seleccione)",null,"(Seleccione)",null,"(Seleccione)","(Seleccione)"]
[440,null,null,"(Seleccione)","(Seleccione)",null,"(Seleccione)",null,"(Seleccione)","(Seleccione)"]
[441,null,null,"(Seleccione)","(Seleccione)",null,"(Seleccione)",null,"(Seleccione)","(Seleccione)"]
[442,null,null,"(Seleccione)","(Seleccione)",null,"(Seleccione)",null,"(Seleccione)","(Seleccione)"]
[443,null,null,"(Seleccione)","(Seleccione)",null,"(Seleccione)",null,"(Seleccione)","(Seleccione)"]
[444,null,null,"(Seleccione)","(Seleccione)",null,"(Seleccione)",null,"(Seleccione)","(Seleccione)"]
[445,null,null,"(Seleccione)","(Seleccione)",null,"(Seleccione)",null,"(Seleccione)","(Seleccione)"]
[446,null,null,"(Seleccione)","(Seleccione)",null,"(Seleccione)",null,"(Seleccione)","(Seleccione)"]
[447,null,null,"(Seleccione)","(Seleccione)",null,"(Seleccione)",null,"(Seleccione)","(Seleccione)"]
[448,null,null,"(Seleccione)","(Seleccione)",null,"(Seleccione)",null,"(Seleccione)","(Seleccione)"]
[449,null,null,"(Seleccione)","(Seleccione)",null,"(Seleccione)",null,"(Seleccione)","(Seleccione)"]
[450,null,null,"(Seleccione)","(Seleccione)",null,"(Seleccione)",null,"(Seleccione)","(Seleccione)"]
[451,null,null,"(Seleccione)","(Seleccione)",null,"(Seleccione)",null,"(Seleccione)","(Seleccione)"]
[452,null,null,"(Seleccione)","(Seleccione)",null,"(Seleccione)",null,"(Seleccione)","(Seleccione)"]
[453,null,null,"(Seleccione)","(Seleccione)",null,"(Seleccione)",null,"(Seleccione)","(Seleccione)"]
[454,null,null,"(Seleccione)","(Seleccione)",null,"(Seleccione)",null,"(Seleccione)","(Seleccione)"]
[455,null,null,"(Seleccione)","(Seleccione)",null,"(Seleccione)",null,"(Seleccione)","(Seleccione)"]
[456,null,null,"(Seleccione)","(Seleccione)",null,"(Seleccione)",null,"(Seleccione)","(Seleccione)"]
[457,null,null,"(Seleccione)","(Seleccione)",null,"(Seleccione)",null,"(Seleccione)","(Seleccione)"]
[458,null,null,"(Seleccione)","(Seleccione)",null,"(Seleccione)",null,"(Seleccione)","(Seleccione)"]
[459,null,null,"(Seleccione)","(Seleccione)",null,"(Seleccione)",null,"(Seleccione)","(Seleccione)"]
[460,null,null,"(Seleccione)","(Seleccione)",null,"(Seleccione)",null,"(Seleccione)","(Seleccione)"]
[461,null,null,"(Seleccione)","(Seleccione)",null,"(Seleccione)",null,"(Seleccione)","(Seleccione)"]
[462,null,null,"(Seleccione)","(Seleccione)",null,"(Seleccione)",null,"(Seleccione)","(Seleccione)"]
[463,null,null,"(Seleccione)","(Seleccione)",null,"(Seleccione)",null,"(Seleccione)","(Seleccione)"]
[464,null,null,"(Seleccione)","(Seleccione)",null,"(Seleccione)",null,"(Seleccione)","(Seleccione)"]
[465,null,null,"(Seleccione)","(Seleccione)",null,"(Seleccione)",null,"(Seleccione)","(Seleccione)"]
[466,null,null,"(Seleccione)","(Seleccione)",null,"(Seleccione)",null,"(Seleccione)","(Seleccione)"]
[467,null,null,"(Seleccione)","(Seleccione)",null,"(Seleccione)",null,"(Seleccione)","(Seleccione)"]
[468,null,null,"(Seleccione)","(Seleccione)",null,"(Seleccione)",null,"(Seleccione)","(Seleccione)"]
[469,null,null,"(Seleccione)","(Seleccione)",null,"(Seleccione)",null,"(Seleccione)","(Seleccione)"]
[470,null,null,"(Seleccione)","(Seleccione)",null,"(Seleccione)",null,"(Seleccione)","(Seleccione)"]
[471,null,null,"(Seleccione)","(Seleccione)",null,"(Seleccione)",null,"(Seleccione)","(Seleccione)"]
[472,null,null,"(Seleccione)","(Seleccione)",null,"(Seleccione)",null,"(Seleccione)","(Seleccione)"]
[473,null,null,"(Seleccione)","(Seleccione)",null,"(Seleccione)",null,"(Seleccione)","(Seleccione)"]
[474,null,null,"(Seleccione)","(Seleccione)",null,"(Seleccione)",null,"(Seleccione)","(Seleccione)"]
[475,null,null,"(Seleccione)","(Seleccione)",null,"(Seleccione)",null,"(Seleccione)","(Seleccione)"]
[476,null,null,"(Seleccione)","(Seleccione)",null,"(Seleccione)",null,"(Seleccione)","(Seleccione)"]
[477,null,null,"(Seleccione)","(Seleccione)",null,"(Seleccione)",null,"(Seleccione)","(Seleccione)"]
[478,null,null,"(Seleccione)","(Seleccione)",null,"(Seleccione)",null,"(Seleccione)","(Seleccione)"]
[479,null,null,"(Seleccione)","(Seleccione)",null,"(Seleccione)",null,"(Seleccione)","(Seleccione)"]
[480,null,null,"(Seleccione)","(Seleccione)",null,"(Seleccione)",null,"(Seleccione)","(Seleccione)"]
[481,null,null,"(Seleccione)","(Seleccione)",null,"(Seleccione)",null,"(Seleccione)","(Seleccione)"]
[482,null,null,"(Seleccione)","(Seleccione)",null,"(Seleccione)",null,"(Seleccione)","(Seleccione)"]
[483,null,null,"(Seleccione)","(Seleccione)",null,"(Seleccione)",null,"(Seleccione)","(Seleccione)"]
[484,null,null,"(Seleccione)","(Seleccione)",null,"(Seleccione)",null,"(Seleccione)","(Seleccione)"]
[485,null,null,"(Seleccione)","(Seleccione)",null,"(Seleccione)",null,"(Seleccione)","(Seleccione)"]
[486,null,null,"(Seleccione)","(Seleccione)",null,"(Seleccione)",null,"(Seleccione)","(Seleccione)"]
[487,null,null,"(Seleccione)","(Seleccione)",null,"(Seleccione)",null,"(Seleccione)","(Seleccione)"]
[488,null,null,"(Seleccione)","(Seleccione)",null,"(Seleccione)",null,"(Seleccione)","(Seleccione)"]
[489,null,null,"(Seleccione)","(Seleccione)",null,"(Seleccione)",null,"(Seleccione)","(Seleccione)"]
[490,null,null,"(Seleccione)","(Seleccione)",null,"(Seleccione)",null,"(Seleccione)","(Seleccione)"]
[491,null,null,"(Seleccione)","(Seleccione)",null,"(Seleccione)",null,"(Seleccione)","(Seleccione)"]
[492,null,null,"(Seleccione)","(Seleccione)",null,"(Seleccione)",null,"(Seleccione)","(Seleccione)"]
[493,null,null,"(Seleccione)","(Seleccione)",null,"(Seleccione)",null,"(Seleccione)","(Seleccione)"]
[494,null,null,"(Seleccione)","(Seleccione)",null,"(Seleccione)",null,"(Seleccione)","(Seleccione)"]
[495,null,null,"(Seleccione)","(Seleccione)",null,"(Seleccione)",null,"(Seleccione)","(Seleccione)"]
[496,null,null,"(Seleccione)","(Seleccione)",null,"(Seleccione)",null,"(Seleccione)","(Seleccione)"]
[497,null,null,"(Seleccione)","(Seleccione)",null,"(Seleccione)",null,"(Seleccione)","(Seleccione)"]
[498,null,null,"(Seleccione)","(Seleccione)",null,"(Seleccione)",null,"(Seleccione)","(Seleccione)"]
[499,null,null,"(Seleccione)","(Seleccione)",null,"(Seleccione)",null,"(Seleccione)","(Seleccione)"]
[500,null,null,"(Seleccione)","(Seleccione)",null,"(Seleccione)",null,"(Seleccione)","(Seleccione)"]
[501,null,null,"(Seleccione)","(Seleccione)",null,"(Seleccione)",null,"(Seleccione)","(Seleccione)"]
[502,null,null,"(Seleccione)","(Seleccione)",null,"(Seleccione)",null,"(Seleccione)","(Seleccione)"]
[503,null,null,"(Seleccione)","(Seleccione)",null,"(Seleccione)",null,"(Seleccione)","(Seleccione)"]
[504,null,null,"(Seleccione)","(Seleccione)",null,"(Seleccione)",null,"(Seleccione)","(Seleccione)"]
[505,null,null,"(Seleccione)","(Seleccione)",null,"(Seleccione)",null,"(Seleccione)","(Seleccione)"]
[506,null,null,"(Seleccione)","(Seleccione)",null,"(Seleccione)",null,"(Seleccione)","(Seleccione)"]
[507,null,null,"(Seleccione)","(Seleccione)",null,"(Seleccione)",null,"(Seleccione)","(Seleccione)"]
[508,null,null,"(Seleccione)","(Seleccione)",null,"(Seleccione)",null,"(Seleccione)","(Seleccione)"]
[509,null,null,"(Seleccione)","(Seleccione)",null,"(Seleccione)",null,"(Seleccione)","(Seleccione)"]
[510,null,null,"(Seleccione)","(Seleccione)",null,"(Seleccione)",null,"(Seleccione)","(Seleccione)"]
[511,null,null,"(Seleccione)","(Seleccione)",null,"(Seleccione)",null,"(Seleccione)","(Seleccione)"]
[512,null,null,"(Seleccione)","(Seleccione)",null,"(Seleccione)",null,"(Seleccione)","(Seleccione)"]
[513,null,null,"(Seleccione)","(Seleccione)",null,"(Seleccione)",null,"(Seleccione)","(Seleccione)"]
[514,null,null,"(Seleccione)","(Seleccione)",null,"(Seleccione)",null,"(Seleccione)","(Seleccione)"]
[515,null,null,"(Seleccione)","(Seleccione)",null,"(Seleccione)",null,"(Seleccione)","(Seleccione)"]
[516,null,null,"(Seleccione)","(Seleccione)",null,"(Seleccione)",null,"(Seleccione)","(Seleccione)"]
[517,null,null,"(Seleccione)","(Seleccione)",null,"(Seleccione)",null,"(Seleccione)","(Seleccione)"]
[518,null,null,"(Seleccione)","(Seleccione)",null,"(Seleccione)",null,"(Seleccione)","(Seleccione)"]
[519,null,null,"(Seleccione)","(Seleccione)",null,"(Seleccione)",null,"(Seleccione)","(Seleccione)"]
[520,null,null,"(Seleccione)","(Seleccione)",null,"(Seleccione)",null,"(Seleccione)","(Seleccione)"]
[521,null,null,"(Seleccione)","(Seleccione)",null,"(Seleccione)",null,"(Seleccione)","(Seleccione)"]
[522,null,null,"(Seleccione)","(Seleccione)",null,"(Seleccione)",null,"(Seleccione)","(Seleccione)"]
[523,null,null,"(Seleccione)","(Seleccione)",null,"(Seleccione)",null,"(Seleccione)","(Seleccione)"]
[524,null,null,"(Seleccione)","(Seleccione)",null,"(Seleccione)",null,"(Seleccione)","(Seleccione)"]
[525,null,null,"(Seleccione)","(Seleccione)",null,"(Seleccione)",null,"(Seleccione)","(Seleccione)"]
[526,null,null,"(Seleccione)","(Seleccione)",null,"(Seleccione)",null,"(Seleccione)","(Seleccione)"]
[527,null,null,"(Seleccione)","(Seleccione)",null,"(Seleccione)",null,"(Seleccione)","(Seleccione)"]
[528,null,null,"(Seleccione)","(Seleccione)",null,"(Seleccione)",null,"(Seleccione)","(Seleccione)"]
[529,null,null,"(Seleccione)","(Seleccione)",null,"(Seleccione)",null,"(Seleccione)","(Seleccione)"]
[530,null,null,"(Seleccione)","(Seleccione)",null,"(Seleccione)",null,"(Seleccione)","(Seleccione)"]
[531,null,null,"(Seleccione)","(Seleccione)",null,"(Seleccione)",null,"(Seleccione)","(Seleccione)"]
[532,null,null,"(Seleccione)","(Seleccione)",null,"(Seleccione)",null,"(Seleccione)","(Seleccione)"]
[533,null,null,"(Seleccione)","(Seleccione)",null,"(Seleccione)",null,"(Seleccione)","(Seleccione)"]
[534,null,null,"(Seleccione)","(Seleccione)",null,"(Seleccione)",null,"(Seleccione)","(Seleccione)"]
[535,null,null,"(Seleccione)","(Seleccione)",null,"(Seleccione)",null,"(Seleccione)","(Seleccione)"]
[536,null,null,"(Seleccione)","(Seleccione)",null,"(Seleccione)",null,"(Seleccione)","(Seleccione)"]
[537,null,null,"(Seleccione)","(Seleccione)",null,"(Seleccione)",null,"(Seleccione)","(Seleccione)"]
[538,null,null,"(Seleccione)","(Seleccione)",null,"(Seleccione)",null,"(Seleccione)","(Seleccione)"]
[539,null,null,"(Seleccione)","(Seleccione)",null,"(Seleccione)",null,"(Seleccione)","(Seleccione)"]
[540,null,null,"(Seleccione)","(Seleccione)",null,"(Seleccione)",null,"(Seleccione)","(Seleccione)"]
[541,null,null,"(Seleccione)","(Seleccione)",null,"(Seleccione)",null,"(Seleccione)","(Seleccione)"]
[542,null,null,"(Seleccione)","(Seleccione)",null,"(Seleccione)",null,"(Seleccione)","(Seleccione)"]
[543,null,null,"(Seleccione)","(Seleccione)",null,"(Seleccione)",null,"(Seleccione)","(Seleccione)"]
[544,null,null,"(Seleccione)","(Seleccione)",null,"(Seleccione)",null,"(Seleccione)","(Seleccione)"]
[545,null,null,"(Seleccione)","(Seleccione)",null,"(Seleccione)",null,"(Seleccione)","(Seleccione)"]
[546,null,null,"(Seleccione)","(Seleccione)",null,"(Seleccione)",null,"(Seleccione)","(Seleccione)"]
[547,null,null,"(Seleccione)","(Seleccione)",null,"(Seleccione)",null,"(Seleccione)","(Seleccione)"]
[548,null,null,"(Seleccione)","(Seleccione)",null,"(Seleccione)",null,"(Seleccione)","(Seleccione)"]
[549,null,null,"(Seleccione)","(Seleccione)",null,"(Seleccione)",null,"(Seleccione)","(Seleccione)"]
[550,null,null,"(Seleccione)","(Seleccione)",null,"(Seleccione)",null,"(Seleccione)","(Seleccione)"]
[551,null,null,"(Seleccione)","(Seleccione)",null,"(Seleccione)",null,"(Seleccione)","(Seleccione)"]
[552,null,null,"(Seleccione)","(Seleccione)",null,"(Seleccione)",null,"(Seleccione)","(Seleccione)"]
[553,null,null,"(Seleccione)","(Seleccione)",null,"(Seleccione)",null,"(Seleccione)","(Seleccione)"]
[554,null,null,"(Seleccione)","(Seleccione)",null,"(Seleccione)",null,"(Seleccione)","(Seleccione)"]
[555,null,null,"(Seleccione)","(Seleccione)",null,"(Seleccione)",null,"(Seleccione)","(Seleccione)"]
[556,null,null,"(Seleccione)","(Seleccione)",null,"(Seleccione)",null,"(Seleccione)","(Seleccione)"]
[557,null,null,"(Seleccione)","(Seleccione)",null,"(Seleccione)",null,"(Seleccione)","(Seleccione)"]
[558,null,null,"(Seleccione)","(Seleccione)",null,"(Seleccione)",null,"(Seleccione)","(Seleccione)"]
[559,null,null,"(Seleccione)","(Seleccione)",null,"(Seleccione)",null,"(Seleccione)","(Seleccione)"]
[560,null,null,"(Seleccione)","(Seleccione)",null,"(Seleccione)",null,"(Seleccione)","(Seleccione)"]
[561,null,null,"(Seleccione)","(Seleccione)",null,"(Seleccione)",null,"(Seleccione)","(Seleccione)"]
[562,null,null,"(Seleccione)","(Seleccione)",null,"(Seleccione)",null,"(Seleccione)","(Seleccione)"]
[563,null,null,"(Seleccione)","(Seleccione)",null,"(Seleccione)",null,"(Seleccione)","(Seleccione)"]
[564,null,null,"(Seleccione)","(Seleccione)",null,"(Seleccione)",null,"(Seleccione)","(Seleccione)"]
[565,null,null,"(Seleccione)","(Seleccione)",null,"(Seleccione)",null,"(Seleccione)","(Seleccione)"]
[566,null,null,"(Seleccione)","(Seleccione)",null,"(Seleccione)",null,"(Seleccione)","(Seleccione)"]
[567,null,null,"(Seleccione)","(Seleccione)",null,"(Seleccione)",null,"(Seleccione)","(Seleccione)"]
[568,null,null,"(Seleccione)","(Seleccione)",null,"(Seleccione)",null,"(Seleccione)","(Seleccione)"]
[569,null,null,"(Seleccione)","(Seleccione)",null,"(Seleccione)",null,"(Seleccione)","(Seleccione)"]
[570,null,null,"(Seleccione)","(Seleccione)",null,"(Seleccione)",null,"(Seleccione)","(Seleccione)"]
[571,null,null,"(Seleccione)","(Seleccione)",null,"(Seleccione)",null,"(Seleccione)","(Seleccione)"]
[572,null,null,"(Seleccione)","(Seleccione)",null,"(Seleccione)",null,"(Seleccione)","(Seleccione)"]
[573,null,null,"(Seleccione)","(Seleccione)",null,"(Seleccione)",null,"(Seleccione)","(Seleccione)"]
[574,null,null,"(Seleccione)","(Seleccione)",null,"(Seleccione)",null,"(Seleccione)","(Seleccione)"]
[575,null,null,"(Seleccione)","(Seleccione)",null,"(Seleccione)",null,"(Seleccione)","(Seleccione)"]
[576,null,null,"(Seleccione)","(Seleccione)",null,"(Seleccione)",null,"(Seleccione)","(Seleccione)"]
[577,null,null,"(Seleccione)","(Seleccione)",null,"(Seleccione)",null,"(Seleccione)","(Seleccione)"]
[578,null,null,"(Seleccione)","(Seleccione)",null,"(Seleccione)",null,"(Seleccione)","(Seleccione)"]
[579,null,null,"(Seleccione)","(Seleccione)",null,"(Seleccione)",null,"(Seleccione)","(Seleccione)"]
[580,null,null,"(Seleccione)","(Seleccione)",null,"(Seleccione)",null,"(Seleccione)","(Seleccione)"]
[581,null,null,"(Seleccione)","(Seleccione)",null,"(Seleccione)",null,"(Seleccione)","(Seleccione)"]
[582,null,null,"(Seleccione)","(Seleccione)",null,"(Seleccione)",null,"(Seleccione)","(Seleccione)"]
[583,null,null,"(Seleccione)","(Seleccione)",null,"(Seleccione)",null,"(Seleccione)","(Seleccione)"]
[584,null,null,"(Seleccione)","(Seleccione)",null,"(Seleccione)",null,"(Seleccione)","(Seleccione)"]
[585,null,null,"(Seleccione)","(Seleccione)",null,"(Seleccione)",null,"(Seleccione)","(Seleccione)"]
[586,null,null,"(Seleccione)","(Seleccione)",null,"(Seleccione)",null,"(Seleccione)","(Seleccione)"]
[587,null,null,"(Seleccione)","(Seleccione)",null,"(Seleccione)",null,"(Seleccione)","(Seleccione)"]
[588,null,null,"(Seleccione)","(Seleccione)",null,"(Seleccione)",null,"(Seleccione)","(Seleccione)"]
[589,null,null,"(Seleccione)","(Seleccione)",null,"(Seleccione)",null,"(Seleccione)","(Seleccione)"]
[590,null,null,"(Seleccione)","(Seleccione)",null,"(Seleccione)",null,"(Seleccione)","(Seleccione)"]
[591,null,null,"(Seleccione)","(Seleccione)",null,"(Seleccione)",null,"(Seleccione)","(Seleccione)"]
[592,null,null,"(Seleccione)","(Seleccione)",null,"(Seleccione)",null,"(Seleccione)","(Seleccione)"]
[593,null,null,"(Seleccione)","(Seleccione)",null,"(Seleccione)",null,"(Seleccione)","(Seleccione)"]
[594,null,null,"(Seleccione)","(Seleccione)",null,"(Seleccione)",null,"(Seleccione)","(Seleccione)"]
[595,null,null,"(Seleccione)","(Seleccione)",null,"(Seleccione)",null,"(Seleccione)","(Seleccione)"]
[596,null,null,"(Seleccione)","(Seleccione)",null,"(Seleccione)",null,"(Seleccione)","(Seleccione)"]
[597,null,null,"(Seleccione)","(Seleccione)",null,"(Seleccione)",null,"(Seleccione)","(Seleccione)"]
[598,null,null,"(Seleccione)","(Seleccione)",null,"(Seleccione)",null,"(Seleccione)","(Seleccione)"]
[599,null,null,"(Seleccione)","(Seleccione)",null,"(Seleccione)",null,"(Seleccione)","(Seleccione)"]
[600,null,null,"(Seleccione)","(Seleccione)",null,"(Seleccione)",null,"(Seleccione)","(Seleccione)"]
[601,null,null,"(Seleccione)","(Seleccione)",null,"(Seleccione)",null,"(Seleccione)","(Seleccione)"]
[602,null,null,"(Seleccione)","(Seleccione)",null,"(Seleccione)",null,"(Seleccione)","(Seleccione)"]
[603,null,null,"(Seleccione)","(Seleccione)",null,"(Seleccione)",null,"(Seleccione)","(Seleccione)"]
[604,null,null,"(Seleccione)","(Seleccione)",null,"(Seleccione)",null,"(Seleccione)","(Seleccione)"]
[605,null,null,"(Seleccione)","(Seleccione)",null,"(Seleccione)",null,"(Seleccione)","(Seleccione)"]
[606,null,null,"(Seleccione)","(Seleccione)",null,"(Seleccione)",null,"(Seleccione)","(Seleccione)"]
[607,null,null,"(Seleccione)","(Seleccione)",null,"(Seleccione)",null,"(Seleccione)","(Seleccione)"]
[608,null,null,"(Seleccione)","(Seleccione)",null,"(Seleccione)",null,"(Seleccione)","(Seleccione)"]
[609,null,null,"(Seleccione)","(Seleccione)",null,"(Seleccione)",null,"(Seleccione)","(Seleccione)"]
[610,null,null,"(Seleccione)","(Seleccione)",null,"(Seleccione)",null,"(Seleccione)","(Seleccione)"]
[611,null,null,"(Seleccione)","(Seleccione)",null,"(Seleccione)",null,"(Seleccione)","(Seleccione)"]
[612,null,null,"(Seleccione)","(Seleccione)",null,"(Seleccione)",null,"(Seleccione)","(Seleccione)"]
[613,null,null,"(Seleccione)","(Seleccione)",null,"(Seleccione)",null,"(Seleccione)","(Seleccione)"]
[614,null,null,"(Seleccione)","(Seleccione)",null,"(Seleccione)",null,"(Seleccione)","(Seleccione)"]
[615,null,null,"(Seleccione)","(Seleccione)",null,"(Seleccione)",null,"(Seleccione)","(Seleccione)"]
[616,null,null,"(Seleccione)","(Seleccione)",null,"(Seleccione)",null,"(Seleccione)","(Seleccione)"]
[617,null,null,"(Seleccione)","(Seleccione)",null,"(Seleccione)",null,"(Seleccione)","(Seleccione)"]
[618,null,null,"(Seleccione)","(Seleccione)",null,"(Seleccione)",null,"(Seleccione)","(Seleccione)"]
[619,null,null,"(Seleccione)","(Seleccione)",null,"(Seleccione)",null,"(Seleccione)","(Seleccione)"]
[620,null,null,"(Seleccione)","(Seleccione)",null,"(Seleccione)",null,"(Seleccione)","(Seleccione)"]
[621,null,null,"(Seleccione)","(Seleccione)",null,"(Seleccione)",null,"(Seleccione)","(Seleccione)"]
[622,null,null,"(Seleccione)","(Seleccione)",null,"(Seleccione)",null,"(Seleccione)","(Seleccione)"]
[623,null,null,"(Seleccione)","(Seleccione)",null,"(Seleccione)",null,"(Seleccione)","(Seleccione)"]
[624,null,null,"(Seleccione)","(Seleccione)",null,"(Seleccione)",null,"(Seleccione)","(Seleccione)"]
[625,null,null,"(Seleccione)","(Seleccione)",null,"(Seleccione)",null,"(Seleccione)","(Seleccione)"]
[626,null,null,"(Seleccione)","(Seleccione)",null,"(Seleccione)",null,"(Seleccione)","(Seleccione)"]
[627,null,null,"(Seleccione)","(Seleccione)",null,"(Seleccione)",null,"(Seleccione)","(Seleccione)"]
[628,null,null,"(Seleccione)","(Seleccione)",null,"(Seleccione)",null,"(Seleccione)","(Seleccione)"]
[629,null,null,"(Seleccione)","(Seleccione)",null,"(Seleccione)",null,"(Seleccione)","(Seleccione)"]
[630,null,null,"(Seleccione)","(Seleccione)",null,"(Seleccione)",null,"(Seleccione)","(Seleccione)"]
[631,null,null,"(Seleccione)","(Seleccione)",null,"(Seleccione)",null,"(Seleccione)","(Seleccione)"]
[632,null,null,"(Seleccione)","(Seleccione)",null,"(Seleccione)",null,"(Seleccione)","(Seleccione)"]
[633,null,null,"(Seleccione)","(Seleccione)",null,"(Seleccione)",null,"(Seleccione)","(Seleccione)"]
[634,null,null,"(Seleccione)","(Seleccione)",null,"(Seleccione)",null,"(Seleccione)","(Seleccione)"]
[635,null,null,"(Seleccione)","(Seleccione)",null,"(Seleccione)",null,"(Seleccione)","(Seleccione)"]
[636,null,null,"(Seleccione)","(Seleccione)",null,"(Seleccione)",null,"(Seleccione)","(Seleccione)"]
[637,null,null,"(Seleccione)","(Seleccione)",null,"(Seleccione)",null,"(Seleccione)","(Seleccione)"]
[638,null,null,"(Seleccione)","(Seleccione)",null,"(Seleccione)",null,"(Seleccione)","(Seleccione)"]
[639,null,null,"(Seleccione)","(Seleccione)",null,"(Seleccione)",null,"(Seleccione)","(Seleccione)"]
[640,null,null,"(Seleccione)","(Seleccione)",null,"(Seleccione)",null,"(Seleccione)","(Seleccione)"]
[641,null,null,"(Seleccione)","(Seleccione)",null,"(Seleccione)",null,"(Seleccione)","(Seleccione)"]
[642,null,null,"(Seleccione)","(Seleccione)",null,"(Seleccione)",null,"(Seleccione)","(Seleccione)"]
[643,null,null,"(Seleccione)","(Seleccione)",null,"(Seleccione)",null,"(Seleccione)","(Seleccione)"]
[644,null,null,"(Seleccione)","(Seleccione)",null,"(Seleccione)",null,"(Seleccione)","(Seleccione)"]
[645,null,null,"(Seleccione)","(Seleccione)",null,"(Seleccione)",null,"(Seleccione)","(Seleccione)"]
[646,null,null,"(Seleccione)","(Seleccione)",null,"(Seleccione)",null,"(Seleccione)","(Seleccione)"]
[647,null,null,"(Seleccione)","(Seleccione)",null,"(Seleccione)",null,"(Seleccione)","(Seleccione)"]
[648,null,null,"(Seleccione)","(Seleccione)",null,"(Seleccione)",null,"(Seleccione)","(Seleccione)"]
[649,null,null,"(Seleccione)","(Seleccione)",null,"(Seleccione)",null,"(Seleccione)","(Seleccione)"]
[650,null,null,"(Seleccione)","(Seleccione)",null,"(Seleccione)",null,"(Seleccione)","(Seleccione)"]
[651,null,null,"(Seleccione)","(Seleccione)",null,"(Seleccione)",null,"(Seleccione)","(Seleccione)"]
[652,null,null,"(Seleccione)","(Seleccione)",null,"(Seleccione)",null,"(Seleccione)","(Seleccione)"]
[653,null,null,"(Seleccione)","(Seleccione)",null,"(Seleccione)",null,"(Seleccione)","(Seleccione)"]
[654,null,null,"(Seleccione)","(Seleccione)",null,"(Seleccione)",null,"(Seleccione)","(Seleccione)"]
[655,null,null,"(Seleccione)","(Seleccione)",null,"(Seleccione)",null,"(Seleccione)","(Seleccione)"]
[656,null,null,"(Seleccione)","(Seleccione)",null,"(Seleccione)",null,"(Seleccione)","(Seleccione)"]
[657,null,null,"(Seleccione)","(Seleccione)",null,"(Seleccione)",null,"(Seleccione)","(Seleccione)"]
[658,null,null,"(Seleccione)","(Seleccione)",null,"(Seleccione)",null,"(Seleccione)","(Seleccione)"]
[659,null,null,"(Seleccione)","(Seleccione)",null,"(Seleccione)",null,"(Seleccione)","(Seleccione)"]
[660,null,null,"(Seleccione)","(Seleccione)",null,"(Seleccione)",null,"(Seleccione)","(Seleccione)"]
[661,null,null,"(Seleccione)","(Seleccione)",null,"(Seleccione)",null,"(Seleccione)","(Seleccione)"]
[662,null,null,"(Seleccione)","(Seleccione)",null,"(Seleccione)",null,"(Seleccione)","(Seleccione)"]
[663,null,null,"(Seleccione)","(Seleccione)",null,"(Seleccione)",null,"(Seleccione)","(Seleccione)"]
[664,null,null,"(Seleccione)","(Seleccione)",null,"(Seleccione)",null,"(Seleccione)","(Seleccione)"]
[665,null,null,"(Seleccione)","(Seleccione)",null,"(Seleccione)",null,"(Seleccione)","(Seleccione)"]
[666,null,null,"(Seleccione)","(Seleccione)",null,"(Seleccione)",null,"(Seleccione)","(Seleccione)"]
[667,null,null,"(Seleccione)","(Seleccione)",null,"(Seleccione)",null,"(Seleccione)","(Seleccione)"]
[668,null,null,"(Seleccione)","(Seleccione)",null,"(Seleccione)",null,"(Seleccione)","(Seleccione)"]
[669,null,null,"(Seleccione)","(Seleccione)",null,"(Seleccione)",null,"(Seleccione)","(Seleccione)"]
[670,null,null,"(Seleccione)","(Seleccione)",null,"(Seleccione)",null,"(Seleccione)","(Seleccione)"]
[671,null,null,"(Seleccione)","(Seleccione)",null,"(Seleccione)",null,"(Seleccione)","(Seleccione)"]
[672,null,null,"(Seleccione)","(Seleccione)",null,"(Seleccione)",null,"(Seleccione)","(Seleccione)"]
[673,null,null,"(Seleccione)","(Seleccione)",null,"(Seleccione)",null,"(Seleccione)","(Seleccione)"]
[674,null,null,"(Seleccione)","(Seleccione)",null,"(Seleccione)",null,"(Seleccione)","(Seleccione)"]
[675,null,null,"(Seleccione)","(Seleccione)",null,"(Seleccione)",null,"(Seleccione)","(Seleccione)"]
[676,null,null,"(Seleccione)","(Seleccione)",null,"(Seleccione)",null,"(Seleccione)","(Seleccione)"]
[677,null,null,"(Seleccione)","(Seleccione)",null,"(Seleccione)",null,"(Seleccione)","(Seleccione)"]
[678,null,null,"(Seleccione)","(Seleccione)",null,"(Seleccione)",null,"(Seleccione)","(Seleccione)"]
[679,null,null,"(Seleccione)","(Seleccione)",null,"(Seleccione)",null,"(Seleccione)","(Seleccione)"]
[680,null,null,"(Seleccione)","(Seleccione)",null,"(Seleccione)",null,"(Seleccione)","(Seleccione)"]
[681,null,null,"(Seleccione)","(Seleccione)",null,"(Seleccione)",null,"(Seleccione)","(Seleccione)"]
[682,null,null,"(Seleccione)","(Seleccione)",null,"(Seleccione)",null,"(Seleccione)","(Seleccione)"]
[683,null,null,"(Seleccione)","(Seleccione)",null,"(Seleccione)",null,"(Seleccione)","(Seleccione)"]
[684,null,null,"(Seleccione)","(Seleccione)",null,"(Seleccione)",null,"(Seleccione)","(Seleccione)"]
[685,null,null,"(Seleccione)","(Seleccione)",null,"(Seleccione)",null,"(Seleccione)","(Seleccione)"]
[686,null,null,"(Seleccione)","(Seleccione)",null,"(Seleccione)",null,"(Seleccione)","(Seleccione)"]
[687,null,null,"(Seleccione)","(Seleccione)",null,"(Seleccione)",null,"(Seleccione)","(Seleccione)"]
[688,null,null,"(Seleccione)","(Seleccione)",null,"(Seleccione)",null,"(Seleccione)","(Seleccione)"]
[689,null,null,"(Seleccione)","(Seleccione)",null,"(Seleccione)",null,"(Seleccione)","(Seleccione)"]
[690,null,null,"(Seleccione)","(Seleccione)",null,"(Seleccione)",null,"(Seleccione)","(Seleccione)"]
[691,null,null,"(Seleccione)","(Seleccione)",null,"(Seleccione)",null,"(Seleccione)","(Seleccione)"]
[692,null,null,"(Seleccione)","(Seleccione)",null,"(Seleccione)",null,"(Seleccione)","(Seleccione)"]
[693,null,null,"(Seleccione)","(Seleccione)",null,"(Seleccione)",null,"(Seleccione)","(Seleccione)"]
[694,null,null,"(Seleccione)","(Seleccione)",null,"(Seleccione)",null,"(Seleccione)","(Seleccione)"]
[695,null,null,"(Seleccione)","(Seleccione)",null,"(Seleccione)",null,"(Seleccione)","(Seleccione)"]
[696,null,null,"(Seleccione)","(Seleccione)",null,"(Seleccione)",null,"(Seleccione)","(Seleccione)"]
[697,null,null,"(Seleccione)","(Seleccione)",null,"(Seleccione)",null,"(Seleccione)","(Seleccione)"]
[698,null,null,"(Seleccione)","(Seleccione)",null,"(Seleccione)",null,"(Seleccione)","(Seleccione)"]
[699,null,null,"(Seleccione)","(Seleccione)",null,"(Seleccione)",null,"(Seleccione)","(Seleccione)"]
[700,null,null,"(Seleccione)","(Seleccione)",null,"(Seleccione)",null,"(Seleccione)","(Seleccione)"]
[701,null,null,"(Seleccione)","(Seleccione)",null,"(Seleccione)",null,"(Seleccione)","(Seleccione)"]
[702,null,null,"(Seleccione)","(Seleccione)",null,"(Seleccione)",null,"(Seleccione)","(Seleccione)"]
[703,null,null,"(Seleccione)","(Seleccione)",null,"(Seleccione)",null,"(Seleccione)","(Seleccione)"]
[704,null,null,"(Seleccione)","(Seleccione)",null,"(Seleccione)",null,"(Seleccione)","(Seleccione)"]
[705,null,null,"(Seleccione)","(Seleccione)",null,"(Seleccione)",null,"(Seleccione)","(Seleccione)"]
[706,null,null,"(Seleccione)","(Seleccione)",null,"(Seleccione)",null,"(Seleccione)","(Seleccione)"]
[707,null,null,"(Seleccione)","(Seleccione)",null,"(Seleccione)",null,"(Seleccione)","(Seleccione)"]
[708,null,null,"(Seleccione)","(Seleccione)",null,"(Seleccione)",null,"(Seleccione)","(Seleccione)"]
[709,null,null,"(Seleccione)","(Seleccione)",null,"(Seleccione)",null,"(Seleccione)","(Seleccione)"]
[710,null,null,"(Seleccione)","(Seleccione)",null,"(Seleccione)",null,"(Seleccione)","(Seleccione)"]
[711,null,null,"(Seleccione)","(Seleccione)",null,"(Seleccione)",null,"(Seleccione)","(Seleccione)"]
[712,null,null,"(Seleccione)","(Seleccione)",null,"(Seleccione)",null,"(Seleccione)","(Seleccione)"]
[713,null,null,"(Seleccione)","(Seleccione)",null,"(Seleccione)",null,"(Seleccione)","(Seleccione)"]
[714,null,null,"(Seleccione)","(Seleccione)",null,"(Seleccione)",null,"(Seleccione)","(Seleccione)"]
[715,null,null,"(Seleccione)","(Seleccione)",null,"(Seleccione)",null,"(Seleccione)","(Seleccione)"]
[716,null,null,"(Seleccione)","(Seleccione)",null,"(Seleccione)",null,"(Seleccione)","(Seleccione)"]
[717,null,null,"(Seleccione)","(Seleccione)",null,"(Seleccione)",null,"(Seleccione)","(Seleccione)"]
[718,null,null,"(Seleccione)","(Seleccione)",null,"(Seleccione)",null,"(Seleccione)","(Seleccione)"]
[719,null,null,"(Seleccione)","(Seleccione)",null,"(Seleccione)",null,"(Seleccione)","(Seleccione)"]
[720,null,null,"(Seleccione)","(Seleccione)",null,"(Seleccione)",null,"(Seleccione)","(Seleccione)"]
[721,null,null,"(Seleccione)","(Seleccione)",null,"(Seleccione)",null,"(Seleccione)","(Seleccione)"]
[722,null,null,"(Seleccione)","(Seleccione)",null,"(Seleccione)",null,"(Seleccione)","(Seleccione)"]
[723,null,null,"(Seleccione)","(Seleccione)",null,"(Seleccione)",null,"(Seleccione)","(Seleccione)"]
[724,null,null,"(Seleccione)","(Seleccione)",null,"(Seleccione)",null,"(Seleccione)","(Seleccione)"]
[725,null,null,"(Seleccione)","(Seleccione)",null,"(Seleccione)",null,"(Seleccione)","(Seleccione)"]
[726,null,null,"(Seleccione)","(Seleccione)",null,"(Seleccione)",null,"(Seleccione)","(Seleccione)"]
[727,null,null,"(Seleccione)","(Seleccione)",null,"(Seleccione)",null,"(Seleccione)","(Seleccione)"]
[728,null,null,"(Seleccione)","(Seleccione)",null,"(Seleccione)",null,"(Seleccione)","(Seleccione)"]
[729,null,null,"(Seleccione)","(Seleccione)",null,"(Seleccione)",null,"(Seleccione)","(Seleccione)"]
[730,null,null,"(Seleccione)","(Seleccione)",null,"(Seleccione)",null,"(Seleccione)","(Seleccione)"]
[731,null,null,"(Seleccione)","(Seleccione)",null,"(Seleccione)",null,"(Seleccione)","(Seleccione)"]
[732,null,null,"(Seleccione)","(Seleccione)",null,"(Seleccione)",null,"(Seleccione)","(Seleccione)"]
[733,null,null,"(Seleccione)","(Seleccione)",null,"(Seleccione)",null,"(Seleccione)","(Seleccione)"]
[734,null,null,"(Seleccione)","(Seleccione)",null,"(Seleccione)",null,"(Seleccione)","(Seleccione)"]
[735,null,null,"(Seleccione)","(Seleccione)",null,"(Seleccione)",null,"(Seleccione)","(Seleccione)"]
[736,null,null,"(Seleccione)","(Seleccione)",null,"(Seleccione)",null,"(Seleccione)","(Seleccione)"]
[737,null,null,"(Seleccione)","(Seleccione)",null,"(Seleccione)",null,"(Seleccione)","(Seleccione)"]
[738,null,null,"(Seleccione)","(Seleccione)",null,"(Seleccione)",null,"(Seleccione)","(Seleccione)"]
[739,null,null,"(Seleccione)","(Seleccione)",null,"(Seleccione)",null,"(Seleccione)","(Seleccione)"]
[740,null,null,"(Seleccione)","(Seleccione)",null,"(Seleccione)",null,"(Seleccione)","(Seleccione)"]
[741,null,null,"(Seleccione)","(Seleccione)",null,"(Seleccione)",null,"(Seleccione)","(Seleccione)"]
[742,null,null,"(Seleccione)","(Seleccione)",null,"(Seleccione)",null,"(Seleccione)","(Seleccione)"]
[743,null,null,"(Seleccione)","(Seleccione)",null,"(Seleccione)",null,"(Seleccione)","(Seleccione)"]
[744,null,null,"(Seleccione)","(Seleccione)",null,"(Seleccione)",null,"(Seleccione)","(Seleccione)"]
[745,null,null,"(Seleccione)","(Seleccione)",null,"(Seleccione)",null,"(Seleccione)","(Seleccione)"]
[746,null,null,"(Seleccione)","(Seleccione)",null,"(Seleccione)",null,"(Seleccione)","(Seleccione)"]
[747,null,null,"(Seleccione)","(Seleccione)",null,"(Seleccione)",null,"(Seleccione)","(Seleccione)"]
[748,null,null,"(Seleccione)","(Seleccione)",null,"(Seleccione)",null,"(Seleccione)","(Seleccione)"]
[749,null,null,"(Seleccione)","(Seleccione)",null,"(Seleccione)",null,"(Seleccione)","(Seleccione)"]
[750,null,null,"(Seleccione)","(Seleccione)",null,"(Seleccione)",null,"(Seleccione)","(Seleccione)"]
[751,null,null,"(Seleccione)","(Seleccione)",null,"(Seleccione)",null,"(Seleccione)","(Seleccione)"]
[752,null,null,"(Seleccione)","(Seleccione)",null,"(Seleccione)",null,"(Seleccione)","(Seleccione)"]
[753,null,null,"(Seleccione)","(Seleccione)",null,"(Seleccione)",null,"(Seleccione)","(Seleccione)"]
[754,null,null,"(Seleccione)","(Seleccione)",null,"(Seleccione)",null,"(Seleccione)","(Seleccione)"]
[755,null,null,"(Seleccione)","(Seleccione)",null,"(Seleccione)",null,"(Seleccione)","(Seleccione)"]
[756,null,null,"(Seleccione)","(Seleccione)",null,"(Seleccione)",null,"(Seleccione)","(Seleccione)"]
[757,null,null,"(Seleccione)","(Seleccione)",null,"(Seleccione)",null,"(Seleccione)","(Seleccione)"]
[758,null,null,"(Seleccione)","(Seleccione)",null,"(Seleccione)",null,"(Seleccione)","(Seleccione)"]
[759,null,null,"(Seleccione)","(Seleccione)",null,"(Seleccione)",null,"(Seleccione)","(Seleccione)"]
[760,null,null,"(Seleccione)","(Seleccione)",null,"(Seleccione)",null,"(Seleccione)","(Seleccione)"]
[761,null,null,"(Seleccione)","(Seleccione)",null,"(Seleccione)",null,"(Seleccione)","(Seleccione)"]
[762,null,null,"(Seleccione)","(Seleccione)",null,"(Seleccione)",null,"(Seleccione)","(Seleccione)"]
[763,null,null,"(Seleccione)","(Seleccione)",null,"(Seleccione)",null,"(Seleccione)","(Seleccione)"]
[764,null,null,"(Seleccione)","(Seleccione)",null,"(Seleccione)",null,"(Seleccione)","(Seleccione)"]
[765,null,null,"(Seleccione)","(Seleccione)",null,"(Seleccione)",null,"(Seleccione)","(Seleccione)"]
[766,null,null,"(Seleccione)","(Seleccione)",null,"(Seleccione)",null,"(Seleccione)","(Seleccione)"]
[767,null,null,"(Seleccione)","(Seleccione)",null,"(Seleccione)",null,"(Seleccione)","(Seleccione)"]
[768,null,null,"(Seleccione)","(Seleccione)",null,"(Seleccione)",null,"(Seleccione)","(Seleccione)"]
[769,null,null,"(Seleccione)","(Seleccione)",null,"(Seleccione)",null,"(Seleccione)","(Seleccione)"]
[770,null,null,"(Seleccione)","(Seleccione)",null,"(Seleccione)",null,"(Seleccione)","(Seleccione)"]
[771,null,null,"(Seleccione)","(Seleccione)",null,"(Seleccione)",null,"(Seleccione)","(Seleccione)"]
[772,null,null,"(Seleccione)","(Seleccione)",null,"(Seleccione)",null,"(Seleccione)","(Seleccione)"]
[773,null,null,"(Seleccione)","(Seleccione)",null,"(Seleccione)",null,"(Seleccione)","(Seleccione)"]
[774,null,null,"(Seleccione)","(Seleccione)",null,"(Seleccione)",null,"(Seleccione)","(Seleccione)"]
[775,null,null,"(Seleccione)","(Seleccione)",null,"(Seleccione)",null,"(Seleccione)","(Seleccione)"]
[776,null,null,"(Seleccione)","(Seleccione)",null,"(Seleccione)",null,"(Seleccione)","(Seleccione)"]
[777,null,null,"(Seleccione)","(Seleccione)",null,"(Seleccione)",null,"(Seleccione)","(Seleccione)"]
[778,null,null,"(Seleccione)","(Seleccione)",null,"(Seleccione)",null,"(Seleccione)","(Seleccione)"]
[779,null,null,"(Seleccione)","(Seleccione)",null,"(Seleccione)",null,"(Seleccione)","(Seleccione)"]
[780,null,null,"(Seleccione)","(Seleccione)",null,"(Seleccione)",null,"(Seleccione)","(Seleccione)"]
[781,null,null,"(Seleccione)","(Seleccione)",null,"(Seleccione)",null,"(Seleccione)","(Seleccione)"]
[782,null,null,"(Seleccione)","(Seleccione)",null,"(Seleccione)",null,"(Seleccione)","(Seleccione)"]
[783,null,null,"(Seleccione)","(Seleccione)",null,"(Seleccione)",null,"(Seleccione)","(Seleccione)"]
[784,null,null,"(Seleccione)","(Seleccione)",null,"(Seleccione)",null,"(Seleccione)","(Seleccione)"]
[785,null,null,"(Seleccione)","(Seleccione)",null,"(Seleccione)",null,"(Seleccione)","(Seleccione)"]
[786,null,null,"(Seleccione)","(Seleccione)",null,"(Seleccione)",null,"(Seleccione)","(Seleccione)"]
[787,null,null,"(Seleccione)","(Seleccione)",null,"(Seleccione)",null,"(Seleccione)","(Seleccione)"]
[788,null,null,"(Seleccione)","(Seleccione)",null,"(Seleccione)",null,"(Seleccione)","(Seleccione)"]
[789,null,null,"(Seleccione)","(Seleccione)",null,"(Seleccione)",null,"(Seleccione)","(Seleccione)"]
[790,null,null,"(Seleccione)","(Seleccione)",null,"(Seleccione)",null,"(Seleccione)","(Seleccione)"]
[791,null,null,"(Seleccione)","(Seleccione)",null,"(Seleccione)",null,"(Seleccione)","(Seleccione)"]
[792,null,null,"(Seleccione)","(Seleccione)",null,"(Seleccione)",null,"(Seleccione)","(Seleccione)"]
[793,null,null,"(Seleccione)","(Seleccione)",null,"(Seleccione)",null,"(Seleccione)","(Seleccione)"]
[794,null,null,"(Seleccione)","(Seleccione)",null,"(Seleccione)",null,"(Seleccione)","(Seleccione)"]
[795,null,null,"(Seleccione)","(Seleccione)",null,"(Seleccione)",null,"(Seleccione)","(Seleccione)"]
[796,null,null,"(Seleccione)","(Seleccione)",null,"(Seleccione)",null,"(Seleccione)","(Seleccione)"]
[797,null,null,"(Seleccione)","(Seleccione)",null,"(Seleccione)",null,"(Seleccione)","(Seleccione)"]
[798,null,null,"(Seleccione)","(Seleccione)",null,"(Seleccione)",null,"(Seleccione)","(Seleccione)"]
[799,null,null,"(Seleccione)","(Seleccione)",null,"(Seleccione)",null,"(Seleccione)","(Seleccione)"]
[800,null,null,"(Seleccione)","(Seleccione)",null,"(Seleccione)",null,"(Seleccione)","(Seleccione)"]
[801,null,null,"(Seleccione)","(Seleccione)",null,"(Seleccione)",null,"(Seleccione)","(Seleccione)"]
[802,null,null,"(Seleccione)","(Seleccione)",null,"(Seleccione)",null,"(Seleccione)","(Seleccione)"]
[803,null,null,"(Seleccione)","(Seleccione)",null,"(Seleccione)",null,"(Seleccione)","(Seleccione)"]
[804,null,null,"(Seleccione)","(Seleccione)",null,"(Seleccione)",null,"(Seleccione)","(Seleccione)"]
[805,null,null,"(Seleccione)","(Seleccione)",null,"(Seleccione)",null,"(Seleccione)","(Seleccione)"]
[806,null,null,"(Seleccione)","(Seleccione)",null,"(Seleccione)",null,"(Seleccione)","(Seleccione)"]
[807,null,null,"(Seleccione)","(Seleccione)",null,"(Seleccione)",null,"(Seleccione)","(Seleccione)"]
[808,null,null,"(Seleccione)","(Seleccione)",null,"(Seleccione)",null,"(Seleccione)","(Seleccione)"]
[809,null,null,"(Seleccione)","(Seleccione)",null,"(Seleccione)",null,"(Seleccione)","(Seleccione)"]
[810,null,null,"(Seleccione)","(Seleccione)",null,"(Seleccione)",null,"(Seleccione)","(Seleccione)"]
[811,null,null,"(Seleccione)","(Seleccione)",null,"(Seleccione)",null,"(Seleccione)","(Seleccione)"]
[812,null,null,"(Seleccione)","(Seleccione)",null,"(Seleccione)",null,"(Seleccione)","(Seleccione)"]
[813,null,null,"(Seleccione)","(Seleccione)",null,"(Seleccione)",null,"(Seleccione)","(Seleccione)"]
[814,null,null,"(Seleccione)","(Seleccione)",null,"(Seleccione)",null,"(Seleccione)","(Seleccione)"]
[815,null,null,"(Seleccione)","(Seleccione)",null,"(Seleccione)",null,"(Seleccione)","(Seleccione)"]
[816,null,null,"(Seleccione)","(Seleccione)",null,"(Seleccione)",null,"(Seleccione)","(Seleccione)"]
[817,null,null,"(Seleccione)","(Seleccione)",null,"(Seleccione)",null,"(Seleccione)","(Seleccione)"]
[818,null,null,"(Seleccione)","(Seleccione)",null,"(Seleccione)",null,"(Seleccione)","(Seleccione)"]
[819,null,null,"(Seleccione)","(Seleccione)",null,"(Seleccione)",null,"(Seleccione)","(Seleccione)"]
[820,null,null,"(Seleccione)","(Seleccione)",null,"(Seleccione)",null,"(Seleccione)","(Seleccione)"]
[821,null,null,"(Seleccione)","(Seleccione)",null,"(Seleccione)",null,"(Seleccione)","(Seleccione)"]
[822,null,null,"(Seleccione)","(Seleccione)",null,"(Seleccione)",null,"(Seleccione)","(Seleccione)"]
[823,null,null,"(Seleccione)","(Seleccione)",null,"(Seleccione)",null,"(Seleccione)","(Seleccione)"]
[824,null,null,"(Seleccione)","(Seleccione)",null,"(Seleccione)",null,"(Seleccione)","(Seleccione)"]
[825,null,null,"(Seleccione)","(Seleccione)",null,"(Seleccione)",null,"(Seleccione)","(Seleccione)"]
[826,null,null,"(Seleccione)","(Seleccione)",null,"(Seleccione)",null,"(Seleccione)","(Seleccione)"]
[827,null,null,"(Seleccione)","(Seleccione)",null,"(Seleccione)",null,"(Seleccione)","(Seleccione)"]
[828,null,null,"(Seleccione)","(Seleccione)",null,"(Seleccione)",null,"(Seleccione)","(Seleccione)"]
[829,null,null,"(Seleccione)","(Seleccione)",null,"(Seleccione)",null,"(Seleccione)","(Seleccione)"]
[830,null,null,"(Seleccione)","(Seleccione)",null,"(Seleccione)",null,"(Seleccione)","(Seleccione)"]
[831,null,null,"(Seleccione)","(Seleccione)",null,"(Seleccione)",null,"(Seleccione)","(Seleccione)"]
[832,null,null,"(Seleccione)","(Seleccione)",null,"(Seleccione)",null,"(Seleccione)","(Seleccione)"]
[833,null,null,"(Seleccione)","(Seleccione)",null,"(Seleccione)",null,"(Seleccione)","(Seleccione)"]
[834,null,null,"(Seleccione)","(Seleccione)",null,"(Seleccione)",null,"(Seleccione)","(Seleccione)"]
[835,null,null,"(Seleccione)","(Seleccione)",null,"(Seleccione)",null,"(Seleccione)","(Seleccione)"]
[836,null,null,"(Seleccione)","(Seleccione)",null,"(Seleccione)",null,"(Seleccione)","(Seleccione)"]
[837,null,null,"(Seleccione)","(Seleccione)",null,"(Seleccione)",null,"(Seleccione)","(Seleccione)"]
[838,null,null,"(Seleccione)","(Seleccione)",null,"(Seleccione)",null,"(Seleccione)","(Seleccione)"]
[839,null,null,"(Seleccione)","(Seleccione)",null,"(Seleccione)",null,"(Seleccione)","(Seleccione)"]
[840,null,null,"(Seleccione)","(Seleccione)",null,"(Seleccione)",null,"(Seleccione)","(Seleccione)"]
[841,null,null,"(Seleccione)","(Seleccione)",null,"(Seleccione)",null,"(Seleccione)","(Seleccione)"]
[842,null,null,"(Seleccione)","(Seleccione)",null,"(Seleccione)",null,"(Seleccione)","(Seleccione)"]
[843,null,null,"(Seleccione)","(Seleccione)",null,"(Seleccione)",null,"(Seleccione)","(Seleccione)"]
[844,null,null,"(Seleccione)","(Seleccione)",null,"(Seleccione)",null,"(Seleccione)","(Seleccione)"]
[845,null,null,"(Seleccione)","(Seleccione)",null,"(Seleccione)",null,"(Seleccione)","(Seleccione)"]
[846,null,null,"(Seleccione)","(Seleccione)",null,"(Seleccione)",null,"(Seleccione)","(Seleccione)"]
[847,null,null,"(Seleccione)","(Seleccione)",null,"(Seleccione)",null,"(Seleccione)","(Seleccione)"]
[848,null,null,"(Seleccione)","(Seleccione)",null,"(Seleccione)",null,"(Seleccione)","(Seleccione)"]
[849,null,null,"(Seleccione)","(Seleccione)",null,"(Seleccione)",null,"(Seleccione)","(Seleccione)"]
[850,null,null,"(Seleccione)","(Seleccione)",null,"(Seleccione)",null,"(Seleccione)","(Seleccione)"]
[851,null,null,"(Seleccione)","(Seleccione)",null,"(Seleccione)",null,"(Seleccione)","(Seleccione)"]
[852,null,null,"(Seleccione)","(Seleccione)",null,"(Seleccione)",null,"(Seleccione)","(Seleccione)"]
[853,null,null,"(Seleccione)","(Seleccione)",null,"(Seleccione)",null,"(Seleccione)","(Seleccione)"]
[854,null,null,"(Seleccione)","(Seleccione)",null,"(Seleccione)",null,"(Seleccione)","(Seleccione)"]
[855,null,null,"(Seleccione)","(Seleccione)",null,"(Seleccione)",null,"(Seleccione)","(Seleccione)"]
[856,null,null,"(Seleccione)","(Seleccione)",null,"(Seleccione)",null,"(Seleccione)","(Seleccione)"]
[857,null,null,"(Seleccione)","(Seleccione)",null,"(Seleccione)",null,"(Seleccione)","(Seleccione)"]
[858,null,null,"(Seleccione)","(Seleccione)",null,"(Seleccione)",null,"(Seleccione)","(Seleccione)"]
[859,null,null,"(Seleccione)","(Seleccione)",null,"(Seleccione)",null,"(Seleccione)","(Seleccione)"]
[860,null,null,"(Seleccione)","(Seleccione)",null,"(Seleccione)",null,"(Seleccione)","(Seleccione)"]
[861,null,null,"(Seleccione)","(Seleccione)",null,"(Seleccione)",null,"(Seleccione)","(Seleccione)"]
[862,null,null,"(Seleccione)","(Seleccione)",null,"(Seleccione)",null,"(Seleccione)","(Seleccione)"]
[863,null,null,"(Seleccione)","(Seleccione)",null,"(Seleccione)",null,"(Seleccione)","(Seleccione)"]
[864,null,null,"(Seleccione)","(Seleccione)",null,"(Seleccione)",null,"(Seleccione)","(Seleccione)"]
[865,null,null,"(Seleccione)","(Seleccione)",null,"(Seleccione)",null,"(Seleccione)","(Seleccione)"]
[866,null,null,"(Seleccione)","(Seleccione)",null,"(Seleccione)",null,"(Seleccione)","(Seleccione)"]
[867,null,null,"(Seleccione)","(Seleccione)",null,"(Seleccione)",null,"(Seleccione)","(Seleccione)"]
[868,null,null,"(Seleccione)","(Seleccione)",null,"(Seleccione)",null,"(Seleccione)","(Seleccione)"]
[869,null,null,"(Seleccione)","(Seleccione)",null,"(Seleccione)",null,"(Seleccione)","(Seleccione)"]
[870,null,null,"(Seleccione)","(Seleccione)",null,"(Seleccione)",null,"(Seleccione)","(Seleccione)"]
[871,null,null,"(Seleccione)","(Seleccione)",null,"(Seleccione)",null,"(Seleccione)","(Seleccione)"]
[872,null,null,"(Seleccione)","(Seleccione)",null,"(Seleccione)",null,"(Seleccione)","(Seleccione)"]
[873,null,null,"(Seleccione)","(Seleccione)",null,"(Seleccione)",null,"(Seleccione)","(Seleccione)"]
[874,null,null,"(Seleccione)","(Seleccione)",null,"(Seleccione)",null,"(Seleccione)","(Seleccione)"]
[875,null,null,"(Seleccione)","(Seleccione)",null,"(Seleccione)",null,"(Seleccione)","(Seleccione)"]
[876,null,null,"(Seleccione)","(Seleccione)",null,"(Seleccione)",null,"(Seleccione)","(Seleccione)"]
[877,null,null,"(Seleccione)","(Seleccione)",null,"(Seleccione)",null,"(Seleccione)","(Seleccione)"]
[878,null,null,"(Seleccione)","(Seleccione)",null,"(Seleccione)",null,"(Seleccione)","(Seleccione)"]
[879,null,null,"(Seleccione)","(Seleccione)",null,"(Seleccione)",null,"(Seleccione)","(Seleccione)"]
[880,null,null,"(Seleccione)","(Seleccione)",null,"(Seleccione)",null,"(Seleccione)","(Seleccione)"]
[881,null,null,"(Seleccione)","(Seleccione)",null,"(Seleccione)",null,"(Seleccione)","(Seleccione)"]
[882,null,null,"(Seleccione)","(Seleccione)",null,"(Seleccione)",null,"(Seleccione)","(Seleccione)"]
[883,null,null,"(Seleccione)","(Seleccione)",null,"(Seleccione)",null,"(Seleccione)","(Seleccione)"]
[884,null,null,"(Seleccione)","(Seleccione)",null,"(Seleccione)",null,"(Seleccione)","(Seleccione)"]
[885,null,null,"(Seleccione)","(Seleccione)",null,"(Seleccione)",null,"(Seleccione)","(Seleccione)"]
[886,null,null,"(Seleccione)","(Seleccione)",null,"(Seleccione)",null,"(Seleccione)","(Seleccione)"]
[887,null,null,"(Seleccione)","(Seleccione)",null,"(Seleccione)",null,"(Seleccione)","(Seleccione)"]
[888,null,null,"(Seleccione)","(Seleccione)",null,"(Seleccione)",null,"(Seleccione)","(Seleccione)"]
[889,null,null,"(Seleccione)","(Seleccione)",null,"(Seleccione)",null,"(Seleccione)","(Seleccione)"]
[890,null,null,"(Seleccione)","(Seleccione)",null,"(Seleccione)",null,"(Seleccione)","(Seleccione)"]
[891,null,null,"(Seleccione)","(Seleccione)",null,"(Seleccione)",null,"(Seleccione)","(Seleccione)"]
[892,null,null,"(Seleccione)","(Seleccione)",null,"(Seleccione)",null,"(Seleccione)","(Seleccione)"]
[893,null,null,"(Seleccione)","(Seleccione)",null,"(Seleccione)",null,"(Seleccione)","(Seleccione)"]
[894,null,null,"(Seleccione)","(Seleccione)",null,"(Seleccione)",null,"(Seleccione)","(Seleccione)"]
[895,null,null,"(Seleccione)","(Seleccione)",null,"(Seleccione)",null,"(Seleccione)","(Seleccione)"]
[896,null,null,"(Seleccione)","(Seleccione)",null,"(Seleccione)",null,"(Seleccione)","(Seleccione)"]
[897,null,null,"(Seleccione)","(Seleccione)",null,"(Seleccione)",null,"(Seleccione)","(Seleccione)"]
[898,null,null,"(Seleccione)","(Seleccione)",null,"(Seleccione)",null,"(Seleccione)","(Seleccione)"]
[899,null,null,"(Seleccione)","(Seleccione)",null,"(Seleccione)",null,"(Seleccione)","(Seleccione)"]
[900,null,null,"(Seleccione)","(Seleccione)",null,"(Seleccione)",null,"(Seleccione)","(Seleccione)"]
[901,null,null,"(Seleccione)","(Seleccione)",null,"(Seleccione)",null,"(Seleccione)","(Seleccione)"]
[902,null,null,"(Seleccione)","(Seleccione)",null,"(Seleccione)",null,"(Seleccione)","(Seleccione)"]
[903,null,null,"(Seleccione)","(Seleccione)",null,"(Seleccione)",null,"(Seleccione)","(Seleccione)"]
[904,null,null,"(Seleccione)","(Seleccione)",null,"(Seleccione)",null,"(Seleccione)","(Seleccione)"]
[905,null,null,"(Seleccione)","(Seleccione)",null,"(Seleccione)",null,"(Seleccione)","(Seleccione)"]
[906,null,null,"(Seleccione)","(Seleccione)",null,"(Seleccione)",null,"(Seleccione)","(Seleccione)"]
[907,null,null,"(Seleccione)","(Seleccione)",null,"(Seleccione)",null,"(Seleccione)","(Seleccione)"]
[908,null,null,"(Seleccione)","(Seleccione)",null,"(Seleccione)",null,"(Seleccione)","(Seleccione)"]
[909,null,null,"(Seleccione)","(Seleccione)",null,"(Seleccione)",null,"(Seleccione)","(Seleccione)"]
[910,null,null,"(Seleccione)","(Seleccione)",null,"(Seleccione)",null,"(Seleccione)","(Seleccione)"]
[911,null,null,"(Seleccione)","(Seleccione)",null,"(Seleccione)",null,"(Seleccione)","(Seleccione)"]
[912,null,null,"(Seleccione)","(Seleccione)",null,"(Seleccione)",null,"(Seleccione)","(Seleccione)"]
[913,null,null,"(Seleccione)","(Seleccione)",null,"(Seleccione)",null,"(Seleccione)","(Seleccione)"]
[914,null,null,"(Seleccione)","(Seleccione)",null,"(Seleccione)",null,"(Seleccione)","(Seleccione)"]
[915,null,null,"(Seleccione)","(Seleccione)",null,"(Seleccione)",null,"(Seleccione)","(Seleccione)"]
[916,null,null,"(Seleccione)","(Seleccione)",null,"(Seleccione)",null,"(Seleccione)","(Seleccione)"]
[917,null,null,"(Seleccione)","(Seleccione)",null,"(Seleccione)",null,"(Seleccione)","(Seleccione)"]
[918,null,null,"(Seleccione)","(Seleccione)",null,"(Seleccione)",null,"(Seleccione)","(Seleccione)"]
[919,null,null,"(Seleccione)","(Seleccione)",null,"(Seleccione)",null,"(Seleccione)","(Seleccione)"]
[920,null,null,"(Seleccione)","(Seleccione)",null,"(Seleccione)",null,"(Seleccione)","(Seleccione)"]
[921,null,null,"(Seleccione)","(Seleccione)",null,"(Seleccione)",null,"(Seleccione)","(Seleccione)"]
[922,null,null,"(Seleccione)","(Seleccione)",null,"(Seleccione)",null,"(Seleccione)","(Seleccione)"]
[923,null,null,"(Seleccione)","(Seleccione)",null,"(Seleccione)",null,"(Seleccione)","(Seleccione)"]
[924,null,null,"(Seleccione)","(Seleccione)",null,"(Seleccione)",null,"(Seleccione)","(Seleccione)"]
[925,null,null,"(Seleccione)","(Seleccione)",null,"(Seleccione)",null,"(Seleccione)","(Seleccione)"]
[926,null,null,"(Seleccione)","(Seleccione)",null,"(Seleccione)",null,"(Seleccione)","(Seleccione)"]
[927,null,null,"(Seleccione)","(Seleccione)",null,"(Seleccione)",null,"(Seleccione)","(Seleccione)"]
[928,null,null,"(Seleccione)","(Seleccione)",null,"(Seleccione)",null,"(Seleccione)","(Seleccione)"]
[929,null,null,"(Seleccione)","(Seleccione)",null,"(Seleccione)",null,"(Seleccione)","(Seleccione)"]
[930,null,null,"(Seleccione)","(Seleccione)",null,"(Seleccione)",null,"(Seleccione)","(Seleccione)"]
[931,null,null,"(Seleccione)","(Seleccione)",null,"(Seleccione)",null,"(Seleccione)","(Seleccione)"]
[932,null,null,"(Seleccione)","(Seleccione)",null,"(Seleccione)",null,"(Seleccione)","(Seleccione)"]
[933,null,null,"(Seleccione)","(Seleccione)",null,"(Seleccione)",null,"(Seleccione)","(Seleccione)"]
[934,null,null,"(Seleccione)","(Seleccione)",null,"(Seleccione)",null,"(Seleccione)","(Seleccione)"]
[935,null,null,"(Seleccione)","(Seleccione)",null,"(Seleccione)",null,"(Seleccione)","(Seleccione)"]
[936,null,null,"(Seleccione)","(Seleccione)",null,"(Seleccione)",null,"(Seleccione)","(Seleccione)"]
[937,null,null,"(Seleccione)","(Seleccione)",null,"(Seleccione)",null,"(Seleccione)","(Seleccione)"]
[938,null,null,"(Seleccione)","(Seleccione)",null,"(Seleccione)",null,"(Seleccione)","(Seleccione)"]
[939,null,null,"(Seleccione)","(Seleccione)",null,"(Seleccione)",null,"(Seleccione)","(Seleccione)"]
[940,null,null,"(Seleccione)","(Seleccione)",null,"(Seleccione)",null,"(Seleccione)","(Seleccione)"]
[941,null,null,"(Seleccione)","(Seleccione)",null,"(Seleccione)",null,"(Seleccione)","(Seleccione)"]
[942,null,null,"(Seleccione)","(Seleccione)",null,"(Seleccione)",null,"(Seleccione)","(Seleccione)"]
[943,null,null,"(Seleccione)","(Seleccione)",null,"(Seleccione)",null,"(Seleccione)","(Seleccione)"]
[944,null,null,"(Seleccione)","(Seleccione)",null,"(Seleccione)",null,"(Seleccione)","(Seleccione)"]
[945,null,null,"(Seleccione)","(Seleccione)",null,"(Seleccione)",null,"(Seleccione)","(Seleccione)"]
[946,null,null,"(Seleccione)","(Seleccione)",null,"(Seleccione)",null,"(Seleccione)","(Seleccione)"]
[947,null,null,"(Seleccione)","(Seleccione)",null,"(Seleccione)",null,"(Seleccione)","(Seleccione)"]
[948,null,null,"(Seleccione)","(Seleccione)",null,"(Seleccione)",null,"(Seleccione)","(Seleccione)"]
[949,null,null,"(Seleccione)","(Seleccione)",null,"(Seleccione)",null,"(Seleccione)","(Seleccione)"]
[950,null,null,"(Seleccione)","(Seleccione)",null,"(Seleccione)",null,"(Seleccione)","(Seleccione)"]
[951,null,null,"(Seleccione)","(Seleccione)",null,"(Seleccione)",null,"(Seleccione)","(Seleccione)"]
[952,null,null,"(Seleccione)","(Seleccione)",null,"(Seleccione)",null,"(Seleccione)","(Seleccione)"]
[953,null,null,"(Seleccione)","(Seleccione)",null,"(Seleccione)",null,"(Seleccione)","(Seleccione)"]
[954,null,null,"(Seleccione)","(Seleccione)",null,"(Seleccione)",null,"(Seleccione)","(Seleccione)"]
[955,null,null,"(Seleccione)","(Seleccione)",null,"(Seleccione)",null,"(Seleccione)","(Seleccione)"]
[956,null,null,"(Seleccione)","(Seleccione)",null,"(Seleccione)",null,"(Seleccione)","(Seleccione)"]
[957,null,null,"(Seleccione)","(Seleccione)",null,"(Seleccione)",null,"(Seleccione)","(Seleccione)"]
[958,null,null,"(Seleccione)","(Seleccione)",null,"(Seleccione)",null,"(Seleccione)","(Seleccione)"]
[959,null,null,"(Seleccione)","(Seleccione)",null,"(Seleccione)",null,"(Seleccione)","(Seleccione)"]
[960,null,null,"(Seleccione)","(Seleccione)",null,"(Seleccione)",null,"(Seleccione)","(Seleccione)"]
[961,null,null,"(Seleccione)","(Seleccione)",null,"(Seleccione)",null,"(Seleccione)","(Seleccione)"]
[962,null,null,"(Seleccione)","(Seleccione)",null,"(Seleccione)",null,"(Seleccione)","(Seleccione)"]
[963,null,null,"(Seleccione)","(Seleccione)",null,"(Seleccione)",null,"(Seleccione)","(Seleccione)"]
[964,null,null,"(Seleccione)","(Seleccione)",null,"(Seleccione)",null,"(Seleccione)","(Seleccione)"]
[965,null,null,"(Seleccione)","(Seleccione)",null,"(Seleccione)",null,"(Seleccione)","(Seleccione)"]
[966,null,null,"(Seleccione)","(Seleccione)",null,"(Seleccione)",null,"(Seleccione)","(Seleccione)"]
[967,null,null,"(Seleccione)","(Seleccione)",null,"(Seleccione)",null,"(Seleccione)","(Seleccione)"]
[968,null,null,"(Seleccione)","(Seleccione)",null,"(Seleccione)",null,"(Seleccione)","(Seleccione)"]
[969,null,null,"(Seleccione)","(Seleccione)",null,"(Seleccione)",null,"(Seleccione)","(Seleccione)"]
[970,null,null,"(Seleccione)","(Seleccione)",null,"(Seleccione)",null,"(Seleccione)","(Seleccione)"]
[971,null,null,"(Seleccione)","(Seleccione)",null,"(Seleccione)",null,"(Seleccione)","(Seleccione)"]
[972,null,null,"(Seleccione)","(Seleccione)",null,"(Seleccione)",null,"(Seleccione)","(Seleccione)"]
[973,null,null,"(Seleccione)","(Seleccione)",null,"(Seleccione)",null,"(Seleccione)","(Seleccione)"]
[974,null,null,"(Seleccione)","(Seleccione)",null,"(Seleccione)",null,"(Seleccione)","(Seleccione)"]
[975,null,null,"(Seleccione)","(Seleccione)",null,"(Seleccione)",null,"(Seleccione)","(Seleccione)"]
[976,null,null,"(Seleccione)","(Seleccione)",null,"(Seleccione)",null,"(Seleccione)","(Seleccione)"]
[977,null,null,"(Seleccione)","(Seleccione)",null,"(Seleccione)",null,"(Seleccione)","(Seleccione)"]
[978,null,null,"(Seleccione)","(Seleccione)",null,"(Seleccione)",null,"(Seleccione)","(Seleccione)"]
[979,null,null,"(Seleccione)","(Seleccione)",null,"(Seleccione)",null,"(Seleccione)","(Seleccione)"]
[980,null,null,"(Seleccione)","(Seleccione)",null,"(Seleccione)",null,"(Seleccione)","(Seleccione)"]
[981,null,null,"(Seleccione)","(Seleccione)",null,"(Seleccione)",null,"(Seleccione)","(Seleccione)"]
[982,null,null,"(Seleccione)","(Seleccione)",null,"(Seleccione)",null,"(Seleccione)","(Seleccione)"]
[983,null,null,"(Seleccione)","(Seleccione)",null,"(Seleccione)",null,"(Seleccione)","(Seleccione)"]
[984,null,null,"(Seleccione)","(Seleccione)",null,"(Seleccione)",null,"(Seleccione)","(Seleccione)"]
[985,null,null,"(Seleccione)","(Seleccione)",null,"(Seleccione)",null,"(Seleccione)","(Seleccione)"]
[986,null,null,"(Seleccione)","(Seleccione)",null,"(Seleccione)",null,"(Seleccione)","(Seleccione)"]
[987,null,null,"(Seleccione)","(Seleccione)",null,"(Seleccione)",null,"(Seleccione)","(Seleccione)"]
[988,null,null,"(Seleccione)","(Seleccione)",null,"(Seleccione)",null,"(Seleccione)","(Seleccione)"]
[989,null,null,"(Seleccione)","(Seleccione)",null,"(Seleccione)",null,"(Seleccione)","(Seleccione)"]
[990,null,null,"(Seleccione)","(Seleccione)",null,"(Seleccione)",null,"(Seleccione)","(Seleccione)"]
[991,null,null,"(Seleccione)","(Seleccione)",null,"(Seleccione)",null,"(Seleccione)","(Seleccione)"]
[992,null,null,"(Seleccione)","(Seleccione)",null,"(Seleccione)",null,"(Seleccione)","(Seleccione)"]
[993,null,null,"(Seleccione)","(Seleccione)",null,"(Seleccione)",null,"(Seleccione)","(Seleccione)"]
[994,null,null,"(Seleccione)","(Seleccione)",null,"(Seleccione)",null,"(Seleccione)","(Seleccione)"]
[995,null,null,"(Seleccione)","(Seleccione)",null,"(Seleccione)",null,"(Seleccione)","(Seleccione)"]
[996,null,null,"(Seleccione)","(Seleccione)",null,"(Seleccione)",null,"(Seleccione)","(Seleccione)"]
[997,null,null,"(Seleccione)","(Seleccione)",null,"(Seleccione)",null,"(Seleccione)","(Seleccione)"]
[998,null,null,"(Seleccione)","(Seleccione)",null,"(Seleccione)",null,"(Seleccione)","(Seleccione)"]
[999,null,null,"(Seleccione)","(Seleccione)",null,"(Seleccione)",null,"(Seleccione)","(Seleccione)"]
[1000,null,null,"(Seleccione)","(Seleccione)",null,"(Seleccione)",null,"(Seleccione)","(Seleccione)"]

{"sheet":" VI Prevención","index":5,"n_rows":81,"n_cols":27,"rows_kept":81,"cut":false,"hidden":false,"merged":[[4,17,4,20],[6,17,6,20],[17,2,23,23],[40,2,49,23],[72,16,72,19],[54,2,65,23],[70,2,71,5],[70,16,70,23],[71,20,71,23],[70,6,71,6],[74,16,74,19],[70,7,71,8],[95,2,95,9],[86,17,86,18],[79,7,79,8],[80,7,80,8],[73,7,73,8],[75,7,75,8],[76,7,76,8],[75,9,75,15],[80,9,80,15],[80,2,80,5],[73,9,73,15],[78,2,78,5],[79,2,79,5],[72,20,72,23],[71,16,71,19],[72,2,72,5],[73,2,73,5],[74,2,74,5],[76,2,76,5],[72,9,72,15],[72,7,72,8],[75,2,75,5],[75,16,75,19],[70,9,71,15],[77,7,77,8],[74,7,74,8],[74,9,74,15],[36,8,36,18],[77,20,77,23],[78,20,78,23],[79,20,79,23],[77,16,77,19],[78,16,78,19],[79,16,79,19],[76,9,76,15],[74,20,74,23],[53,2,53,23],[73,20,73,23],[77,2,77,5],[77,9,77,15],[73,16,73,19],[78,7,78,8],[80,16,80,19],[78,9,78,15],[80,20,80,23],[75,20,75,23],[76,20,76,23],[79,9,79,15],[76,16,76,19]]}
[]
[]
[]
[]
[null,null,null,null,null,null,null,null,null,null,null,null,null,null,null,null,"Registrante",{"$f":"'I - Identificación'!$C$24","v":0}]
[]
[null,null,null,null,null,null,null,null,null,null,null,null,null,null,null,null,"Fecha: ",{"$f":"'I - Identificación'!$S$18","v":"00:00:00"}]
[]
[]
[]
[]
[]
[null,null,"Adjuntar al presente formulario el Plan de Contingencia del transportista que incluya el de la instalación de transferencia si posee."]
[]
[]
[]
[null,null,"Indique las medidas de seguridad que emplea para el transporte de los residuos de categoría I. Detalle los equipos de protección utilizados"]
[]
[]
[]
[]
[]
[]
[]
[]
[]
[]
[null,null,"Se capacita a los trabajadores sobre: "]
[]
[null,null,null,null,"Buenas prácticas en el manejo de residuos peligrosos y procedimientos de emergencia"]
[]
[null,null,null,null,"Uso de equipos para atención a emergencias"]
[]
[null,null,null,null,"Uso de elementos de recolección de derrames"]
[]
[null,null,null,null,"El significado de las etiquetas y la información contenida en las hojas de seguridad"]
[null,null,null,null,"Otros temas.",null,"Especifique"]
[]
[null,null,"Describa el programa de capacitación que realiza al personal involucrado en tareas de transporte. "]
[null,null,"Especifique frecuencia de capacitación teniendo en cuenta la rotación del personal"]
[]
[]
[]
[]
[]
[]
[]
[]
[]
[]
[]
[]
[]
[null,null,"Indique el método de limpieza del transporte y los elementos de contención, el lugar donde la realiza (dirección). Adjunte documento con la información del tratamiento de los efluentes generados en las operaciones de limpieza"]
[]
[]
[]
[]
[]
[]
[]
[]
[]
[]
[]
[]
[]
[]
[null,null,"Explique cómo realiza la gestión de los residuos propios de la empresa."]
[]
[null,null,"Residuo",null,null,null,"Cantidad Anual","Unidades",null,"Valorización/Tratamiento/Destino final",null,null,null,null,null,null,"Gestor"]
[null,null,null,null,null,null,null,null,null,null,null,null,null,null,null,null,"Razón Social",null,null,null,"Rut"]
[null,null,null,null,null,null,null,"(Seleccione)",null,null,null,null,null,null,null,null,null,null,null,null,null,null,null,null,null,null,"(Seleccione)"]
[null,null,null,null,null,null,null,"(Seleccione)",null,null,null,null,null,null,null,null,null,null,null,null,null,null,null,null,null,null,"kilogramos"]
[null,null,null,null,null,null,null,"(Seleccione)",null,null,null,null,null,null,null,null,null,null,null,null,null,null,null,null,null,null,"litros"]
[null,null,null,null,null,null,null,"(Seleccione)"]
[null,null,null,null,null,null,null,"(Seleccione)"]
[null,null,null,null,null,null,null,"(Seleccione)"]
[null,null,null,null,null,null,null,"(Seleccione)"]
[null,null,null,null,null,null,null,"(Seleccione)"]
[null,null,null,null,null,null,null,"(Seleccione)"]

{"sheet":"VII seg y control VIII adecuaci","index":6,"n_rows":76,"n_cols":16,"rows_kept":76,"cut":false,"hidden":false,"merged":[[75,8,75,12],[50,1,58,18],[66,8,66,14],[75,1,75,5],[61,2,61,4],[67,8,67,14],[62,1,62,2],[62,4,62,6],[74,1,74,5],[74,8,74,12],[55,22,55,28],[66,1,66,5],[26,1,26,6],[29,7,29,17],[38,12,38,14],[38,15,38,18],[28,1,28,6],[28,7,28,17],[38,1,38,2],[38,3,38,9],[38,10,38,11],[46,1,46,2],[45,1,45,2],[45,3,45,9],[42,1,42,2],[46,10,46,11],[3,7,3,13],[5,7,5,13],[11,1,18,17],[27,1,27,6],[25,7,25,17],[26,7,26,17],[27,7,27,17],[20,1,20,17],[24,7,24,17],[24,1,24,6],[22,7,22,17],[22,1,22,6],[25,1,25,6],[23,1,23,6],[47,15,47,16],[44,15,44,18],[45,15,45,18],[46,15,46,18],[47,7,47,14],[44,12,44,14],[45,12,45,14],[46,12,46,14],[46,3,46,9],[44,10,44,11],[44,3,44,9],[45,10,45,11],[23,7,23,17],[43,1,43,2],[44,1,44,2],[43,3,43,9],[42,10,42,11],[39,12,39,14],[40,12,40,14],[39,3,39,9],[40,3,40,9],[43,15,43,18],[29,1,29,6],[39,1,39,2],[40,1,40,2],[42,3,42,9],[41,1,41,2],[42,12,42,14],[39,15,39,18],[40,15,40,18],[41,15,41,18],[42,15,42,18],[43,10,43,11],[41,12,41,14],[43,12,43,14],[63,7,63,13],[71,2,71,4],[72,2,72,4],[39,10,39,11],[40,10,40,11],[41,10,41,11],[67,1,67,5],[41,3,41,9]]}
[]
[]
[]
[null,null,null,null,null,null,"Registrante",{"$f":"'I - Identificación'!$C$24","v":0}]
[]
[null,null,null,null,null,null,"Fecha",{"$f":"'I - Identificación'!$S$18","v":"00:00:00"}]
[]
[]
[]
[]
[null,"Presente el mecanismo de seguimiento y control implementado por el transportista para lograr la trazabilidad de los residuos sólidos."]
[]
[]
[]
[]
[]
[]
[]
[]
[]
[null,"Enliste la documentación utilizada en el mecanismo arriba descripto. Adjunte copia de estos documentos."]
[]
[null,"Título del documento / formulario ",null,null,null,null,null,"Alcance / Objetivo"]
[]
[]
[]
[]
[]
[]
[]
[]
[]
[]
[]
[]
[]
[null,"Liste las actividades para la mejoras en las condiciones y/o servicio teniendo en cuenta lo establecido en el Decreto Nº 182/013."]
[]
[null,"Aspecto",null,"Actividades de adecuación",null,null,null,null,null,null,"Meta/Plazo",null,"Método de control",null,null,"Indicador"]
[]
[]
[]
[]
[]
[]
[]
[]
[]
[]
[]
[]
[]
[]
[]
[]
[]
[]
[]
[]
[]
[]
[null,"El que suscribe, ",{"$f":"+'I - Identificación'!C30","v":0},null,null,"en su carácter de titular, responsable legal o apoderado de"]
[null,{"$f":"+'I - Identificación'!C24","v":0},null,"con RUT",{"$f":"+'I - Identificación'!Q24","v":0},null,null,"solicita la habilitación de transporte (Artículo 18 del Decreto 182/013)"]
[null,"y designa como responsable técnico hasta tanto no se exprese lo contrario a",null,null,null,null,null,{"$f":"'I - Identificación'!C34","v":0}]
[]
[]
[null,null,null,null,null,null,null,null,{"$f":"+'I - Identificación'!C30","v":0}]
[null,"Firma del Titular, Representante Legal o Apoderado",null,null,null,null,null,null,"Aclaración de Firma"]
[]
[]
[]
[null,"El que suscribe,",{"$f":"'I - Identificación'!C34","v":0},null,null,"en su carácter de responsable técnico avala"]
[null,"la presente solicitud de",{"$f":"'I - Identificación'!C24","v":0}]
[]
[null,null,null,null,null,null,null,null,{"$f":"+'I - Identificación'!C34","v":0}]
[null,"Firma del Profesional Competente",null,null,null,null,null,null,"Aclaración de Firma"]